Organisation Name,Organisation Code,Effective Date,Directorate  Where Expenditure Incurred,Supplier Name,Payment Date,Transaction Number,Gross Amount,Purpose of Spend,Merchant Category,Card Transaction
WALSALL COUNCIL,HTTP://OPENDATACOMMUNITIES.ORG/ID/METROPOLITAN-DISTRICT-COUNCIL/WALSALL,31/12/2019,RESOURCES & TRANSFORMATION,JOHAL DAIRIES LTD,01/10/2019,H59620191003ATRSTOBRR-1,26.94,CA MOORCROFT WOOD-FOOD & DRINK SUPPLIES,OTHER NONDURABLE GOODS,GPC
WALSALL COUNCIL,HTTP://OPENDATACOMMUNITIES.ORG/ID/METROPOLITAN-DISTRICT-COUNCIL/WALSALL,31/12/2019,ECONOMY & ENVIRONMENT,TAYLOR NEWS,01/10/2019,H59620191003BCTGMRERS-1,19.95,STREETLY LIBRARY-NEWSPAPERS/PERIODICALS/MAGAZIN,GROCERY STORES AND SUPERMARKETS,GPC
WALSALL COUNCIL,HTTP://OPENDATACOMMUNITIES.ORG/ID/METROPOLITAN-DISTRICT-COUNCIL/WALSALL,31/12/2019,RESOURCES & TRANSFORMATION,JOHAL DAIRIES LTD,01/10/2019,H59620191003BJIJBWWCA-1,17.80,CA RADLEYS PRIMARY SCHOOL-FOOD & DRINK SUPPLIES,OTHER NONDURABLE GOODS,GPC
WALSALL COUNCIL,HTTP://OPENDATACOMMUNITIES.ORG/ID/METROPOLITAN-DISTRICT-COUNCIL/WALSALL,31/12/2019,RESOURCES & TRANSFORMATION,PATISON SERVICE AND REP,01/10/2019,H59620191003BNALDDGXD-1,16.00,ACCOMMODATION SERVICES MANAGEM-CLOTHING & LAUNDRY,"HAT CLEANING SHOPS, SHOE REPAIR SHOPS, SHOE SHINE ",GPC
WALSALL COUNCIL,HTTP://OPENDATACOMMUNITIES.ORG/ID/METROPOLITAN-DISTRICT-COUNCIL/WALSALL,31/12/2019,RESOURCES & TRANSFORMATION,VIRGIN TRAINS,01/10/2019,H59620191003BXLFJLXOO-1,29.70,CORPORATE MANAGEMENT TEAM-OFFICER/STAFF-PUBLIC TRANSPORT,PASSENGER RAILWAYS,GPC
WALSALL COUNCIL,HTTP://OPENDATACOMMUNITIES.ORG/ID/METROPOLITAN-DISTRICT-COUNCIL/WALSALL,31/12/2019,ECONOMY & ENVIRONMENT,CARTRIDGE SAVE,01/10/2019,H59620191003CATHVQMHB-1,30.07,GROUNDS-GENERAL MATERIALS,"STATIONERY, OFFICE SUPPLIES AND WRITING PAPER",GPC
WALSALL COUNCIL,HTTP://OPENDATACOMMUNITIES.ORG/ID/METROPOLITAN-DISTRICT-COUNCIL/WALSALL,31/12/2019,CHILDRENS SERVICES,GOMPELS HEALTHCARE LTD,01/10/2019,H59620191003CDIGHQOJF-1,884.10,MARY ELLIOTT SCHOOL-PERSONAL REQUISITES-MATERIALS,OTHER INDUSTRIAL SUPPLIES,GPC
WALSALL COUNCIL,HTTP://OPENDATACOMMUNITIES.ORG/ID/METROPOLITAN-DISTRICT-COUNCIL/WALSALL,31/12/2019,RESOURCES & TRANSFORMATION,ARTHUR BRETT CATER,01/10/2019,H59620191003CEWQFHKKK-1,42.57,CA LEAMORE PRIMARY SCHOOL-FOOD & DRINK SUPPLIES,MISCELLANEOUS FOOD STORES & CONVENIENCE STORES,GPC
WALSALL COUNCIL,HTTP://OPENDATACOMMUNITIES.ORG/ID/METROPOLITAN-DISTRICT-COUNCIL/WALSALL,31/12/2019,RESOURCES & TRANSFORMATION,ARTHUR BRETT CATER,01/10/2019,H59620191003CKJRLLMQE-1,100.62,CA BEACON PRIMARY SCHOOL-FOOD & DRINK SUPPLIES,MISCELLANEOUS FOOD STORES & CONVENIENCE STORES,GPC
WALSALL COUNCIL,HTTP://OPENDATACOMMUNITIES.ORG/ID/METROPOLITAN-DISTRICT-COUNCIL/WALSALL,31/12/2019,RESOURCES & TRANSFORMATION,ARTHUR BRETT CATER,01/10/2019,H59620191003CMJDNMCRQ-1,42.52,CA ST BERNADETTES CATHOLIC PRI-FOOD & DRINK SUPPLIES,MISCELLANEOUS FOOD STORES & CONVENIENCE STORES,GPC
WALSALL COUNCIL,HTTP://OPENDATACOMMUNITIES.ORG/ID/METROPOLITAN-DISTRICT-COUNCIL/WALSALL,31/12/2019,RESOURCES & TRANSFORMATION,JOHAL DAIRIES LTD,01/10/2019,H59620191003CSAMHUCYW-1,7.22,CA JANE LANE SPECIAL SCHOOL-FOOD & DRINK SUPPLIES,OTHER NONDURABLE GOODS,GPC
WALSALL COUNCIL,HTTP://OPENDATACOMMUNITIES.ORG/ID/METROPOLITAN-DISTRICT-COUNCIL/WALSALL,31/12/2019,RESOURCES & TRANSFORMATION,JOHAL DAIRIES LTD,01/10/2019,H59620191003CVXLCKIYU-1,18.66,CA WATLING STREET PRIMARY SCHO-FOOD & DRINK SUPPLIES,OTHER NONDURABLE GOODS,GPC
WALSALL COUNCIL,HTTP://OPENDATACOMMUNITIES.ORG/ID/METROPOLITAN-DISTRICT-COUNCIL/WALSALL,31/12/2019,CHILDRENS SERVICES (SCHOOLS),123 REG R/T,01/10/2019,H59620191003DHIQFMQEE-1,11.99,ADMINISTRATIVE SUPPLIES-GENERAL MATERIALS,DIRECT MARKETING CONTINUITY SUBSCRIPTION MERCHANTS,GPC
WALSALL COUNCIL,HTTP://OPENDATACOMMUNITIES.ORG/ID/METROPOLITAN-DISTRICT-COUNCIL/WALSALL,31/12/2019,RESOURCES & TRANSFORMATION,JOHAL DAIRIES LTD,01/10/2019,H59620191003DKKHUNJRX-1,2.82,CA CROFT COMMUNITY PRIMARY SCH-FOOD & DRINK SUPPLIES,OTHER NONDURABLE GOODS,GPC
WALSALL COUNCIL,HTTP://OPENDATACOMMUNITIES.ORG/ID/METROPOLITAN-DISTRICT-COUNCIL/WALSALL,31/12/2019,RESOURCES & TRANSFORMATION,ARTHUR BRETT CATER,01/10/2019,H59620191003DMPTBOWRO-1,92.47,CA RUSHALL JMI SCHOOL-FOOD & DRINK SUPPLIES,MISCELLANEOUS FOOD STORES & CONVENIENCE STORES,GPC
WALSALL COUNCIL,HTTP://OPENDATACOMMUNITIES.ORG/ID/METROPOLITAN-DISTRICT-COUNCIL/WALSALL,31/12/2019,ECONOMY & ENVIRONMENT,WALSALL WOOD,01/10/2019,H59620191003DPAKQCECC-1,8.58,DEPOT-GENERAL MATERIALS,LUMBER & BUILDING MATERIALS STORES,GPC
WALSALL COUNCIL,HTTP://OPENDATACOMMUNITIES.ORG/ID/METROPOLITAN-DISTRICT-COUNCIL/WALSALL,31/12/2019,RESOURCES & TRANSFORMATION,JOHAL DAIRIES LTD,01/10/2019,H59620191003DPWOTICGG-1,3.56,CA WALSALL WOOD PRIMARY SCHOOL-FOOD & DRINK SUPPLIES,OTHER NONDURABLE GOODS,GPC
WALSALL COUNCIL,HTTP://OPENDATACOMMUNITIES.ORG/ID/METROPOLITAN-DISTRICT-COUNCIL/WALSALL,31/12/2019,ECONOMY & ENVIRONMENT,WETRANSFER,01/10/2019,H59620191003DQJPWHLCQ-1,8.94,NAG - TEMPORARY EXHIBITIONS-POSTAGES AND COURIER SERVICES,COMPUTER SOFTWARE STORES,GPC
WALSALL COUNCIL,HTTP://OPENDATACOMMUNITIES.ORG/ID/METROPOLITAN-DISTRICT-COUNCIL/WALSALL,31/12/2019,RESOURCES & TRANSFORMATION,CHICKEN JOES LTD,01/10/2019,H59620191003DQKXNELUT-1,99.70,CA ST JOHNS C.E. PRIMARY SCHOO-FOOD & DRINK SUPPLIES,CATERERS,GPC
WALSALL COUNCIL,HTTP://OPENDATACOMMUNITIES.ORG/ID/METROPOLITAN-DISTRICT-COUNCIL/WALSALL,31/12/2019,CHILDRENS SERVICES,WOLVERHAMPTON GRAND TH,01/10/2019,H59620191003ESSTHTBNW-1,6.00,LOOKED AFTER CHILDRENS SOCIAL -FOOD & DRINK SUPPLIES,"THEATRICAL PRODUCERS, TIC",GPC
WALSALL COUNCIL,HTTP://OPENDATACOMMUNITIES.ORG/ID/METROPOLITAN-DISTRICT-COUNCIL/WALSALL,31/12/2019,ECONOMY & ENVIRONMENT,WALSALL STN T/O,01/10/2019,H59620191003ETFRSFDBF-1,9.20,LEATHER MUSEUM-GENERAL MATERIALS,PASSENGER RAILWAYS,GPC
WALSALL COUNCIL,HTTP://OPENDATACOMMUNITIES.ORG/ID/METROPOLITAN-DISTRICT-COUNCIL/WALSALL,31/12/2019,RESOURCES & TRANSFORMATION,ARTHUR BRETT CATER,01/10/2019,H59620191003EUIIUGTUR-1,249.22,CA ST JOHNS C.E. PRIMARY SCHOO-FOOD & DRINK SUPPLIES,MISCELLANEOUS FOOD STORES & CONVENIENCE STORES,GPC
WALSALL COUNCIL,HTTP://OPENDATACOMMUNITIES.ORG/ID/METROPOLITAN-DISTRICT-COUNCIL/WALSALL,31/12/2019,RESOURCES & TRANSFORMATION,JOHAL DAIRIES LTD,01/10/2019,H59620191003EVDFSPQPN-1,26.05,CA ABBEY PRIMARY SCHOOL-FOOD & DRINK SUPPLIES,OTHER NONDURABLE GOODS,GPC
WALSALL COUNCIL,HTTP://OPENDATACOMMUNITIES.ORG/ID/METROPOLITAN-DISTRICT-COUNCIL/WALSALL,31/12/2019,RESOURCES & TRANSFORMATION,JOHAL DAIRIES LTD,01/10/2019,H59620191003EVEEQUXUG-1,43.81,CA ST GILES C.E. PRIMARY SCHOO-FOOD & DRINK SUPPLIES,OTHER NONDURABLE GOODS,GPC
WALSALL COUNCIL,HTTP://OPENDATACOMMUNITIES.ORG/ID/METROPOLITAN-DISTRICT-COUNCIL/WALSALL,31/12/2019,RESOURCES & TRANSFORMATION,ARTHUR BRETT CATER,01/10/2019,H59620191003EVIJCBPHP-1,36.05,CA OAKWOOD SPECIAL SCHOOL-FOOD & DRINK SUPPLIES,MISCELLANEOUS FOOD STORES & CONVENIENCE STORES,GPC
WALSALL COUNCIL,HTTP://OPENDATACOMMUNITIES.ORG/ID/METROPOLITAN-DISTRICT-COUNCIL/WALSALL,31/12/2019,RESOURCES & TRANSFORMATION,ARTHUR BRETT CATER,01/10/2019,H59620191003FIHPRXCKZ-1,2.76,CA ELMORE GREEN PRIMARY SCHOOL-FOOD & DRINK SUPPLIES,MISCELLANEOUS FOOD STORES & CONVENIENCE STORES,GPC
WALSALL COUNCIL,HTTP://OPENDATACOMMUNITIES.ORG/ID/METROPOLITAN-DISTRICT-COUNCIL/WALSALL,31/12/2019,RESOURCES & TRANSFORMATION,CHICKEN JOES LTD,01/10/2019,H59620191003FPEVEVIMB-1,71.62,CA WHITEHALL JUNIOR COMMUNITY -FOOD & DRINK SUPPLIES,CATERERS,GPC
WALSALL COUNCIL,HTTP://OPENDATACOMMUNITIES.ORG/ID/METROPOLITAN-DISTRICT-COUNCIL/WALSALL,31/12/2019,RESOURCES & TRANSFORMATION,JOHAL DAIRIES LTD,01/10/2019,H59620191003FRFVBDRED-1,7.17,CA ELMWOOD SPECIAL SCHOOL-FOOD & DRINK SUPPLIES,OTHER NONDURABLE GOODS,GPC
WALSALL COUNCIL,HTTP://OPENDATACOMMUNITIES.ORG/ID/METROPOLITAN-DISTRICT-COUNCIL/WALSALL,31/12/2019,RESOURCES & TRANSFORMATION,JOHAL DAIRIES LTD,01/10/2019,H59620191003FVIOKNCSG-1,38.96,CA OLD HALL SPECIAL SCHOOL-FOOD & DRINK SUPPLIES,OTHER NONDURABLE GOODS,GPC
WALSALL COUNCIL,HTTP://OPENDATACOMMUNITIES.ORG/ID/METROPOLITAN-DISTRICT-COUNCIL/WALSALL,31/12/2019,RESOURCES & TRANSFORMATION,CHICKEN JOES LTD,01/10/2019,H59620191003GDBNWHBWL-1,48.28,CA ST JOHNS C.E. PRIMARY SCHOO-FOOD & DRINK SUPPLIES,CATERERS,GPC
WALSALL COUNCIL,HTTP://OPENDATACOMMUNITIES.ORG/ID/METROPOLITAN-DISTRICT-COUNCIL/WALSALL,31/12/2019,RESOURCES & TRANSFORMATION,JOHAL DAIRIES LTD,01/10/2019,H59620191003GJGNOJANY-1,1.90,CA BUSILL JONES PRIMARY SCHOOL-FOOD & DRINK SUPPLIES,OTHER NONDURABLE GOODS,GPC
WALSALL COUNCIL,HTTP://OPENDATACOMMUNITIES.ORG/ID/METROPOLITAN-DISTRICT-COUNCIL/WALSALL,31/12/2019,RESOURCES & TRANSFORMATION,OAKLAND,01/10/2019,H59620191003GOALLRTDQ-1,250.00,WALSALL CRISIS SUPPORT SCHEME-HOTEL ACCOMMODATION-EMPLOYEES,"HOTELS, MOTELS, RESORTS",GPC
WALSALL COUNCIL,HTTP://OPENDATACOMMUNITIES.ORG/ID/METROPOLITAN-DISTRICT-COUNCIL/WALSALL,31/12/2019,RESOURCES & TRANSFORMATION,JOHAL DAIRIES LTD,01/10/2019,H59620191003GXWTNYDLR-1,47.16,CA ST MICHAELS C.E. PRIMARY SC-FOOD & DRINK SUPPLIES,OTHER NONDURABLE GOODS,GPC
WALSALL COUNCIL,HTTP://OPENDATACOMMUNITIES.ORG/ID/METROPOLITAN-DISTRICT-COUNCIL/WALSALL,31/12/2019,RESOURCES & TRANSFORMATION,ARTHUR BRETT CATER,01/10/2019,H59620191003GZOGQVBGQ-1,29.83,CA OLD HALL SPECIAL SCHOOL-FOOD & DRINK SUPPLIES,MISCELLANEOUS FOOD STORES & CONVENIENCE STORES,GPC
WALSALL COUNCIL,HTTP://OPENDATACOMMUNITIES.ORG/ID/METROPOLITAN-DISTRICT-COUNCIL/WALSALL,31/12/2019,RESOURCES & TRANSFORMATION,JOHAL DAIRIES LTD,01/10/2019,H59620191003HBCMSYTUA-1,28.36,CA WHITEHALL JUNIOR COMMUNITY -FOOD & DRINK SUPPLIES,OTHER NONDURABLE GOODS,GPC
WALSALL COUNCIL,HTTP://OPENDATACOMMUNITIES.ORG/ID/METROPOLITAN-DISTRICT-COUNCIL/WALSALL,31/12/2019,RESOURCES & TRANSFORMATION,O2 UK,01/10/2019,H59620191003HLSTABMVN-1,10.00,WALSALL CRISIS SUPPORT SCHEME-LANDLINE PHONES,TELECOMMUNICATION EQUIPMENT & SALES,GPC
WALSALL COUNCIL,HTTP://OPENDATACOMMUNITIES.ORG/ID/METROPOLITAN-DISTRICT-COUNCIL/WALSALL,31/12/2019,RESOURCES & TRANSFORMATION,ARTHUR BRETT CATER,01/10/2019,H59620191003HNWPVPYVV-1,47.07,CA BUSILL JONES PRIMARY SCHOOL-FOOD & DRINK SUPPLIES,MISCELLANEOUS FOOD STORES & CONVENIENCE STORES,GPC
WALSALL COUNCIL,HTTP://OPENDATACOMMUNITIES.ORG/ID/METROPOLITAN-DISTRICT-COUNCIL/WALSALL,31/12/2019,CHILDRENS SERVICES,POST OFFICE COUNTER,01/10/2019,H59620191003HYEDQFMUP-1,30.50,LOCALITY FAMILY SUPPORT-WEST-POSTAGES AND COURIER SERVICES,POSTAL SERVICES - GOVERNMENT ONLY,GPC
WALSALL COUNCIL,HTTP://OPENDATACOMMUNITIES.ORG/ID/METROPOLITAN-DISTRICT-COUNCIL/WALSALL,31/12/2019,RESOURCES & TRANSFORMATION,ASDA SUPERSTORE,01/10/2019,H59620191003ICLQLXQPV-1,12.00,WALSALL CRISIS SUPPORT SCHEME-FOOD & DRINK SUPPLIES,GROCERY STORES AND SUPERMARKETS,GPC
WALSALL COUNCIL,HTTP://OPENDATACOMMUNITIES.ORG/ID/METROPOLITAN-DISTRICT-COUNCIL/WALSALL,31/12/2019,ECONOMY & ENVIRONMENT,DVLA VEHICLE TAX,01/10/2019,H59620191003IDOEPEEQV-1,262.50,FLEET-LICENCES-TRANSPORT RUN COSTS,GOVERNMENT SERVICES,GPC
WALSALL COUNCIL,HTTP://OPENDATACOMMUNITIES.ORG/ID/METROPOLITAN-DISTRICT-COUNCIL/WALSALL,31/12/2019,RESOURCES & TRANSFORMATION,JOHAL DAIRIES LTD,01/10/2019,H59620191003IHROWTZPA-1,11.57,CA LITTLE BLOXWICH CE PRIMARY -FOOD & DRINK SUPPLIES,OTHER NONDURABLE GOODS,GPC
WALSALL COUNCIL,HTTP://OPENDATACOMMUNITIES.ORG/ID/METROPOLITAN-DISTRICT-COUNCIL/WALSALL,31/12/2019,CHILDRENS SERVICES,STATIONERY OFFICE BOOK,01/10/2019,H59620191003IKERDTXQQ-1,10.20,ADMINISTRATIVE SUPPLIES-GENERAL MATERIALS,BOOK STORES,GPC
WALSALL COUNCIL,HTTP://OPENDATACOMMUNITIES.ORG/ID/METROPOLITAN-DISTRICT-COUNCIL/WALSALL,31/12/2019,RESOURCES & TRANSFORMATION,JOHAL DAIRIES LTD,01/10/2019,H59620191003IOVYJCITY-1,25.50,CA CASTLEFORT JMI SCHOOL-FOOD & DRINK SUPPLIES,OTHER NONDURABLE GOODS,GPC
WALSALL COUNCIL,HTTP://OPENDATACOMMUNITIES.ORG/ID/METROPOLITAN-DISTRICT-COUNCIL/WALSALL,31/12/2019,RESOURCES & TRANSFORMATION,ARTHUR BRETT CATER,01/10/2019,H59620191003IPOPDYJEH-1,71.65,CA BROWNHILLS WEST PRIMARY SCH-FOOD & DRINK SUPPLIES,MISCELLANEOUS FOOD STORES & CONVENIENCE STORES,GPC
WALSALL COUNCIL,HTTP://OPENDATACOMMUNITIES.ORG/ID/METROPOLITAN-DISTRICT-COUNCIL/WALSALL,31/12/2019,ECONOMY & ENVIRONMENT,WWW.BANNERUK.COM,01/10/2019,H59620191003ITKSVQXKN-1,172.20,ARBORETUM-GENERAL MATERIALS,"STATIONERY, OFFICE SUPPLIES AND WRITING PAPER",GPC
WALSALL COUNCIL,HTTP://OPENDATACOMMUNITIES.ORG/ID/METROPOLITAN-DISTRICT-COUNCIL/WALSALL,31/12/2019,RESOURCES & TRANSFORMATION,JOHAL DAIRIES LTD,01/10/2019,H59620191003JDQQEJBZT-1,66.80,CA ELMORE GREEN PRIMARY SCHOOL-FOOD & DRINK SUPPLIES,OTHER NONDURABLE GOODS,GPC
WALSALL COUNCIL,HTTP://OPENDATACOMMUNITIES.ORG/ID/METROPOLITAN-DISTRICT-COUNCIL/WALSALL,31/12/2019,RESOURCES & TRANSFORMATION,ARTHUR BRETT CATER,01/10/2019,H59620191003JQDJJLHEK-1,52.49,CA KINGSHILL SCHOOL-FOOD & DRINK SUPPLIES,MISCELLANEOUS FOOD STORES & CONVENIENCE STORES,GPC
WALSALL COUNCIL,HTTP://OPENDATACOMMUNITIES.ORG/ID/METROPOLITAN-DISTRICT-COUNCIL/WALSALL,31/12/2019,CHILDRENS SERVICES,WAYFAIR #2756703408,01/10/2019,H59620191003JSOICPYEM-1,157.81,TRANSITION AND LEAVING CARE PL-FURNITURE & EQUIPMENT,"EQUIPMENT, FURNITURE, AND HOME FURNISHINGS STORES ",GPC
WALSALL COUNCIL,HTTP://OPENDATACOMMUNITIES.ORG/ID/METROPOLITAN-DISTRICT-COUNCIL/WALSALL,31/12/2019,ECONOMY & ENVIRONMENT,MIDLANDCHILLED.CO.,01/10/2019,H59620191003KEQYDTRSV-1,109.92,BLOXWICH LEISURE CENTRE-FOOD & DRINK SUPPLIES,MOTOR FREIGHT CARRIERS,GPC
WALSALL COUNCIL,HTTP://OPENDATACOMMUNITIES.ORG/ID/METROPOLITAN-DISTRICT-COUNCIL/WALSALL,31/12/2019,ECONOMY & ENVIRONMENT,MIDLANDCHILLED.CO.,01/10/2019,H59620191003KEQYDTRSV-2,111.88,BLOXWICH LEISURE CENTRE-FOOD & DRINK SUPPLIES,MOTOR FREIGHT CARRIERS,GPC
WALSALL COUNCIL,HTTP://OPENDATACOMMUNITIES.ORG/ID/METROPOLITAN-DISTRICT-COUNCIL/WALSALL,31/12/2019,RESOURCES & TRANSFORMATION,ARTHUR BRETT CATER,01/10/2019,H59620191003KPONMNXTT-1,107.07,CA LINDENS PRIMARY SCHOOL-FOOD & DRINK SUPPLIES,MISCELLANEOUS FOOD STORES & CONVENIENCE STORES,GPC
WALSALL COUNCIL,HTTP://OPENDATACOMMUNITIES.ORG/ID/METROPOLITAN-DISTRICT-COUNCIL/WALSALL,31/12/2019,CHILDRENS SERVICES,ASDA GROCERIES ONLINE,01/10/2019,H59620191003LFMHLKQZV-1,36.83,SPECIAL FACILITIES -  BEFORE/A-GENERAL MATERIALS,GROCERY STORES AND SUPERMARKETS,GPC
WALSALL COUNCIL,HTTP://OPENDATACOMMUNITIES.ORG/ID/METROPOLITAN-DISTRICT-COUNCIL/WALSALL,31/12/2019,CHILDRENS SERVICES,WM MORRISONS STORE,01/10/2019,H59620191003LLGUOBVOW-1,3.60,SAFEGUARDING BOARD-FOOD & DRINK SUPPLIES,GROCERY STORES AND SUPERMARKETS,GPC
WALSALL COUNCIL,HTTP://OPENDATACOMMUNITIES.ORG/ID/METROPOLITAN-DISTRICT-COUNCIL/WALSALL,31/12/2019,CHILDRENS SERVICES,WM MORRISONS STORE,01/10/2019,H59620191003LLGUOBVOW-2,4.00,SAFEGUARDING BOARD-FOOD & DRINK SUPPLIES,GROCERY STORES AND SUPERMARKETS,GPC
WALSALL COUNCIL,HTTP://OPENDATACOMMUNITIES.ORG/ID/METROPOLITAN-DISTRICT-COUNCIL/WALSALL,31/12/2019,RESOURCES & TRANSFORMATION,CHICKEN JOES LTD,01/10/2019,H59620191003LNNIXUUIT-1,150.22,CA WHITEHALL JUNIOR COMMUNITY -FOOD & DRINK SUPPLIES,CATERERS,GPC
WALSALL COUNCIL,HTTP://OPENDATACOMMUNITIES.ORG/ID/METROPOLITAN-DISTRICT-COUNCIL/WALSALL,31/12/2019,CHILDRENS SERVICES,A F BLAKEMORE & SON LTD,01/10/2019,H59620191003LSIHQKLLU-1,328.92,MARY ELLIOTT SCHOOL-FOOD & DRINK SUPPLIES,GROCERY STORES AND SUPERMARKETS,GPC
WALSALL COUNCIL,HTTP://OPENDATACOMMUNITIES.ORG/ID/METROPOLITAN-DISTRICT-COUNCIL/WALSALL,31/12/2019,RESOURCES & TRANSFORMATION,CHICKEN JOES LTD,01/10/2019,H59620191003MFRPILFBL-1,104.10,CA LINDENS PRIMARY SCHOOL-FOOD & DRINK SUPPLIES,CATERERS,GPC
WALSALL COUNCIL,HTTP://OPENDATACOMMUNITIES.ORG/ID/METROPOLITAN-DISTRICT-COUNCIL/WALSALL,31/12/2019,RESOURCES & TRANSFORMATION,STATIONERY OFFICE BOOK,01/10/2019,H59620191003MGZRLBHVF-1,35.40,WALSALL CRISIS SUPPORT SCHEME-CRISIS SUPPORT PAYMENTS,BOOK STORES,GPC
WALSALL COUNCIL,HTTP://OPENDATACOMMUNITIES.ORG/ID/METROPOLITAN-DISTRICT-COUNCIL/WALSALL,31/12/2019,RESOURCES & TRANSFORMATION,JOHAL DAIRIES LTD,01/10/2019,H59620191003MNLQKKPSU-1,28.48,CA COOPER JORDAN CE PRIMARY SC-FOOD & DRINK SUPPLIES,OTHER NONDURABLE GOODS,GPC
WALSALL COUNCIL,HTTP://OPENDATACOMMUNITIES.ORG/ID/METROPOLITAN-DISTRICT-COUNCIL/WALSALL,31/12/2019,ECONOMY & ENVIRONMENT,MIDLANDCHILLED.CO.,01/10/2019,H59620191003MSVKLIHEA-1,191.04,BLOXWICH LEISURE CENTRE-FOOD & DRINK SUPPLIES,MOTOR FREIGHT CARRIERS,GPC
WALSALL COUNCIL,HTTP://OPENDATACOMMUNITIES.ORG/ID/METROPOLITAN-DISTRICT-COUNCIL/WALSALL,31/12/2019,ECONOMY & ENVIRONMENT,MIDLANDCHILLED.CO.,01/10/2019,H59620191003MSVKLIHEA-2,179.20,BLOXWICH LEISURE CENTRE-FOOD & DRINK SUPPLIES,MOTOR FREIGHT CARRIERS,GPC
WALSALL COUNCIL,HTTP://OPENDATACOMMUNITIES.ORG/ID/METROPOLITAN-DISTRICT-COUNCIL/WALSALL,31/12/2019,RESOURCES & TRANSFORMATION,ARTHUR BRETT CATER,01/10/2019,H59620191003NCDRTJMFT-1,66.43,CA ELMWOOD SPECIAL SCHOOL-FOOD & DRINK SUPPLIES,MISCELLANEOUS FOOD STORES & CONVENIENCE STORES,GPC
WALSALL COUNCIL,HTTP://OPENDATACOMMUNITIES.ORG/ID/METROPOLITAN-DISTRICT-COUNCIL/WALSALL,31/12/2019,CHILDRENS SERVICES,AMZNMKTPLACE,01/10/2019,H59620191003NCSUBXNRS-1,15.96,GENERAL-GENERAL MATERIALS,MISCELLANEOUS AND SPECIALTY RETAIL STORES,GPC
WALSALL COUNCIL,HTTP://OPENDATACOMMUNITIES.ORG/ID/METROPOLITAN-DISTRICT-COUNCIL/WALSALL,31/12/2019,RESOURCES & TRANSFORMATION,CHICKEN JOES LTD,01/10/2019,H59620191003NIRCFIHAT-1,62.00,CA WHITEHALL JUNIOR COMMUNITY -FOOD & DRINK SUPPLIES,CATERERS,GPC
WALSALL COUNCIL,HTTP://OPENDATACOMMUNITIES.ORG/ID/METROPOLITAN-DISTRICT-COUNCIL/WALSALL,31/12/2019,RESOURCES & TRANSFORMATION,JOHAL DAIRIES LTD,01/10/2019,H59620191003NKNHTVVFI-1,8.65,CA ST BERNADETTES CATHOLIC PRI-FOOD & DRINK SUPPLIES,OTHER NONDURABLE GOODS,GPC
WALSALL COUNCIL,HTTP://OPENDATACOMMUNITIES.ORG/ID/METROPOLITAN-DISTRICT-COUNCIL/WALSALL,31/12/2019,RESOURCES & TRANSFORMATION,TUDORS ESTATES M LTD,01/10/2019,H59620191003NPXEFKRFI-1,-150.00,BED & BREAKFAST PAYMENTS-BED & BREAKFAST PAYMENTS,REAL ESTATE MANAGERS - RENTALS,GPC
WALSALL COUNCIL,HTTP://OPENDATACOMMUNITIES.ORG/ID/METROPOLITAN-DISTRICT-COUNCIL/WALSALL,31/12/2019,RESOURCES & TRANSFORMATION,ARTHUR BRETT CATER,01/10/2019,H59620191003NSWUZQWCX-1,140.99,CA LEIGHSWOOD PRIMARY SCHOOL-FOOD & DRINK SUPPLIES,MISCELLANEOUS FOOD STORES & CONVENIENCE STORES,GPC
WALSALL COUNCIL,HTTP://OPENDATACOMMUNITIES.ORG/ID/METROPOLITAN-DISTRICT-COUNCIL/WALSALL,31/12/2019,CHILDRENS SERVICES (SCHOOLS),AMAZON.CO.UK*MO4ZF84K4,01/10/2019,H59620191003NWLSNGYSR-1,26.66,ICT LEARNING RESOURCES-GENERAL MATERIALS,OTHER DIRECT MARKETING-OTHER DIRECT MARKETERS,GPC
WALSALL COUNCIL,HTTP://OPENDATACOMMUNITIES.ORG/ID/METROPOLITAN-DISTRICT-COUNCIL/WALSALL,31/12/2019,CHILDRENS SERVICES (SCHOOLS),AMAZON.CO.UK*MO4ZF84K4,01/10/2019,H59620191003NWLSNGYSR-2,39.62,E19-GENERAL MATERIALS,OTHER DIRECT MARKETING-OTHER DIRECT MARKETERS,GPC
WALSALL COUNCIL,HTTP://OPENDATACOMMUNITIES.ORG/ID/METROPOLITAN-DISTRICT-COUNCIL/WALSALL,31/12/2019,RESOURCES & TRANSFORMATION,JOHAL DAIRIES LTD,01/10/2019,H59620191003NWWMJUKXH-1,33.36,CA WHITEHALL JUNIOR COMMUNITY -FOOD & DRINK SUPPLIES,OTHER NONDURABLE GOODS,GPC
WALSALL COUNCIL,HTTP://OPENDATACOMMUNITIES.ORG/ID/METROPOLITAN-DISTRICT-COUNCIL/WALSALL,31/12/2019,RESOURCES & TRANSFORMATION,JOHAL DAIRIES LTD,01/10/2019,H59620191003OAGBNYCSH-1,21.62,CA BROWNHILLS WEST PRIMARY SCH-FOOD & DRINK SUPPLIES,OTHER NONDURABLE GOODS,GPC
WALSALL COUNCIL,HTTP://OPENDATACOMMUNITIES.ORG/ID/METROPOLITAN-DISTRICT-COUNCIL/WALSALL,31/12/2019,RESOURCES & TRANSFORMATION,JOHAL DAIRIES LTD,01/10/2019,H59620191003OCWITPZCX-1,1.78,CA ST JOHNS C.E. PRIMARY SCHOO-FOOD & DRINK SUPPLIES,OTHER NONDURABLE GOODS,GPC
WALSALL COUNCIL,HTTP://OPENDATACOMMUNITIES.ORG/ID/METROPOLITAN-DISTRICT-COUNCIL/WALSALL,31/12/2019,CHILDRENS SERVICES,TRAINLINE.COM,01/10/2019,H59620191003OFTRYBGMF-1,198.01,INFORMATION SERVICES-OFFICER/STAFF-PUBLIC TRANSPORT,PASSENGER RAILWAYS,GPC
WALSALL COUNCIL,HTTP://OPENDATACOMMUNITIES.ORG/ID/METROPOLITAN-DISTRICT-COUNCIL/WALSALL,31/12/2019,ECONOMY & ENVIRONMENT,WICKES CANNOCK,01/10/2019,H59620191003OGXGNDKDA-1,28.60,INFRASTRUCTURE MAINTENANCE-GENERAL MATERIALS,HOME SUPPLY WAREHOUSE STORES,GPC
WALSALL COUNCIL,HTTP://OPENDATACOMMUNITIES.ORG/ID/METROPOLITAN-DISTRICT-COUNCIL/WALSALL,31/12/2019,ECONOMY & ENVIRONMENT,TRAINLINE,01/10/2019,H59620191003OVQOQBKNX-1,21.30,PUBLIC HEALTH BUSINESS SUPPORT-OFFICER/STAFF-PUBLIC TRANSPORT,PASSENGER RAILWAYS,GPC
WALSALL COUNCIL,HTTP://OPENDATACOMMUNITIES.ORG/ID/METROPOLITAN-DISTRICT-COUNCIL/WALSALL,31/12/2019,ECONOMY & ENVIRONMENT,WWW.TROPICANAFITNESS.C,01/10/2019,H59620191003PECCNQODP-1,98.42,BLOXWICH LEISURE CENTRE-FOOD & DRINK SUPPLIES,MISCELLANEOUS FOOD STORES & CONVENIENCE STORES,GPC
WALSALL COUNCIL,HTTP://OPENDATACOMMUNITIES.ORG/ID/METROPOLITAN-DISTRICT-COUNCIL/WALSALL,31/12/2019,RESOURCES & TRANSFORMATION,ARTHUR BRETT CATER,01/10/2019,H59620191003PKKBMWSGD-1,84.64,CA ST GILES C.E. PRIMARY SCHOO-FOOD & DRINK SUPPLIES,MISCELLANEOUS FOOD STORES & CONVENIENCE STORES,GPC
WALSALL COUNCIL,HTTP://OPENDATACOMMUNITIES.ORG/ID/METROPOLITAN-DISTRICT-COUNCIL/WALSALL,31/12/2019,RESOURCES & TRANSFORMATION,ARTHUR BRETT CATER,01/10/2019,H59620191003PLPCEWHND-1,36.64,CA BLOXWICH C.E. JMI PRIMARY S-FOOD & DRINK SUPPLIES,MISCELLANEOUS FOOD STORES & CONVENIENCE STORES,GPC
WALSALL COUNCIL,HTTP://OPENDATACOMMUNITIES.ORG/ID/METROPOLITAN-DISTRICT-COUNCIL/WALSALL,31/12/2019,RESOURCES & TRANSFORMATION,ARTHUR BRETT CATER,01/10/2019,H59620191003PNEKZKHCJ-1,79.50,CA WATLING STREET PRIMARY SCHO-FOOD & DRINK SUPPLIES,MISCELLANEOUS FOOD STORES & CONVENIENCE STORES,GPC
WALSALL COUNCIL,HTTP://OPENDATACOMMUNITIES.ORG/ID/METROPOLITAN-DISTRICT-COUNCIL/WALSALL,31/12/2019,RESOURCES & TRANSFORMATION,JOHAL DAIRIES LTD,01/10/2019,H59620191003PNKNUBMFO-1,28.70,CA WHITEHALL JUNIOR COMMUNITY -FOOD & DRINK SUPPLIES,OTHER NONDURABLE GOODS,GPC
WALSALL COUNCIL,HTTP://OPENDATACOMMUNITIES.ORG/ID/METROPOLITAN-DISTRICT-COUNCIL/WALSALL,31/12/2019,RESOURCES & TRANSFORMATION,ARTHUR BRETT CATER,01/10/2019,H59620191003PSEVMUUEX-1,107.32,CA ELMORE GREEN PRIMARY SCHOOL-FOOD & DRINK SUPPLIES,MISCELLANEOUS FOOD STORES & CONVENIENCE STORES,GPC
WALSALL COUNCIL,HTTP://OPENDATACOMMUNITIES.ORG/ID/METROPOLITAN-DISTRICT-COUNCIL/WALSALL,31/12/2019,CHILDRENS SERVICES,ASDA GEORGE COM LEEDS,01/10/2019,H59620191003PSVYFKOYL-1,30.00,TRANSITION AND LEAVING CARE PL-FURNITURE & EQUIPMENT,GROCERY STORES AND SUPERMARKETS,GPC
WALSALL COUNCIL,HTTP://OPENDATACOMMUNITIES.ORG/ID/METROPOLITAN-DISTRICT-COUNCIL/WALSALL,31/12/2019,RESOURCES & TRANSFORMATION,ARTHUR BRETT CATER,01/10/2019,H59620191003PVIUUTBOV-1,44.81,CA ABBEY PRIMARY SCHOOL-FOOD & DRINK SUPPLIES,MISCELLANEOUS FOOD STORES & CONVENIENCE STORES,GPC
WALSALL COUNCIL,HTTP://OPENDATACOMMUNITIES.ORG/ID/METROPOLITAN-DISTRICT-COUNCIL/WALSALL,31/12/2019,ECONOMY & ENVIRONMENT,WM MORRISONS STORE,01/10/2019,H59620191003PXIKJEDJS-1,10.90,NEW ART GALLERY VENUE INCOME-COURSE/CONFERENCE EXPENSES,GROCERY STORES AND SUPERMARKETS,GPC
WALSALL COUNCIL,HTTP://OPENDATACOMMUNITIES.ORG/ID/METROPOLITAN-DISTRICT-COUNCIL/WALSALL,31/12/2019,ECONOMY & ENVIRONMENT,WM MORRISONS STORE,01/10/2019,H59620191003PXIKJEDJS-2,4.00,NEW ART GALLERY VENUE INCOME-COURSE/CONFERENCE EXPENSES,GROCERY STORES AND SUPERMARKETS,GPC
WALSALL COUNCIL,HTTP://OPENDATACOMMUNITIES.ORG/ID/METROPOLITAN-DISTRICT-COUNCIL/WALSALL,31/12/2019,ECONOMY & ENVIRONMENT,WM MORRISONS STORE,01/10/2019,H59620191003PXIKJEDJS-3,128.00,NAG - PREVIEW EXPENSES-CATERING,GROCERY STORES AND SUPERMARKETS,GPC
WALSALL COUNCIL,HTTP://OPENDATACOMMUNITIES.ORG/ID/METROPOLITAN-DISTRICT-COUNCIL/WALSALL,31/12/2019,RESOURCES & TRANSFORMATION,JOHAL DAIRIES LTD,01/10/2019,H59620191003QJQUOXHRZ-1,1.72,CA BEACON PRIMARY SCHOOL-FOOD & DRINK SUPPLIES,OTHER NONDURABLE GOODS,GPC
WALSALL COUNCIL,HTTP://OPENDATACOMMUNITIES.ORG/ID/METROPOLITAN-DISTRICT-COUNCIL/WALSALL,31/12/2019,CHILDRENS SERVICES,TESCO STORES 6161,01/10/2019,H59620191003QPLJMHOVT-1,4.99,SUPPORT UNDER SECT 23 OF THE C-SUPPORT UNDER SECTION 23 OF TH,GROCERY STORES AND SUPERMARKETS,GPC
WALSALL COUNCIL,HTTP://OPENDATACOMMUNITIES.ORG/ID/METROPOLITAN-DISTRICT-COUNCIL/WALSALL,31/12/2019,CHILDRENS SERVICES,TESCO STORES 6161,01/10/2019,H59620191003QPLJMHOVT-2,10.00,SUPPORT UNDER SECT 23 OF THE C-SUPPORT UNDER SECTION 23 OF TH,GROCERY STORES AND SUPERMARKETS,GPC
WALSALL COUNCIL,HTTP://OPENDATACOMMUNITIES.ORG/ID/METROPOLITAN-DISTRICT-COUNCIL/WALSALL,31/12/2019,CHILDRENS SERVICES,JOHAL DAIRIES LTD,01/10/2019,H59620191003QZMSJYXFY-1,7.12,57 LICHFIELD ROAD-FOOD & DRINK SUPPLIES,OTHER NONDURABLE GOODS,GPC
WALSALL COUNCIL,HTTP://OPENDATACOMMUNITIES.ORG/ID/METROPOLITAN-DISTRICT-COUNCIL/WALSALL,31/12/2019,RESOURCES & TRANSFORMATION,ARTHUR BRETT CATER,01/10/2019,H59620191003RDWLEUONP-1,37.70,CA LITTLE BLOXWICH CE PRIMARY -FOOD & DRINK SUPPLIES,MISCELLANEOUS FOOD STORES & CONVENIENCE STORES,GPC
WALSALL COUNCIL,HTTP://OPENDATACOMMUNITIES.ORG/ID/METROPOLITAN-DISTRICT-COUNCIL/WALSALL,31/12/2019,RESOURCES & TRANSFORMATION,JOHAL DAIRIES LTD,01/10/2019,H59620191003REKYCHWQU-1,21.84,TOWN HALL RESTAURANT BISTRO-FOOD & DRINK SUPPLIES,OTHER NONDURABLE GOODS,GPC
WALSALL COUNCIL,HTTP://OPENDATACOMMUNITIES.ORG/ID/METROPOLITAN-DISTRICT-COUNCIL/WALSALL,31/12/2019,RESOURCES & TRANSFORMATION,ARTHUR BRETT CATER,01/10/2019,H59620191003RPXDHTUPU-1,73.35,CA CROFT COMMUNITY PRIMARY SCH-FOOD & DRINK SUPPLIES,MISCELLANEOUS FOOD STORES & CONVENIENCE STORES,GPC
WALSALL COUNCIL,HTTP://OPENDATACOMMUNITIES.ORG/ID/METROPOLITAN-DISTRICT-COUNCIL/WALSALL,31/12/2019,ECONOMY & ENVIRONMENT,AMAZON.CO.UK*MO12994M4,01/10/2019,H59620191003SHBPYJSOF-1,90.00,BLOXWICH LEISURE CENTRE-GENERAL MATERIALS,OTHER DIRECT MARKETING-OTHER DIRECT MARKETERS,GPC
WALSALL COUNCIL,HTTP://OPENDATACOMMUNITIES.ORG/ID/METROPOLITAN-DISTRICT-COUNCIL/WALSALL,31/12/2019,ECONOMY & ENVIRONMENT,DIRECTSHOPFITTINGS,01/10/2019,H59620191003SNMCYRLVQ-1,302.95,OAK PARK-GENERAL MATERIALS,MISCELLANEOUS GENERAL MERCHANDISE,GPC
WALSALL COUNCIL,HTTP://OPENDATACOMMUNITIES.ORG/ID/METROPOLITAN-DISTRICT-COUNCIL/WALSALL,31/12/2019,CHILDRENS SERVICES,TRAINLINE,01/10/2019,H59620191003SXKKPMRQN-1,93.10,SAFEGUARDING & FAMILY SUPPORT-OFFICER/STAFF-PUBLIC TRANSPORT,PASSENGER RAILWAYS,GPC
WALSALL COUNCIL,HTTP://OPENDATACOMMUNITIES.ORG/ID/METROPOLITAN-DISTRICT-COUNCIL/WALSALL,31/12/2019,RESOURCES & TRANSFORMATION,ARTHUR BRETT CATER,01/10/2019,H59620191003TFLMDPRMS-1,42.60,CA CASTLEFORT JMI SCHOOL-FOOD & DRINK SUPPLIES,MISCELLANEOUS FOOD STORES & CONVENIENCE STORES,GPC
WALSALL COUNCIL,HTTP://OPENDATACOMMUNITIES.ORG/ID/METROPOLITAN-DISTRICT-COUNCIL/WALSALL,31/12/2019,RESOURCES & TRANSFORMATION,CHICKEN JOES LTD,01/10/2019,H59620191003TZUEOTWTZ-1,55.52,CA KINGSHILL SCHOOL-FOOD & DRINK SUPPLIES,CATERERS,GPC
WALSALL COUNCIL,HTTP://OPENDATACOMMUNITIES.ORG/ID/METROPOLITAN-DISTRICT-COUNCIL/WALSALL,31/12/2019,RESOURCES & TRANSFORMATION,CHICKEN JOES LTD,01/10/2019,H59620191003UAQXXVTKJ-1,57.43,CA CROFT COMMUNITY PRIMARY SCH-FOOD & DRINK SUPPLIES,CATERERS,GPC
WALSALL COUNCIL,HTTP://OPENDATACOMMUNITIES.ORG/ID/METROPOLITAN-DISTRICT-COUNCIL/WALSALL,31/12/2019,RESOURCES & TRANSFORMATION,JOHAL DAIRIES LTD,01/10/2019,H59620191003UBODTLKDS-1,33.38,CA LINDENS PRIMARY SCHOOL-FOOD & DRINK SUPPLIES,OTHER NONDURABLE GOODS,GPC
WALSALL COUNCIL,HTTP://OPENDATACOMMUNITIES.ORG/ID/METROPOLITAN-DISTRICT-COUNCIL/WALSALL,31/12/2019,CHILDRENS SERVICES,TESCO STORES 5503,01/10/2019,H59620191003UFHRQYBTI-1,35.00,TRANSITION AND LEAVING CARE PL-FURNITURE & EQUIPMENT,GROCERY STORES AND SUPERMARKETS,GPC
WALSALL COUNCIL,HTTP://OPENDATACOMMUNITIES.ORG/ID/METROPOLITAN-DISTRICT-COUNCIL/WALSALL,31/12/2019,CHILDRENS SERVICES,CURRYS ONLINE,01/10/2019,H59620191003UGGSBHLLT-1,388.99,VIRTUAL SCHOOL - CENTRAL PUPIL-FURNITURE & EQUIPMENT,ELECTRONIC SALES,GPC
WALSALL COUNCIL,HTTP://OPENDATACOMMUNITIES.ORG/ID/METROPOLITAN-DISTRICT-COUNCIL/WALSALL,31/12/2019,RESOURCES & TRANSFORMATION,ARTHUR BRETT CATER,01/10/2019,H59620191003UIHQVJXKS-1,1.29,CA BEACON PRIMARY SCHOOL-FOOD & DRINK SUPPLIES,MISCELLANEOUS FOOD STORES & CONVENIENCE STORES,GPC
WALSALL COUNCIL,HTTP://OPENDATACOMMUNITIES.ORG/ID/METROPOLITAN-DISTRICT-COUNCIL/WALSALL,31/12/2019,CHILDRENS SERVICES (SCHOOLS),AMZNMKTPLACE,01/10/2019,H59620191003UMELSSUQB-1,7.47,CADMUS FEDERATION-GENERAL MATERIALS,MISCELLANEOUS AND SPECIALTY RETAIL STORES,GPC
WALSALL COUNCIL,HTTP://OPENDATACOMMUNITIES.ORG/ID/METROPOLITAN-DISTRICT-COUNCIL/WALSALL,31/12/2019,ECONOMY & ENVIRONMENT,DVLA VEHICLE TAX,01/10/2019,H59620191003USTFBKKCD-1,722.50,FLEET-LICENCES-TRANSPORT RUN COSTS,GOVERNMENT SERVICES,GPC
WALSALL COUNCIL,HTTP://OPENDATACOMMUNITIES.ORG/ID/METROPOLITAN-DISTRICT-COUNCIL/WALSALL,31/12/2019,RESOURCES & TRANSFORMATION,JOHAL DAIRIES LTD,01/10/2019,H59620191003VAUKLAAFQ-1,20.08,CA BARCROFT D/C-FOOD & DRINK SUPPLIES,OTHER NONDURABLE GOODS,GPC
WALSALL COUNCIL,HTTP://OPENDATACOMMUNITIES.ORG/ID/METROPOLITAN-DISTRICT-COUNCIL/WALSALL,31/12/2019,RESOURCES & TRANSFORMATION,JOHAL DAIRIES LTD,01/10/2019,H59620191003VFHJABCGH-1,4.70,CA KINGSHILL SCHOOL-FOOD & DRINK SUPPLIES,OTHER NONDURABLE GOODS,GPC
WALSALL COUNCIL,HTTP://OPENDATACOMMUNITIES.ORG/ID/METROPOLITAN-DISTRICT-COUNCIL/WALSALL,31/12/2019,RESOURCES & TRANSFORMATION,ARTHUR BRETT CATER,01/10/2019,H59620191003VFJNWJLYL-1,35.05,CA JANE LANE SPECIAL SCHOOL-FOOD & DRINK SUPPLIES,MISCELLANEOUS FOOD STORES & CONVENIENCE STORES,GPC
WALSALL COUNCIL,HTTP://OPENDATACOMMUNITIES.ORG/ID/METROPOLITAN-DISTRICT-COUNCIL/WALSALL,31/12/2019,RESOURCES & TRANSFORMATION,TUDORS ESTATES M LTD,01/10/2019,H59620191003VTCNHTFHG-1,-150.00,BED & BREAKFAST PAYMENTS-BED & BREAKFAST PAYMENTS,REAL ESTATE MANAGERS - RENTALS,GPC
WALSALL COUNCIL,HTTP://OPENDATACOMMUNITIES.ORG/ID/METROPOLITAN-DISTRICT-COUNCIL/WALSALL,31/12/2019,RESOURCES & TRANSFORMATION,ARTHUR BRETT CATER,01/10/2019,H59620191003VVRVZEWKW-1,72.06,CA MOORCROFT WOOD-FOOD & DRINK SUPPLIES,MISCELLANEOUS FOOD STORES & CONVENIENCE STORES,GPC
WALSALL COUNCIL,HTTP://OPENDATACOMMUNITIES.ORG/ID/METROPOLITAN-DISTRICT-COUNCIL/WALSALL,31/12/2019,ECONOMY & ENVIRONMENT,HOLE IN THE WALL C,01/10/2019,H59620191003VWPTQNYAV-1,5.50,LEATHER MUSEUM-GENERAL MATERIALS,"FURNITURE-REUPHOLSTERY AND REPAIR, REFINISHING",GPC
WALSALL COUNCIL,HTTP://OPENDATACOMMUNITIES.ORG/ID/METROPOLITAN-DISTRICT-COUNCIL/WALSALL,31/12/2019,RESOURCES & TRANSFORMATION,ARTHUR BRETT CATER,01/10/2019,H59620191003VXGQSZBVF-1,196.59,CA COOPER JORDAN CE PRIMARY SC-FOOD & DRINK SUPPLIES,MISCELLANEOUS FOOD STORES & CONVENIENCE STORES,GPC
WALSALL COUNCIL,HTTP://OPENDATACOMMUNITIES.ORG/ID/METROPOLITAN-DISTRICT-COUNCIL/WALSALL,31/12/2019,RESOURCES & TRANSFORMATION,ARTHUR BRETT CATER,01/10/2019,H59620191003WGVSCXFOF-1,57.22,CA ST MICHAELS C.E. PRIMARY SC-FOOD & DRINK SUPPLIES,MISCELLANEOUS FOOD STORES & CONVENIENCE STORES,GPC
WALSALL COUNCIL,HTTP://OPENDATACOMMUNITIES.ORG/ID/METROPOLITAN-DISTRICT-COUNCIL/WALSALL,31/12/2019,RESOURCES & TRANSFORMATION,ARTHUR BRETT CATER,01/10/2019,H59620191003WTDGCOPJG-1,121.87,CA RADLEYS PRIMARY SCHOOL-FOOD & DRINK SUPPLIES,MISCELLANEOUS FOOD STORES & CONVENIENCE STORES,GPC
WALSALL COUNCIL,HTTP://OPENDATACOMMUNITIES.ORG/ID/METROPOLITAN-DISTRICT-COUNCIL/WALSALL,31/12/2019,RESOURCES & TRANSFORMATION,ARTHUR BRETT CATER,01/10/2019,H59620191003WUCUYKWQD-1,98.07,CA BARCROFT D/C-FOOD & DRINK SUPPLIES,MISCELLANEOUS FOOD STORES & CONVENIENCE STORES,GPC
WALSALL COUNCIL,HTTP://OPENDATACOMMUNITIES.ORG/ID/METROPOLITAN-DISTRICT-COUNCIL/WALSALL,31/12/2019,ECONOMY & ENVIRONMENT,WALSALL STN T/O,01/10/2019,H59620191003WVFCZFSNU-1,11.40,LEATHER MUSEUM-OFFICER/STAFF-PUBLIC TRANSPORT,PASSENGER RAILWAYS,GPC
WALSALL COUNCIL,HTTP://OPENDATACOMMUNITIES.ORG/ID/METROPOLITAN-DISTRICT-COUNCIL/WALSALL,31/12/2019,RESOURCES & TRANSFORMATION,ARTHUR BRETT CATER,01/10/2019,H59620191003XFUAETXOE-1,48.02,CA BUSILL JONES PRIMARY SCHOOL-FOOD & DRINK SUPPLIES,MISCELLANEOUS FOOD STORES & CONVENIENCE STORES,GPC
WALSALL COUNCIL,HTTP://OPENDATACOMMUNITIES.ORG/ID/METROPOLITAN-DISTRICT-COUNCIL/WALSALL,31/12/2019,RESOURCES & TRANSFORMATION,ARTHUR BRETT CATER,01/10/2019,H59620191003XQDXTGRET-1,185.46,CA MEADOW VIEW JMI PRIMARY SCH-FOOD & DRINK SUPPLIES,MISCELLANEOUS FOOD STORES & CONVENIENCE STORES,GPC
WALSALL COUNCIL,HTTP://OPENDATACOMMUNITIES.ORG/ID/METROPOLITAN-DISTRICT-COUNCIL/WALSALL,31/12/2019,RESOURCES & TRANSFORMATION,JOHAL DAIRIES LTD,01/10/2019,H59620191003XXCQRRVUV-1,7.44,CA RUSHALL JMI SCHOOL-FOOD & DRINK SUPPLIES,OTHER NONDURABLE GOODS,GPC
WALSALL COUNCIL,HTTP://OPENDATACOMMUNITIES.ORG/ID/METROPOLITAN-DISTRICT-COUNCIL/WALSALL,31/12/2019,CHILDRENS SERVICES,WOLVERHAMPTON GRAND TH,01/10/2019,H59620191003YGQBPNUGH-1,6.90,LOOKED AFTER CHILDRENS SOCIAL -FOOD & DRINK SUPPLIES,"THEATRICAL PRODUCERS, TIC",GPC
WALSALL COUNCIL,HTTP://OPENDATACOMMUNITIES.ORG/ID/METROPOLITAN-DISTRICT-COUNCIL/WALSALL,31/12/2019,CHILDRENS SERVICES,HOTEL ON BOOKING.COM TOUL,01/10/2019,H59620191003YUFPXMBBV-1,72.00,SAFEGUARDING & FAMILY SUPPORT-HOTEL ACCOMMODATION-EMPLOYEES,"HOTELS, MOTELS, RESORTS",GPC
WALSALL COUNCIL,HTTP://OPENDATACOMMUNITIES.ORG/ID/METROPOLITAN-DISTRICT-COUNCIL/WALSALL,31/12/2019,ECONOMY & ENVIRONMENT,SP * NEXSTAND EU,01/10/2019,H59620191003YXKBVYOIP-1,11.75,YEI ESF FUNDING-STATIONERY & GENERAL SUPPLIES,COMPUTER SOFTWARE STORES,GPC
WALSALL COUNCIL,HTTP://OPENDATACOMMUNITIES.ORG/ID/METROPOLITAN-DISTRICT-COUNCIL/WALSALL,31/12/2019,ECONOMY & ENVIRONMENT,SP * NEXSTAND EU,01/10/2019,H59620191003YXKBVYOIP-2,11.75,YEI (IMPACT) PROGRAMME-STATIONERY & GENERAL SUPPLIES,COMPUTER SOFTWARE STORES,GPC
WALSALL COUNCIL,HTTP://OPENDATACOMMUNITIES.ORG/ID/METROPOLITAN-DISTRICT-COUNCIL/WALSALL,31/12/2019,RESOURCES & TRANSFORMATION,ARTHUR BRETT CATER,01/10/2019,H59620191003YYFJRBSRK-1,61.10,CA WALSALL WOOD PRIMARY SCHOOL-FOOD & DRINK SUPPLIES,MISCELLANEOUS FOOD STORES & CONVENIENCE STORES,GPC
WALSALL COUNCIL,HTTP://OPENDATACOMMUNITIES.ORG/ID/METROPOLITAN-DISTRICT-COUNCIL/WALSALL,31/12/2019,RESOURCES & TRANSFORMATION,CHICKEN JOES LTD,01/10/2019,H59620191003ZHQYNMBMC-1,39.94,CA COOPER JORDAN CE PRIMARY SC-FOOD & DRINK SUPPLIES,CATERERS,GPC
WALSALL COUNCIL,HTTP://OPENDATACOMMUNITIES.ORG/ID/METROPOLITAN-DISTRICT-COUNCIL/WALSALL,31/12/2019,RESOURCES & TRANSFORMATION,JOHAL DAIRIES LTD,01/10/2019,H59620191003ZXFDEQCEN-1,15.04,CA LEIGHSWOOD PRIMARY SCHOOL-FOOD & DRINK SUPPLIES,OTHER NONDURABLE GOODS,GPC
WALSALL COUNCIL,HTTP://OPENDATACOMMUNITIES.ORG/ID/METROPOLITAN-DISTRICT-COUNCIL/WALSALL,31/12/2019,ECONOMY & ENVIRONMENT,WWW.NECCONTRACT.COM,01/10/2019,H59620191004GCGLQJFKE-1,240.00,ENGINEERING MANAGEMENT-EXTERNAL TRAINING,MISCELLANEOUS PUBLISHING AND PRINTING,GPC
WALSALL COUNCIL,HTTP://OPENDATACOMMUNITIES.ORG/ID/METROPOLITAN-DISTRICT-COUNCIL/WALSALL,31/12/2019,CHILDRENS SERVICES (SCHOOLS),AMZNMKTPLACE AMAZON.CO.UK,01/10/2019,H59620191004OJOLNEOOR-1,32.49,E19-GENERAL MATERIALS,MISCELLANEOUS AND SPECIALTY RETAIL STORES,GPC
WALSALL COUNCIL,HTTP://OPENDATACOMMUNITIES.ORG/ID/METROPOLITAN-DISTRICT-COUNCIL/WALSALL,31/12/2019,RESOURCES & TRANSFORMATION,MERCURE BARONS COURT HO,01/10/2019,H59620191004UBHCPOWAW-1,500.00,BED & BREAKFAST PAYMENTS-HOTEL ACCOMMODATION-EMPLOYEES,"HOTELS, MOTELS, RESORTS",GPC
WALSALL COUNCIL,HTTP://OPENDATACOMMUNITIES.ORG/ID/METROPOLITAN-DISTRICT-COUNCIL/WALSALL,31/12/2019,CHILDRENS SERVICES,CURRYS ONLINE,01/10/2019,H59620191004WLMXYQUNX-1,-388.99,VIRTUAL SCHOOL - CENTRAL PUPIL-FURNITURE & EQUIPMENT,ELECTRONIC SALES,GPC
WALSALL COUNCIL,HTTP://OPENDATACOMMUNITIES.ORG/ID/METROPOLITAN-DISTRICT-COUNCIL/WALSALL,31/12/2019,ECONOMY & ENVIRONMENT,FOREIGN EXCHANGE FEE,02/10/2019,H59620191003LPEHFRXNY-1,0.25,NAG - TEMPORARY EXHIBITIONS-POSTAGES AND COURIER SERVICES,,GPC
WALSALL COUNCIL,HTTP://OPENDATACOMMUNITIES.ORG/ID/METROPOLITAN-DISTRICT-COUNCIL/WALSALL,31/12/2019,ECONOMY & ENVIRONMENT,GREGGS PLC,02/10/2019,H59620191004BHIHNYSQP-1,12.25,YEI (IMPACT) PROGRAMME-FOOD & DRINK SUPPLIES,"EATING PLACES, RESTAURANTS",GPC
WALSALL COUNCIL,HTTP://OPENDATACOMMUNITIES.ORG/ID/METROPOLITAN-DISTRICT-COUNCIL/WALSALL,31/12/2019,ECONOMY & ENVIRONMENT,GREGGS PLC,02/10/2019,H59620191004BHIHNYSQP-2,12.25,YEI ESF FUNDING-FOOD & DRINK SUPPLIES,"EATING PLACES, RESTAURANTS",GPC
WALSALL COUNCIL,HTTP://OPENDATACOMMUNITIES.ORG/ID/METROPOLITAN-DISTRICT-COUNCIL/WALSALL,31/12/2019,RESOURCES & TRANSFORMATION,HOTEL ON BOOKING.COM BEVE,02/10/2019,H59620191004BNVSRHDHO-1,225.00,YOUNG PERSONS HOMELESS SERVICE-HOTEL ACCOMMODATION-EMPLOYEES,"HOTELS, MOTELS, RESORTS",GPC
WALSALL COUNCIL,HTTP://OPENDATACOMMUNITIES.ORG/ID/METROPOLITAN-DISTRICT-COUNCIL/WALSALL,31/12/2019,RESOURCES & TRANSFORMATION,EXPEDIA 7480968840835,02/10/2019,H59620191004BPKNFCSLG-1,249.00,BED & BREAKFAST PAYMENTS-BED & BREAKFAST PAYMENTS,TRAVEL AGENCIES AND TOUR OPERATORS,GPC
WALSALL COUNCIL,HTTP://OPENDATACOMMUNITIES.ORG/ID/METROPOLITAN-DISTRICT-COUNCIL/WALSALL,31/12/2019,RESOURCES & TRANSFORMATION,BLAKEMORE FOODSERVICE,02/10/2019,H59620191004BUSJPVVMD-1,207.36,CA MOORCROFT WOOD-FOOD & DRINK SUPPLIES,CATERERS,GPC
WALSALL COUNCIL,HTTP://OPENDATACOMMUNITIES.ORG/ID/METROPOLITAN-DISTRICT-COUNCIL/WALSALL,31/12/2019,ECONOMY & ENVIRONMENT,WWW.BANNERUK.COM,02/10/2019,H59620191004CGDCEPOYO-1,136.94,NEW ART GALLERY - ADMIN-GENERAL MATERIALS,"STATIONERY, OFFICE SUPPLIES AND WRITING PAPER",GPC
WALSALL COUNCIL,HTTP://OPENDATACOMMUNITIES.ORG/ID/METROPOLITAN-DISTRICT-COUNCIL/WALSALL,31/12/2019,ECONOMY & ENVIRONMENT,BOCONLINE.CO.UK,02/10/2019,H59620191004CSEYVMGLT-1,11.52,WALSALL TOWN HALL-FURNITURE & EQUIPMENT,HOUSEHOLD APPLIANCE STORES,GPC
WALSALL COUNCIL,HTTP://OPENDATACOMMUNITIES.ORG/ID/METROPOLITAN-DISTRICT-COUNCIL/WALSALL,31/12/2019,CHILDRENS SERVICES,STRIKE ELECTRICAL DIST,02/10/2019,H59620191004DHKBJJQMP-1,66.60,"43A HILTON ROAD, WILLENHALL-OPERATIONAL MAINTENANCE",HOUSEHOLD APPLIANCE STORES,GPC
WALSALL COUNCIL,HTTP://OPENDATACOMMUNITIES.ORG/ID/METROPOLITAN-DISTRICT-COUNCIL/WALSALL,31/12/2019,RESOURCES & TRANSFORMATION,BLAKEMORE FOODSERVICE,02/10/2019,H59620191004DWCLHBQGU-1,149.88,CA BROWNHILLS WEST PRIMARY SCH-FOOD & DRINK SUPPLIES,CATERERS,GPC
WALSALL COUNCIL,HTTP://OPENDATACOMMUNITIES.ORG/ID/METROPOLITAN-DISTRICT-COUNCIL/WALSALL,31/12/2019,RESOURCES & TRANSFORMATION,BLAKEMORE FOODSERVICE,02/10/2019,H59620191004DWCLHBQGU-2,29.21,CA BROWNHILLS WEST PRIMARY SCH-FOOD & DRINK SUPPLIES,CATERERS,GPC
WALSALL COUNCIL,HTTP://OPENDATACOMMUNITIES.ORG/ID/METROPOLITAN-DISTRICT-COUNCIL/WALSALL,31/12/2019,RESOURCES & TRANSFORMATION,BLAKEMORE FOODSERVICE,02/10/2019,H59620191004EYLKMYWOI-1,52.64,CA ST MICHAELS C.E. PRIMARY SC-FOOD & DRINK SUPPLIES,CATERERS,GPC
WALSALL COUNCIL,HTTP://OPENDATACOMMUNITIES.ORG/ID/METROPOLITAN-DISTRICT-COUNCIL/WALSALL,31/12/2019,RESOURCES & TRANSFORMATION,BLAKEMORE FOODSERVICE,02/10/2019,H59620191004EYLKMYWOI-2,175.79,CA ST MICHAELS C.E. PRIMARY SC-FOOD & DRINK SUPPLIES,CATERERS,GPC
WALSALL COUNCIL,HTTP://OPENDATACOMMUNITIES.ORG/ID/METROPOLITAN-DISTRICT-COUNCIL/WALSALL,31/12/2019,ECONOMY & ENVIRONMENT,SWIMMING TEACHERS ASSO,02/10/2019,H59620191004FDIAFJRPE-1,180.00,BLOXWICH LEISURE CENTRE-GENERAL MATERIALS,OTHER RECREATION SERVICES,GPC
WALSALL COUNCIL,HTTP://OPENDATACOMMUNITIES.ORG/ID/METROPOLITAN-DISTRICT-COUNCIL/WALSALL,31/12/2019,RESOURCES & TRANSFORMATION,BLAKEMORE FOODSERVICE,02/10/2019,H59620191004FFLDLUHVI-1,14.77,CA BEACON PRIMARY SCHOOL-CATERING,CATERERS,GPC
WALSALL COUNCIL,HTTP://OPENDATACOMMUNITIES.ORG/ID/METROPOLITAN-DISTRICT-COUNCIL/WALSALL,31/12/2019,RESOURCES & TRANSFORMATION,BLAKEMORE FOODSERVICE,02/10/2019,H59620191004FIXWCYFBD-1,142.50,CA BUSILL JONES PRIMARY SCHOOL-CATERING,CATERERS,GPC
WALSALL COUNCIL,HTTP://OPENDATACOMMUNITIES.ORG/ID/METROPOLITAN-DISTRICT-COUNCIL/WALSALL,31/12/2019,CHILDRENS SERVICES,BESTWAY WALSALL,02/10/2019,H59620191004FVNKIJAND-1,147.87,GENERAL-GENERAL MATERIALS,DAIRY PRODUCTS STORES,GPC
WALSALL COUNCIL,HTTP://OPENDATACOMMUNITIES.ORG/ID/METROPOLITAN-DISTRICT-COUNCIL/WALSALL,31/12/2019,CHILDRENS SERVICES,TESCO STORES 6161,02/10/2019,H59620191004FYISMFWIN-1,5.35,FOOD TECHNOLOGY/HOSPITALITY-GENERAL MATERIALS,GROCERY STORES AND SUPERMARKETS,GPC
WALSALL COUNCIL,HTTP://OPENDATACOMMUNITIES.ORG/ID/METROPOLITAN-DISTRICT-COUNCIL/WALSALL,31/12/2019,CHILDRENS SERVICES,TESCO STORES 6161,02/10/2019,H59620191004FYISMFWIN-2,41.80,FOOD TECHNOLOGY/HOSPITALITY-GENERAL MATERIALS,GROCERY STORES AND SUPERMARKETS,GPC
WALSALL COUNCIL,HTTP://OPENDATACOMMUNITIES.ORG/ID/METROPOLITAN-DISTRICT-COUNCIL/WALSALL,31/12/2019,ECONOMY & ENVIRONMENT,TRINITY MIRROR PUBLISH,02/10/2019,H59620191004GEHXTYHMO-1,120.00,DEVELOPMENT MANAGEMENT-PUBLICATIONS/ORGANISATIONS-SUB,DIRECT MARKETING CONTINUITY SUBSCRIPTION MERCHANTS,GPC
WALSALL COUNCIL,HTTP://OPENDATACOMMUNITIES.ORG/ID/METROPOLITAN-DISTRICT-COUNCIL/WALSALL,31/12/2019,RESOURCES & TRANSFORMATION,OAKLAND,02/10/2019,H59620191004GEQXYCROK-1,50.00,WALSALL CRISIS SUPPORT SCHEME-HOTEL ACCOMMODATION-EMPLOYEES,"HOTELS, MOTELS, RESORTS",GPC
WALSALL COUNCIL,HTTP://OPENDATACOMMUNITIES.ORG/ID/METROPOLITAN-DISTRICT-COUNCIL/WALSALL,31/12/2019,RESOURCES & TRANSFORMATION,BLAKEMORE FOODSERVICE,02/10/2019,H59620191004GKBWSURZV-1,43.81,CA ST JOHNS C.E. PRIMARY SCHOO-FOOD & DRINK SUPPLIES,CATERERS,GPC
WALSALL COUNCIL,HTTP://OPENDATACOMMUNITIES.ORG/ID/METROPOLITAN-DISTRICT-COUNCIL/WALSALL,31/12/2019,RESOURCES & TRANSFORMATION,BLAKEMORE FOODSERVICE,02/10/2019,H59620191004GKBWSURZV-2,170.36,CA ST JOHNS C.E. PRIMARY SCHOO-FOOD & DRINK SUPPLIES,CATERERS,GPC
WALSALL COUNCIL,HTTP://OPENDATACOMMUNITIES.ORG/ID/METROPOLITAN-DISTRICT-COUNCIL/WALSALL,31/12/2019,RESOURCES & TRANSFORMATION,BLAKEMORE FOODSERVICE,02/10/2019,H59620191004GLGWHBUCR-1,210.91,CA KINGSHILL SCHOOL-FOOD & DRINK SUPPLIES,CATERERS,GPC
WALSALL COUNCIL,HTTP://OPENDATACOMMUNITIES.ORG/ID/METROPOLITAN-DISTRICT-COUNCIL/WALSALL,31/12/2019,RESOURCES & TRANSFORMATION,BLAKEMORE FOODSERVICE,02/10/2019,H59620191004GOGJTIKJM-1,-15.58,TOWN HALL RESTAURANT BISTRO-FOOD & DRINK SUPPLIES,CATERERS,GPC
WALSALL COUNCIL,HTTP://OPENDATACOMMUNITIES.ORG/ID/METROPOLITAN-DISTRICT-COUNCIL/WALSALL,31/12/2019,CHILDRENS SERVICES,WWW.TES.COM,02/10/2019,H59620191004GRQOPTSWM-1,5.00,ICT (COMPUTING)-GENERAL MATERIALS,"COLLEGES, UNIVERSITIES, PROFESSIONAL SCHOOLS",GPC
WALSALL COUNCIL,HTTP://OPENDATACOMMUNITIES.ORG/ID/METROPOLITAN-DISTRICT-COUNCIL/WALSALL,31/12/2019,ECONOMY & ENVIRONMENT,WWW.PLANNINGPORTAL.CO.,02/10/2019,H59620191004HHFYZGVBQ-1,234.00,REGENERATION MANAGEMENT-PUBLICITY & ADVERTISING (NOT S,OTHER BUSINESS SERVICES,GPC
WALSALL COUNCIL,HTTP://OPENDATACOMMUNITIES.ORG/ID/METROPOLITAN-DISTRICT-COUNCIL/WALSALL,31/12/2019,ECONOMY & ENVIRONMENT,WWW.PLANNINGPORTAL.CO.,02/10/2019,H59620191004HHFYZGVBQ-2,25.00,REGENERATION MANAGEMENT-PUBLICITY & ADVERTISING (NOT S,OTHER BUSINESS SERVICES,GPC
WALSALL COUNCIL,HTTP://OPENDATACOMMUNITIES.ORG/ID/METROPOLITAN-DISTRICT-COUNCIL/WALSALL,31/12/2019,ECONOMY & ENVIRONMENT,WILKO RETAIL LIMIT,02/10/2019,H59620191004HMGDGJTSO-1,6.40,DEPOT-GENERAL MATERIALS,HOUSEHOLD APPLIANCE STORES,GPC
WALSALL COUNCIL,HTTP://OPENDATACOMMUNITIES.ORG/ID/METROPOLITAN-DISTRICT-COUNCIL/WALSALL,31/12/2019,RESOURCES & TRANSFORMATION,BLAKEMORE FOODSERVICE,02/10/2019,H59620191004HMRSGRBQD-1,84.91,CA LINDENS PRIMARY SCHOOL-FOOD & DRINK SUPPLIES,CATERERS,GPC
WALSALL COUNCIL,HTTP://OPENDATACOMMUNITIES.ORG/ID/METROPOLITAN-DISTRICT-COUNCIL/WALSALL,31/12/2019,RESOURCES & TRANSFORMATION,BLAKEMORE FOODSERVICE,02/10/2019,H59620191004HMRSGRBQD-2,333.73,CA LINDENS PRIMARY SCHOOL-FOOD & DRINK SUPPLIES,CATERERS,GPC
WALSALL COUNCIL,HTTP://OPENDATACOMMUNITIES.ORG/ID/METROPOLITAN-DISTRICT-COUNCIL/WALSALL,31/12/2019,ECONOMY & ENVIRONMENT,TRAINLINE,02/10/2019,H59620191004IDYQBLOIN-1,39.66,NEW ART GALLERY - ADMIN-OFFICER/STAFF-PUBLIC TRANSPORT,PASSENGER RAILWAYS,GPC
WALSALL COUNCIL,HTTP://OPENDATACOMMUNITIES.ORG/ID/METROPOLITAN-DISTRICT-COUNCIL/WALSALL,31/12/2019,ECONOMY & ENVIRONMENT,TRAINLINE,02/10/2019,H59620191004IEYWQOXSP-1,116.85,NAG - EDUCATION FORMAL-OTHER/VOLUNTEERS-PUBLIC TRANSP,PASSENGER RAILWAYS,GPC
WALSALL COUNCIL,HTTP://OPENDATACOMMUNITIES.ORG/ID/METROPOLITAN-DISTRICT-COUNCIL/WALSALL,31/12/2019,RESOURCES & TRANSFORMATION,BLAKEMORE FOODSERVICE,02/10/2019,H59620191004IFQSDXLBT-1,125.94,CA ST GILES C.E. PRIMARY SCHOO-FOOD & DRINK SUPPLIES,CATERERS,GPC
WALSALL COUNCIL,HTTP://OPENDATACOMMUNITIES.ORG/ID/METROPOLITAN-DISTRICT-COUNCIL/WALSALL,31/12/2019,ECONOMY & ENVIRONMENT,AMZNMKTPLACE,02/10/2019,H59620191004IJESINOHN-1,80.24,ARBORETUM-OPERATIONAL MAINTENANCE,MISCELLANEOUS AND SPECIALTY RETAIL STORES,GPC
WALSALL COUNCIL,HTTP://OPENDATACOMMUNITIES.ORG/ID/METROPOLITAN-DISTRICT-COUNCIL/WALSALL,31/12/2019,RESOURCES & TRANSFORMATION,BLAKEMORE FOODSERVICE,02/10/2019,H59620191004IXWYJYILG-1,3.66,CA OLD HALL SPECIAL SCHOOL-CATERING,CATERERS,GPC
WALSALL COUNCIL,HTTP://OPENDATACOMMUNITIES.ORG/ID/METROPOLITAN-DISTRICT-COUNCIL/WALSALL,31/12/2019,CHILDRENS SERVICES,AMZNMKTPLACE,02/10/2019,H59620191004JDWOJQQQU-1,15.16,BENTLEY WEST PRIMARY SCHOOL-OPERATIONAL MAINTENANCE,MISCELLANEOUS AND SPECIALTY RETAIL STORES,GPC
WALSALL COUNCIL,HTTP://OPENDATACOMMUNITIES.ORG/ID/METROPOLITAN-DISTRICT-COUNCIL/WALSALL,31/12/2019,CHILDRENS SERVICES,WWW.BARRBEACON.WALSALL,02/10/2019,H59620191004JHTCPXYGU-1,15.00,REDRUTH ROAD-FOOD & DRINK SUPPLIES,"SCHOOLS, ELEMENTARY AND SECONDARY",GPC
WALSALL COUNCIL,HTTP://OPENDATACOMMUNITIES.ORG/ID/METROPOLITAN-DISTRICT-COUNCIL/WALSALL,31/12/2019,RESOURCES & TRANSFORMATION,BLAKEMORE FOODSERVICE,02/10/2019,H59620191004JLOMHPQES-1,102.58,CA MEADOW VIEW JMI PRIMARY SCH-FOOD & DRINK SUPPLIES,CATERERS,GPC
WALSALL COUNCIL,HTTP://OPENDATACOMMUNITIES.ORG/ID/METROPOLITAN-DISTRICT-COUNCIL/WALSALL,31/12/2019,RESOURCES & TRANSFORMATION,BLAKEMORE FOODSERVICE,02/10/2019,H59620191004JLOMHPQES-2,322.65,CA MEADOW VIEW JMI PRIMARY SCH-FOOD & DRINK SUPPLIES,CATERERS,GPC
WALSALL COUNCIL,HTTP://OPENDATACOMMUNITIES.ORG/ID/METROPOLITAN-DISTRICT-COUNCIL/WALSALL,31/12/2019,RESOURCES & TRANSFORMATION,BLAKEMORE FOODSERVICE,02/10/2019,H59620191004JMFCUXEPO-1,322.16,CA ELMORE GREEN PRIMARY SCHOOL-FOOD & DRINK SUPPLIES,CATERERS,GPC
WALSALL COUNCIL,HTTP://OPENDATACOMMUNITIES.ORG/ID/METROPOLITAN-DISTRICT-COUNCIL/WALSALL,31/12/2019,RESOURCES & TRANSFORMATION,BLAKEMORE FOODSERVICE,02/10/2019,H59620191004JMFCUXEPO-2,43.76,CA ELMORE GREEN PRIMARY SCHOOL-FOOD & DRINK SUPPLIES,CATERERS,GPC
WALSALL COUNCIL,HTTP://OPENDATACOMMUNITIES.ORG/ID/METROPOLITAN-DISTRICT-COUNCIL/WALSALL,31/12/2019,CHILDRENS SERVICES,NISA LOCAL,02/10/2019,H59620191004LGKBSRYKD-1,9.07,REDRUTH ROAD-FOOD & DRINK SUPPLIES,MISCELLANEOUS FOOD STORES & CONVENIENCE STORES,GPC
WALSALL COUNCIL,HTTP://OPENDATACOMMUNITIES.ORG/ID/METROPOLITAN-DISTRICT-COUNCIL/WALSALL,31/12/2019,CHILDRENS SERVICES (SCHOOLS),BT BILL PAYMENT 2,02/10/2019,H59620191004LLVJLPOMJ-1,102.74,ADMINISTRATIVE SUPPLIES-TELEPHONES MOBILE/PAGERS-TELEP,TELECOMMUNICATION EQUIPMENT & SALES,GPC
WALSALL COUNCIL,HTTP://OPENDATACOMMUNITIES.ORG/ID/METROPOLITAN-DISTRICT-COUNCIL/WALSALL,31/12/2019,CHILDRENS SERVICES,WWW.TES.COM,02/10/2019,H59620191004LTASHGXGA-1,4.00,ICT (COMPUTING)-GENERAL MATERIALS,"COLLEGES, UNIVERSITIES, PROFESSIONAL SCHOOLS",GPC
WALSALL COUNCIL,HTTP://OPENDATACOMMUNITIES.ORG/ID/METROPOLITAN-DISTRICT-COUNCIL/WALSALL,31/12/2019,RESOURCES & TRANSFORMATION,BLAKEMORE FOODSERVICE,02/10/2019,H59620191004MLDLGIXWF-1,82.01,CA RUSHALL JMI SCHOOL-FOOD & DRINK SUPPLIES,CATERERS,GPC
WALSALL COUNCIL,HTTP://OPENDATACOMMUNITIES.ORG/ID/METROPOLITAN-DISTRICT-COUNCIL/WALSALL,31/12/2019,RESOURCES & TRANSFORMATION,BLAKEMORE FOODSERVICE,02/10/2019,H59620191004MTBMOMGOQ-1,210.96,CA WHITEHALL JUNIOR COMMUNITY -FOOD & DRINK SUPPLIES,CATERERS,GPC
WALSALL COUNCIL,HTTP://OPENDATACOMMUNITIES.ORG/ID/METROPOLITAN-DISTRICT-COUNCIL/WALSALL,31/12/2019,RESOURCES & TRANSFORMATION,BLAKEMORE FOODSERVICE,02/10/2019,H59620191004MTNWCULPE-1,125.55,CA OLD HALL SPECIAL SCHOOL-FOOD & DRINK SUPPLIES,CATERERS,GPC
WALSALL COUNCIL,HTTP://OPENDATACOMMUNITIES.ORG/ID/METROPOLITAN-DISTRICT-COUNCIL/WALSALL,31/12/2019,ECONOMY & ENVIRONMENT,MACHINE MART LTD,02/10/2019,H59620191004NBTRUQIEQ-1,11.98,INFRASTRUCTURE MAINTENANCE-GENERAL MATERIALS,HOUSEHOLD APPLIANCE STORES,GPC
WALSALL COUNCIL,HTTP://OPENDATACOMMUNITIES.ORG/ID/METROPOLITAN-DISTRICT-COUNCIL/WALSALL,31/12/2019,CHILDRENS SERVICES,AMZNMKTPLACE,02/10/2019,H59620191004NDEYUBLWN-1,59.99,ICT LEARNING RESOURCES-GENERAL MATERIALS,MISCELLANEOUS AND SPECIALTY RETAIL STORES,GPC
WALSALL COUNCIL,HTTP://OPENDATACOMMUNITIES.ORG/ID/METROPOLITAN-DISTRICT-COUNCIL/WALSALL,31/12/2019,RESOURCES & TRANSFORMATION,BLAKEMORE FOODSERVICE,02/10/2019,H59620191004NFYPRWKGC-1,12.83,CA ST MICHAELS C.E. PRIMARY SC-FOOD & DRINK SUPPLIES,CATERERS,GPC
WALSALL COUNCIL,HTTP://OPENDATACOMMUNITIES.ORG/ID/METROPOLITAN-DISTRICT-COUNCIL/WALSALL,31/12/2019,RESOURCES & TRANSFORMATION,BLAKEMORE FOODSERVICE,02/10/2019,H59620191004NISDSQMSP-1,356.31,CA OLD HALL SPECIAL SCHOOL-FOOD & DRINK SUPPLIES,CATERERS,GPC
WALSALL COUNCIL,HTTP://OPENDATACOMMUNITIES.ORG/ID/METROPOLITAN-DISTRICT-COUNCIL/WALSALL,31/12/2019,RESOURCES & TRANSFORMATION,TRAVELODGE GB0000,02/10/2019,H59620191004NKWMHJMIT-1,203.00,BED & BREAKFAST PAYMENTS-BED & BREAKFAST PAYMENTS,TRAVELODGE,GPC
WALSALL COUNCIL,HTTP://OPENDATACOMMUNITIES.ORG/ID/METROPOLITAN-DISTRICT-COUNCIL/WALSALL,31/12/2019,CHILDRENS SERVICES,REGISTRATION SERVICES,02/10/2019,H59620191004OBVKNNMQF-1,11.00,LOOKED AFTER CHILDRENS SOCIAL -MISC FEES AND EXPENSES,OTHER RECREATION SERVICES,GPC
WALSALL COUNCIL,HTTP://OPENDATACOMMUNITIES.ORG/ID/METROPOLITAN-DISTRICT-COUNCIL/WALSALL,31/12/2019,CHILDRENS SERVICES,WM MORRISONS STORE,02/10/2019,H59620191004PPTTEILYO-1,3.20,57 LICHFIELD ROAD-CLEANING MATERIALS,GROCERY STORES AND SUPERMARKETS,GPC
WALSALL COUNCIL,HTTP://OPENDATACOMMUNITIES.ORG/ID/METROPOLITAN-DISTRICT-COUNCIL/WALSALL,31/12/2019,CHILDRENS SERVICES,WM MORRISONS STORE,02/10/2019,H59620191004PPTTEILYO-2,5.50,57 LICHFIELD ROAD-FOOD & DRINK SUPPLIES,GROCERY STORES AND SUPERMARKETS,GPC
WALSALL COUNCIL,HTTP://OPENDATACOMMUNITIES.ORG/ID/METROPOLITAN-DISTRICT-COUNCIL/WALSALL,31/12/2019,ECONOMY & ENVIRONMENT,POUNDLAND LTD,02/10/2019,H59620191004QFMDIFNBD-1,8.10,YEI ESF FUNDING-FOOD & DRINK SUPPLIES,DISCOUNT STORES,GPC
WALSALL COUNCIL,HTTP://OPENDATACOMMUNITIES.ORG/ID/METROPOLITAN-DISTRICT-COUNCIL/WALSALL,31/12/2019,ECONOMY & ENVIRONMENT,POUNDLAND LTD,02/10/2019,H59620191004QFMDIFNBD-2,8.10,YEI (IMPACT) PROGRAMME-FOOD & DRINK SUPPLIES,DISCOUNT STORES,GPC
WALSALL COUNCIL,HTTP://OPENDATACOMMUNITIES.ORG/ID/METROPOLITAN-DISTRICT-COUNCIL/WALSALL,31/12/2019,CHILDRENS SERVICES (SCHOOLS),WM MORRISONS STORE,02/10/2019,H59620191004QIQEISKAD-1,5.95,CADMUS FEDERATION-FREE STAFF MEALS-EMPLOYEES,GROCERY STORES AND SUPERMARKETS,GPC
WALSALL COUNCIL,HTTP://OPENDATACOMMUNITIES.ORG/ID/METROPOLITAN-DISTRICT-COUNCIL/WALSALL,31/12/2019,CHILDRENS SERVICES,WWW.BARRBEACON.WALSALL,02/10/2019,H59620191004QKMUFBJAA-1,15.00,REDRUTH ROAD-FOOD & DRINK SUPPLIES,"SCHOOLS, ELEMENTARY AND SECONDARY",GPC
WALSALL COUNCIL,HTTP://OPENDATACOMMUNITIES.ORG/ID/METROPOLITAN-DISTRICT-COUNCIL/WALSALL,31/12/2019,RESOURCES & TRANSFORMATION,BLAKEMORE FOODSERVICE,02/10/2019,H59620191004QWBUSRUFN-1,16.07,CA BUSILL JONES PRIMARY SCHOOL-FOOD & DRINK SUPPLIES,CATERERS,GPC
WALSALL COUNCIL,HTTP://OPENDATACOMMUNITIES.ORG/ID/METROPOLITAN-DISTRICT-COUNCIL/WALSALL,31/12/2019,RESOURCES & TRANSFORMATION,BLAKEMORE FOODSERVICE,02/10/2019,H59620191004RBGEHWFJB-1,24.61,CA WHITEHALL JUNIOR COMMUNITY -FOOD & DRINK SUPPLIES,CATERERS,GPC
WALSALL COUNCIL,HTTP://OPENDATACOMMUNITIES.ORG/ID/METROPOLITAN-DISTRICT-COUNCIL/WALSALL,31/12/2019,RESOURCES & TRANSFORMATION,BLAKEMORE FOODSERVICE,02/10/2019,H59620191004SAIYXBFRG-1,26.50,CA ELMWOOD SPECIAL SCHOOL-FOOD & DRINK SUPPLIES,CATERERS,GPC
WALSALL COUNCIL,HTTP://OPENDATACOMMUNITIES.ORG/ID/METROPOLITAN-DISTRICT-COUNCIL/WALSALL,31/12/2019,RESOURCES & TRANSFORMATION,BLAKEMORE FOODSERVICE,02/10/2019,H59620191004SAIYXBFRG-2,116.13,CA ELMWOOD SPECIAL SCHOOL-FOOD & DRINK SUPPLIES,CATERERS,GPC
WALSALL COUNCIL,HTTP://OPENDATACOMMUNITIES.ORG/ID/METROPOLITAN-DISTRICT-COUNCIL/WALSALL,31/12/2019,ECONOMY & ENVIRONMENT,HEATON CHAPEL SST,02/10/2019,H59620191004SATDZQDOR-1,102.20,NEW ART GALLERY - ADMIN-OFFICER/STAFF-PUBLIC TRANSPORT,PASSENGER RAILWAYS,GPC
WALSALL COUNCIL,HTTP://OPENDATACOMMUNITIES.ORG/ID/METROPOLITAN-DISTRICT-COUNCIL/WALSALL,31/12/2019,ECONOMY & ENVIRONMENT,WILKO RETAIL LIMIT,02/10/2019,H59620191004SHUFHERSQ-1,9.50,STREETLY LIBRARY-GENERAL MATERIALS,HOUSEHOLD APPLIANCE STORES,GPC
WALSALL COUNCIL,HTTP://OPENDATACOMMUNITIES.ORG/ID/METROPOLITAN-DISTRICT-COUNCIL/WALSALL,31/12/2019,ECONOMY & ENVIRONMENT,MACHINE MART LTD,02/10/2019,H59620191004STCPKCSNK-1,27.59,INFRASTRUCTURE MAINTENANCE-GENERAL MATERIALS,HOUSEHOLD APPLIANCE STORES,GPC
WALSALL COUNCIL,HTTP://OPENDATACOMMUNITIES.ORG/ID/METROPOLITAN-DISTRICT-COUNCIL/WALSALL,31/12/2019,CHILDRENS SERVICES (SCHOOLS),AMZNMKTPLACE AMAZON.CO.UK,02/10/2019,H59620191004SUOVYVJWO-1,69.50,CHUCKERY PRIMARY SCHOOL-OPERATIONAL MAINTENANCE,MISCELLANEOUS AND SPECIALTY RETAIL STORES,GPC
WALSALL COUNCIL,HTTP://OPENDATACOMMUNITIES.ORG/ID/METROPOLITAN-DISTRICT-COUNCIL/WALSALL,31/12/2019,RESOURCES & TRANSFORMATION,BLAKEMORE FOODSERVICE,02/10/2019,H59620191004SXJCRFCNN-1,183.57,CA RADLEYS PRIMARY SCHOOL-FOOD & DRINK SUPPLIES,CATERERS,GPC
WALSALL COUNCIL,HTTP://OPENDATACOMMUNITIES.ORG/ID/METROPOLITAN-DISTRICT-COUNCIL/WALSALL,31/12/2019,ECONOMY & ENVIRONMENT,ENGINEERING PLASTIC SU,02/10/2019,H59620191004SXTNJKYKV-1,648.00,TRAFFIC MANAGEMENT-STATIONERY & GENERAL SUPPLIES,MISCELLANEOUS AND SPECIALTY RETAIL STORES,GPC
WALSALL COUNCIL,HTTP://OPENDATACOMMUNITIES.ORG/ID/METROPOLITAN-DISTRICT-COUNCIL/WALSALL,31/12/2019,RESOURCES & TRANSFORMATION,BLAKEMORE FOODSERVICE,02/10/2019,H59620191004TGSSADLPQ-1,72.54,CA COOPER JORDAN CE PRIMARY SC-FOOD & DRINK SUPPLIES,CATERERS,GPC
WALSALL COUNCIL,HTTP://OPENDATACOMMUNITIES.ORG/ID/METROPOLITAN-DISTRICT-COUNCIL/WALSALL,31/12/2019,RESOURCES & TRANSFORMATION,BLAKEMORE FOODSERVICE,02/10/2019,H59620191004TGSSADLPQ-2,58.42,CA COOPER JORDAN CE PRIMARY SC-FOOD & DRINK SUPPLIES,CATERERS,GPC
WALSALL COUNCIL,HTTP://OPENDATACOMMUNITIES.ORG/ID/METROPOLITAN-DISTRICT-COUNCIL/WALSALL,31/12/2019,CHILDRENS SERVICES,TRAINLINE.COM,02/10/2019,H59620191004TKXXMQCGU-1,66.92,TRANSFORMATION-LOOKED AFTER CH-OFFICER/STAFF-PUBLIC TRANSPORT,PASSENGER RAILWAYS,GPC
WALSALL COUNCIL,HTTP://OPENDATACOMMUNITIES.ORG/ID/METROPOLITAN-DISTRICT-COUNCIL/WALSALL,31/12/2019,RESOURCES & TRANSFORMATION,BLAKEMORE FOODSERVICE,02/10/2019,H59620191004TNQSZQMRT-1,58.43,CA BUSILL JONES PRIMARY SCHOOL-CATERING,CATERERS,GPC
WALSALL COUNCIL,HTTP://OPENDATACOMMUNITIES.ORG/ID/METROPOLITAN-DISTRICT-COUNCIL/WALSALL,31/12/2019,ECONOMY & ENVIRONMENT,BESTWAY WALSALL,02/10/2019,H59620191004TTBJJFSTO-1,52.90,LEATHER MUSEUM-GENERAL MATERIALS,DAIRY PRODUCTS STORES,GPC
WALSALL COUNCIL,HTTP://OPENDATACOMMUNITIES.ORG/ID/METROPOLITAN-DISTRICT-COUNCIL/WALSALL,31/12/2019,RESOURCES & TRANSFORMATION,BLAKEMORE FOODSERVICE,02/10/2019,H59620191004UAELQRQZL-1,43.81,CA LEIGHSWOOD PRIMARY SCHOOL-FOOD & DRINK SUPPLIES,CATERERS,GPC
WALSALL COUNCIL,HTTP://OPENDATACOMMUNITIES.ORG/ID/METROPOLITAN-DISTRICT-COUNCIL/WALSALL,31/12/2019,RESOURCES & TRANSFORMATION,BLAKEMORE FOODSERVICE,02/10/2019,H59620191004UAELQRQZL-2,388.00,CA LEIGHSWOOD PRIMARY SCHOOL-FOOD & DRINK SUPPLIES,CATERERS,GPC
WALSALL COUNCIL,HTTP://OPENDATACOMMUNITIES.ORG/ID/METROPOLITAN-DISTRICT-COUNCIL/WALSALL,31/12/2019,RESOURCES & TRANSFORMATION,BLAKEMORE FOODSERVICE,02/10/2019,H59620191004UQXBDRVGS-1,18.31,CA KINGSHILL SCHOOL-FOOD & DRINK SUPPLIES,CATERERS,GPC
WALSALL COUNCIL,HTTP://OPENDATACOMMUNITIES.ORG/ID/METROPOLITAN-DISTRICT-COUNCIL/WALSALL,31/12/2019,RESOURCES & TRANSFORMATION,BLAKEMORE FOODSERVICE,02/10/2019,H59620191004UWMSUXGHD-1,107.29,CA ELMORE GREEN PRIMARY SCHOOL-FOOD & DRINK SUPPLIES,CATERERS,GPC
WALSALL COUNCIL,HTTP://OPENDATACOMMUNITIES.ORG/ID/METROPOLITAN-DISTRICT-COUNCIL/WALSALL,31/12/2019,RESOURCES & TRANSFORMATION,BLAKEMORE FOODSERVICE,02/10/2019,H59620191004VDHIXOBNX-1,43.81,CA WATLING STREET PRIMARY SCHO-FOOD & DRINK SUPPLIES,CATERERS,GPC
WALSALL COUNCIL,HTTP://OPENDATACOMMUNITIES.ORG/ID/METROPOLITAN-DISTRICT-COUNCIL/WALSALL,31/12/2019,RESOURCES & TRANSFORMATION,BLAKEMORE FOODSERVICE,02/10/2019,H59620191004VDHIXOBNX-2,140.66,CA WATLING STREET PRIMARY SCHO-FOOD & DRINK SUPPLIES,CATERERS,GPC
WALSALL COUNCIL,HTTP://OPENDATACOMMUNITIES.ORG/ID/METROPOLITAN-DISTRICT-COUNCIL/WALSALL,31/12/2019,RESOURCES & TRANSFORMATION,BLAKEMORE FOODSERVICE,02/10/2019,H59620191004VTDONSBYQ-1,15.84,CA OLD HALL SPECIAL SCHOOL-FOOD & DRINK SUPPLIES,CATERERS,GPC
WALSALL COUNCIL,HTTP://OPENDATACOMMUNITIES.ORG/ID/METROPOLITAN-DISTRICT-COUNCIL/WALSALL,31/12/2019,RESOURCES & TRANSFORMATION,BLAKEMORE FOODSERVICE,02/10/2019,H59620191004VZPYZOILI-1,224.43,CA BEACON PRIMARY SCHOOL-FOOD & DRINK SUPPLIES,CATERERS,GPC
WALSALL COUNCIL,HTTP://OPENDATACOMMUNITIES.ORG/ID/METROPOLITAN-DISTRICT-COUNCIL/WALSALL,31/12/2019,RESOURCES & TRANSFORMATION,BLAKEMORE FOODSERVICE,02/10/2019,H59620191004XBHRLNQIT-1,23.44,CA OAKWOOD SPECIAL SCHOOL-FOOD & DRINK SUPPLIES,CATERERS,GPC
WALSALL COUNCIL,HTTP://OPENDATACOMMUNITIES.ORG/ID/METROPOLITAN-DISTRICT-COUNCIL/WALSALL,31/12/2019,RESOURCES & TRANSFORMATION,BLAKEMORE FOODSERVICE,02/10/2019,H59620191004XBHRLNQIT-2,100.84,CA OAKWOOD SPECIAL SCHOOL-FOOD & DRINK SUPPLIES,CATERERS,GPC
WALSALL COUNCIL,HTTP://OPENDATACOMMUNITIES.ORG/ID/METROPOLITAN-DISTRICT-COUNCIL/WALSALL,31/12/2019,RESOURCES & TRANSFORMATION,BLAKEMORE FOODSERVICE,02/10/2019,H59620191004XDWIVBYDA-1,26.20,CA RUSHALL JMI SCHOOL-FOOD & DRINK SUPPLIES,CATERERS,GPC
WALSALL COUNCIL,HTTP://OPENDATACOMMUNITIES.ORG/ID/METROPOLITAN-DISTRICT-COUNCIL/WALSALL,31/12/2019,ECONOMY & ENVIRONMENT,SWIMMING TEACHERS ASSO,02/10/2019,H59620191004XOQHDBYOL-1,60.00,BLOXWICH LEISURE CENTRE-GENERAL MATERIALS,OTHER RECREATION SERVICES,GPC
WALSALL COUNCIL,HTTP://OPENDATACOMMUNITIES.ORG/ID/METROPOLITAN-DISTRICT-COUNCIL/WALSALL,31/12/2019,RESOURCES & TRANSFORMATION,BLAKEMORE FOODSERVICE,02/10/2019,H59620191004XTOVJYCSC-1,412.13,CA BARCROFT D/C-FOOD & DRINK SUPPLIES,CATERERS,GPC
WALSALL COUNCIL,HTTP://OPENDATACOMMUNITIES.ORG/ID/METROPOLITAN-DISTRICT-COUNCIL/WALSALL,31/12/2019,ECONOMY & ENVIRONMENT,WWW.ALDERCROSS.COM,02/10/2019,H59620191004XUOFIHDTQ-1,450.00,REGENERATION MANAGEMENT-CONSULTANTS FEES - CORPORATE,"CONSULTING, MANAGEMENT, AND PR SERVICES",GPC
WALSALL COUNCIL,HTTP://OPENDATACOMMUNITIES.ORG/ID/METROPOLITAN-DISTRICT-COUNCIL/WALSALL,31/12/2019,RESOURCES & TRANSFORMATION,BLAKEMORE FOODSERVICE,02/10/2019,H59620191004XUTRISACO-1,30.54,CA KINGSHILL SCHOOL-FOOD & DRINK SUPPLIES,CATERERS,GPC
WALSALL COUNCIL,HTTP://OPENDATACOMMUNITIES.ORG/ID/METROPOLITAN-DISTRICT-COUNCIL/WALSALL,31/12/2019,CHILDRENS SERVICES,FINDEL EDUCATION,02/10/2019,H59620191004YBVVYUZJJ-1,482.80,CURRICULUM STOCK-GENERAL MATERIALS,OTHER DIRECT MARKETING-OTHER DIRECT MARKETERS,GPC
WALSALL COUNCIL,HTTP://OPENDATACOMMUNITIES.ORG/ID/METROPOLITAN-DISTRICT-COUNCIL/WALSALL,31/12/2019,ECONOMY & ENVIRONMENT,AMZNMKTPLACE,02/10/2019,H59620191004YGTYDRMKN-1,6.99,CENTRALISED STATIONARY-STATIONERY & GENERAL SUPPLIES,MISCELLANEOUS AND SPECIALTY RETAIL STORES,GPC
WALSALL COUNCIL,HTTP://OPENDATACOMMUNITIES.ORG/ID/METROPOLITAN-DISTRICT-COUNCIL/WALSALL,31/12/2019,ECONOMY & ENVIRONMENT,AMZNMKTPLACE,02/10/2019,H59620191004YGTYDRMKN-2,49.83,MS-EXTERNAL FUNDING TEAM-FURNITURE & EQUIPMENT,MISCELLANEOUS AND SPECIALTY RETAIL STORES,GPC
WALSALL COUNCIL,HTTP://OPENDATACOMMUNITIES.ORG/ID/METROPOLITAN-DISTRICT-COUNCIL/WALSALL,31/12/2019,RESOURCES & TRANSFORMATION,AMZNMKTPLACE,02/10/2019,H59620191004YGTYDRMKN-3,99.66,PREVENT GRANT-FURNITURE & EQUIPMENT,MISCELLANEOUS AND SPECIALTY RETAIL STORES,GPC
WALSALL COUNCIL,HTTP://OPENDATACOMMUNITIES.ORG/ID/METROPOLITAN-DISTRICT-COUNCIL/WALSALL,31/12/2019,CHILDRENS SERVICES,WWW.PARENTMAIL.CO.,02/10/2019,H59620191004YRKYPJQMY-1,15.00,REDRUTH ROAD-FOOD & DRINK SUPPLIES,OTHER SCHOOLS AND EDUCATIONAL SERVICES,GPC
WALSALL COUNCIL,HTTP://OPENDATACOMMUNITIES.ORG/ID/METROPOLITAN-DISTRICT-COUNCIL/WALSALL,31/12/2019,RESOURCES & TRANSFORMATION,PATISON SERVICE AND REP,02/10/2019,H59620191005ESGAEVXLH-1,3.00,ACCOMMODATION SERVICES MANAGEM-CLOTHING & LAUNDRY,"HAT CLEANING SHOPS, SHOE REPAIR SHOPS, SHOE SHINE ",GPC
WALSALL COUNCIL,HTTP://OPENDATACOMMUNITIES.ORG/ID/METROPOLITAN-DISTRICT-COUNCIL/WALSALL,31/12/2019,CHILDRENS SERVICES,AMZNMKTPLACE AMAZON.CO.UK,02/10/2019,H59620191005FJCLVWLYF-1,21.98,ICT-GENERAL MATERIALS,MISCELLANEOUS AND SPECIALTY RETAIL STORES,GPC
WALSALL COUNCIL,HTTP://OPENDATACOMMUNITIES.ORG/ID/METROPOLITAN-DISTRICT-COUNCIL/WALSALL,31/12/2019,CHILDRENS SERVICES,HUB BY PREMIER INN 496,02/10/2019,H59620191005KNJFRNCGQ-1,235.50,SEXUALLY HARMFUL BEHAVIOUR-HOTEL ACCOMMODATION-EMPLOYEES,PREMIER INN,GPC
WALSALL COUNCIL,HTTP://OPENDATACOMMUNITIES.ORG/ID/METROPOLITAN-DISTRICT-COUNCIL/WALSALL,31/12/2019,ECONOMY & ENVIRONMENT,PREMIER INN44533745,02/10/2019,H59620191005PYBNKVORA-1,70.00,NAG - EDUCATION FORMAL-OTHER EXPENSES-EXPENSES,PREMIER INN,GPC
WALSALL COUNCIL,HTTP://OPENDATACOMMUNITIES.ORG/ID/METROPOLITAN-DISTRICT-COUNCIL/WALSALL,31/12/2019,RESOURCES & TRANSFORMATION,ARTHUR BRETT CATER,02/10/2019,H59620191005SSOLLYCEQ-1,23.68,TOWN HALL RESTAURANT BISTRO-FOOD & DRINK SUPPLIES,MISCELLANEOUS FOOD STORES & CONVENIENCE STORES,GPC
WALSALL COUNCIL,HTTP://OPENDATACOMMUNITIES.ORG/ID/METROPOLITAN-DISTRICT-COUNCIL/WALSALL,31/12/2019,ECONOMY & ENVIRONMENT,B & Q 1276,02/10/2019,H59620191005VMKJRUVFD-1,42.30,INFRASTRUCTURE MAINTENANCE-GENERAL MATERIALS,HOME SUPPLY WAREHOUSE STORES,GPC
WALSALL COUNCIL,HTTP://OPENDATACOMMUNITIES.ORG/ID/METROPOLITAN-DISTRICT-COUNCIL/WALSALL,31/12/2019,CHILDRENS SERVICES,ALDI 90 772,03/10/2019,H59620191005CVLVGBIIT-1,2.78,PELSALL VILLAGE SCHOOL-FOOD & DRINK SUPPLIES,GROCERY STORES AND SUPERMARKETS,GPC
WALSALL COUNCIL,HTTP://OPENDATACOMMUNITIES.ORG/ID/METROPOLITAN-DISTRICT-COUNCIL/WALSALL,31/12/2019,CHILDRENS SERVICES (SCHOOLS),TP WALSALL BM,03/10/2019,H59620191005CXGWWVNNW-1,48.00,PALFREY JUNIOR SCHOOL-GENERAL MATERIALS,LUMBER & BUILDING MATERIALS STORES,GPC
WALSALL COUNCIL,HTTP://OPENDATACOMMUNITIES.ORG/ID/METROPOLITAN-DISTRICT-COUNCIL/WALSALL,31/12/2019,CHILDRENS SERVICES,AMAZON.CO.UK*MO7J43LR4,03/10/2019,H59620191005DBSNYJBSU-1,39.95,TRANSITION AND LEAVING CARE PL-FURNITURE & EQUIPMENT,OTHER DIRECT MARKETING-OTHER DIRECT MARKETERS,GPC
WALSALL COUNCIL,HTTP://OPENDATACOMMUNITIES.ORG/ID/METROPOLITAN-DISTRICT-COUNCIL/WALSALL,31/12/2019,CHILDRENS SERVICES,WALSALL STN T/O,03/10/2019,H59620191005ESGQFWXGB-1,48.90,LOOKED AFTER CHILDRENS SOCIAL -SECTION 34 (CONTACT),PASSENGER RAILWAYS,GPC
WALSALL COUNCIL,HTTP://OPENDATACOMMUNITIES.ORG/ID/METROPOLITAN-DISTRICT-COUNCIL/WALSALL,31/12/2019,CHILDRENS SERVICES,WM MORRISONS STORE,03/10/2019,H59620191005ESUKJVIGR-1,43.35,"43A HILTON ROAD, WILLENHALL-FOOD & DRINK SUPPLIES",GROCERY STORES AND SUPERMARKETS,GPC
WALSALL COUNCIL,HTTP://OPENDATACOMMUNITIES.ORG/ID/METROPOLITAN-DISTRICT-COUNCIL/WALSALL,31/12/2019,CHILDRENS SERVICES,WM MORRISONS STORE,03/10/2019,H59620191005ESUKJVIGR-2,145.10,"43A HILTON ROAD, WILLENHALL-FOOD & DRINK SUPPLIES",GROCERY STORES AND SUPERMARKETS,GPC
WALSALL COUNCIL,HTTP://OPENDATACOMMUNITIES.ORG/ID/METROPOLITAN-DISTRICT-COUNCIL/WALSALL,31/12/2019,RESOURCES & TRANSFORMATION,WP ENGINE,03/10/2019,H59620191005EUSBXGXXM-1,283.73,APPLICATIONS-COMPUTER EQUIPMENT AND SUPPLIE,"COMPUTER PROGRAM, SYSTEM DESIGN",GPC
WALSALL COUNCIL,HTTP://OPENDATACOMMUNITIES.ORG/ID/METROPOLITAN-DISTRICT-COUNCIL/WALSALL,31/12/2019,RESOURCES & TRANSFORMATION,TRAVELODGE GB0000,03/10/2019,H59620191005EWEYGQHYT-1,522.00,ACCOMMODATION SERVICES MANAGEM-BED & BREAKFAST PAYMENTS,TRAVELODGE,GPC
WALSALL COUNCIL,HTTP://OPENDATACOMMUNITIES.ORG/ID/METROPOLITAN-DISTRICT-COUNCIL/WALSALL,31/12/2019,ECONOMY & ENVIRONMENT,TESCO STORES 6161,03/10/2019,H59620191005GCNMUKCSV-1,18.40,LEATHER MUSEUM-FOOD & DRINK SUPPLIES,GROCERY STORES AND SUPERMARKETS,GPC
WALSALL COUNCIL,HTTP://OPENDATACOMMUNITIES.ORG/ID/METROPOLITAN-DISTRICT-COUNCIL/WALSALL,31/12/2019,CHILDRENS SERVICES,B&M RETAIL LTD,03/10/2019,H59620191005HKGBKANOB-1,15.71,CONTACT SESSIONAL STAFF-CLEANING MATERIALS,DISCOUNT STORES,GPC
WALSALL COUNCIL,HTTP://OPENDATACOMMUNITIES.ORG/ID/METROPOLITAN-DISTRICT-COUNCIL/WALSALL,31/12/2019,CHILDRENS SERVICES,TESCO STORES 6161,03/10/2019,H59620191005HPUQBFQOX-1,6.56,EARLY HELP HUB-FOOD & DRINK SUPPLIES,GROCERY STORES AND SUPERMARKETS,GPC
WALSALL COUNCIL,HTTP://OPENDATACOMMUNITIES.ORG/ID/METROPOLITAN-DISTRICT-COUNCIL/WALSALL,31/12/2019,CHILDRENS SERVICES,ASDA SUPERSTORE,03/10/2019,H59620191005HVMPYLLSJ-1,3.76,LOCALITY FAMILY SUPPORT-NORTH-FOOD & DRINK SUPPLIES,GROCERY STORES AND SUPERMARKETS,GPC
WALSALL COUNCIL,HTTP://OPENDATACOMMUNITIES.ORG/ID/METROPOLITAN-DISTRICT-COUNCIL/WALSALL,31/12/2019,ECONOMY & ENVIRONMENT,AMZNMKTPLACE AMAZON.CO.UK,03/10/2019,H59620191005IAACKOHOJ-1,17.50,BLOXWICH LIBRARY-STATIONERY & GENERAL SUPPLIES,MISCELLANEOUS AND SPECIALTY RETAIL STORES,GPC
WALSALL COUNCIL,HTTP://OPENDATACOMMUNITIES.ORG/ID/METROPOLITAN-DISTRICT-COUNCIL/WALSALL,31/12/2019,RESOURCES & TRANSFORMATION,TRAVELODGE GB0000,03/10/2019,H59620191005IFCYSMYFV-1,222.00,WALSALL CRISIS SUPPORT SCHEME-HOTEL ACCOMMODATION-EMPLOYEES,TRAVELODGE,GPC
WALSALL COUNCIL,HTTP://OPENDATACOMMUNITIES.ORG/ID/METROPOLITAN-DISTRICT-COUNCIL/WALSALL,31/12/2019,ECONOMY & ENVIRONMENT,TPS WELDTECH LTD,03/10/2019,H59620191005IHJHLCUJN-1,71.16,INFRASTRUCTURE MAINTENANCE-GENERAL MATERIALS,OTHER COMMERCIAL EQUIPMENT,GPC
WALSALL COUNCIL,HTTP://OPENDATACOMMUNITIES.ORG/ID/METROPOLITAN-DISTRICT-COUNCIL/WALSALL,31/12/2019,RESOURCES & TRANSFORMATION,123 REG R/T,03/10/2019,H59620191005ILOEUDUJT-1,23.98,APPLICATIONS-COMPUTER EQUIPMENT AND SUPPLIE,DIRECT MARKETING CONTINUITY SUBSCRIPTION MERCHANTS,GPC
WALSALL COUNCIL,HTTP://OPENDATACOMMUNITIES.ORG/ID/METROPOLITAN-DISTRICT-COUNCIL/WALSALL,31/12/2019,CHILDRENS SERVICES,EURASIA CARPETS,03/10/2019,H59620191005KDQIURUII-1,10.00,TRANSITION AND LEAVING CARE PL-FURNITURE & EQUIPMENT,FLOOR COVERING STORES,GPC
WALSALL COUNCIL,HTTP://OPENDATACOMMUNITIES.ORG/ID/METROPOLITAN-DISTRICT-COUNCIL/WALSALL,31/12/2019,CHILDRENS SERVICES,RIVER ISLAND 123,03/10/2019,H59620191005LMHUBPOVN-1,35.00,VIRTUAL SCHOOL - CENTRAL PUPIL-OTHER EXPENSES-EXPENSES,MENS AND WOMENS CLOTHING STORES,GPC
WALSALL COUNCIL,HTTP://OPENDATACOMMUNITIES.ORG/ID/METROPOLITAN-DISTRICT-COUNCIL/WALSALL,31/12/2019,CHILDRENS SERVICES (SCHOOLS),WM MORRISONS STORE,03/10/2019,H59620191005MFGCZUVCM-1,3.10,CHUCKERY PRIMARY SCHOOL-FOOD & DRINK SUPPLIES,GROCERY STORES AND SUPERMARKETS,GPC
WALSALL COUNCIL,HTTP://OPENDATACOMMUNITIES.ORG/ID/METROPOLITAN-DISTRICT-COUNCIL/WALSALL,31/12/2019,CHILDRENS SERVICES (SCHOOLS),WM MORRISONS STORE,03/10/2019,H59620191005MFGCZUVCM-2,45.50,CHUCKERY PRIMARY SCHOOL-FOOD & DRINK SUPPLIES,GROCERY STORES AND SUPERMARKETS,GPC
WALSALL COUNCIL,HTTP://OPENDATACOMMUNITIES.ORG/ID/METROPOLITAN-DISTRICT-COUNCIL/WALSALL,31/12/2019,RESOURCES & TRANSFORMATION,NOBISCO LIMITED,03/10/2019,H59620191005NLXWAZCLL-1,358.08,TOWN HALL RESTAURANT BISTRO-FOOD & DRINK SUPPLIES,OTHER INDUSTRIAL SUPPLIES,GPC
WALSALL COUNCIL,HTTP://OPENDATACOMMUNITIES.ORG/ID/METROPOLITAN-DISTRICT-COUNCIL/WALSALL,31/12/2019,CHILDRENS SERVICES,HOME BARGAINS,03/10/2019,H59620191005NXPUBVMQP-1,5.06,LOCALITY FAMILY SUPPORT-CENTRA-FURNITURE & EQUIPMENT,HARDWARE STORES,GPC
WALSALL COUNCIL,HTTP://OPENDATACOMMUNITIES.ORG/ID/METROPOLITAN-DISTRICT-COUNCIL/WALSALL,31/12/2019,CHILDRENS SERVICES,HOME BARGAINS,03/10/2019,H59620191005NXPUBVMQP-2,5.64,LOCALITY FAMILY SUPPORT-CENTRA-FURNITURE & EQUIPMENT,HARDWARE STORES,GPC
WALSALL COUNCIL,HTTP://OPENDATACOMMUNITIES.ORG/ID/METROPOLITAN-DISTRICT-COUNCIL/WALSALL,31/12/2019,CHILDRENS SERVICES,WWW.ARGOS.CO.UK,03/10/2019,H59620191005OCOVMEQYY-1,329.99,TRANSITION AND LEAVING CARE PL-FURNITURE & EQUIPMENT,DISCOUNT STORES,GPC
WALSALL COUNCIL,HTTP://OPENDATACOMMUNITIES.ORG/ID/METROPOLITAN-DISTRICT-COUNCIL/WALSALL,31/12/2019,CHILDRENS SERVICES,WWW.ARGOS.CO.UK,03/10/2019,H59620191005PIWFXNEMA-1,203.94,BLUEBELLS-FURNITURE & EQUIPMENT,DISCOUNT STORES,GPC
WALSALL COUNCIL,HTTP://OPENDATACOMMUNITIES.ORG/ID/METROPOLITAN-DISTRICT-COUNCIL/WALSALL,31/12/2019,ECONOMY & ENVIRONMENT,AMZNMKTPLACE,03/10/2019,H59620191005PQTQGXFRP-1,132.47,OAK PARK-STATIONERY & GENERAL SUPPLIES,MISCELLANEOUS AND SPECIALTY RETAIL STORES,GPC
WALSALL COUNCIL,HTTP://OPENDATACOMMUNITIES.ORG/ID/METROPOLITAN-DISTRICT-COUNCIL/WALSALL,31/12/2019,ECONOMY & ENVIRONMENT,PAYPAL *NEXTBASEACC,03/10/2019,H59620191005QEIKMKNVF-1,23.98,FLEET-FURNITURE & EQUIPMENT,CAMERA AND PHOTOGRAPHIC SUPPLY STORES,GPC
WALSALL COUNCIL,HTTP://OPENDATACOMMUNITIES.ORG/ID/METROPOLITAN-DISTRICT-COUNCIL/WALSALL,31/12/2019,RESOURCES & TRANSFORMATION,TRAINLINE,03/10/2019,H59620191005QRZWUXDBL-1,97.00,CORPORATE PROCUREMENT-OFFICER/STAFF-PUBLIC TRANSPORT,PASSENGER RAILWAYS,GPC
WALSALL COUNCIL,HTTP://OPENDATACOMMUNITIES.ORG/ID/METROPOLITAN-DISTRICT-COUNCIL/WALSALL,31/12/2019,CHILDRENS SERVICES,WWW.JOHNLEWIS.COM,03/10/2019,H59620191005RGINXZTGQ-1,40.00,SAFEGUARDING & FAMILY SUPPORT-FURNITURE & EQUIPMENT,DEPARTMENT STORES,GPC
WALSALL COUNCIL,HTTP://OPENDATACOMMUNITIES.ORG/ID/METROPOLITAN-DISTRICT-COUNCIL/WALSALL,31/12/2019,RESOURCES & TRANSFORMATION,SS + JR JOHAL 31968,03/10/2019,H59620191005SCKXOUVGO-1,15.50,ACCOMMODATION SERVICES MANAGEM-GENERAL MATERIALS,GROCERY STORES AND SUPERMARKETS,GPC
WALSALL COUNCIL,HTTP://OPENDATACOMMUNITIES.ORG/ID/METROPOLITAN-DISTRICT-COUNCIL/WALSALL,31/12/2019,RESOURCES & TRANSFORMATION,NOBISCO LIMITED,03/10/2019,H59620191005SMEELWVJO-1,264.06,TOWN HALL RESTAURANT BISTRO-FOOD & DRINK SUPPLIES,OTHER INDUSTRIAL SUPPLIES,GPC
WALSALL COUNCIL,HTTP://OPENDATACOMMUNITIES.ORG/ID/METROPOLITAN-DISTRICT-COUNCIL/WALSALL,31/12/2019,CHILDRENS SERVICES,VIRGIN MEDIA PYMTS,03/10/2019,H59620191005SOCWFOCOY-1,47.69,57 LICHFIELD ROAD-PROFESSIONAL FEES AND SERVICES,TELECOMMUNICATION SERVICES,GPC
WALSALL COUNCIL,HTTP://OPENDATACOMMUNITIES.ORG/ID/METROPOLITAN-DISTRICT-COUNCIL/WALSALL,31/12/2019,CHILDRENS SERVICES (SCHOOLS),WALSALL COUNCIL,03/10/2019,H59620191005TDFMYVCFO-1,42.34,MILLFIELD PRIMARY SCHOOL-RECRUITMENT EXPENSES (ALL TYPE,GOVERNMENT SERVICES,GPC
WALSALL COUNCIL,HTTP://OPENDATACOMMUNITIES.ORG/ID/METROPOLITAN-DISTRICT-COUNCIL/WALSALL,31/12/2019,ECONOMY & ENVIRONMENT,AMAZON.CO.UK*MO4HK6LC4,03/10/2019,H59620191005TQKMHXLUY-1,35.94,BLOXWICH LEISURE CENTRE-GENERAL MATERIALS,OTHER DIRECT MARKETING-OTHER DIRECT MARKETERS,GPC
WALSALL COUNCIL,HTTP://OPENDATACOMMUNITIES.ORG/ID/METROPOLITAN-DISTRICT-COUNCIL/WALSALL,31/12/2019,ECONOMY & ENVIRONMENT,AMZNMKTPLACE,03/10/2019,H59620191005UENVXFTFZ-1,8.37,OAK PARK-GENERAL MATERIALS,MISCELLANEOUS AND SPECIALTY RETAIL STORES,GPC
WALSALL COUNCIL,HTTP://OPENDATACOMMUNITIES.ORG/ID/METROPOLITAN-DISTRICT-COUNCIL/WALSALL,31/12/2019,CHILDRENS SERVICES,WM MORRISONS STORE,03/10/2019,H59620191005UPRWIIRBW-1,6.10,GENERAL SUPPLIES LH-GENERAL MATERIALS,GROCERY STORES AND SUPERMARKETS,GPC
WALSALL COUNCIL,HTTP://OPENDATACOMMUNITIES.ORG/ID/METROPOLITAN-DISTRICT-COUNCIL/WALSALL,31/12/2019,CHILDRENS SERVICES,AMAZON.CO.UK AMAZON.CO.UK,03/10/2019,H59620191005VSIOKZJGL-1,-33.99,ADMINISTRATIVE SUPPLIES-GENERAL MATERIALS,MISCELLANEOUS AND SPECIALTY RETAIL STORES,GPC
WALSALL COUNCIL,HTTP://OPENDATACOMMUNITIES.ORG/ID/METROPOLITAN-DISTRICT-COUNCIL/WALSALL,31/12/2019,CHILDRENS SERVICES,TESCO STORES 6161,03/10/2019,H59620191005VXBGRSKVU-1,16.00,EARLY HELP HUB-FOOD & DRINK SUPPLIES,GROCERY STORES AND SUPERMARKETS,GPC
WALSALL COUNCIL,HTTP://OPENDATACOMMUNITIES.ORG/ID/METROPOLITAN-DISTRICT-COUNCIL/WALSALL,31/12/2019,RESOURCES & TRANSFORMATION,NOBISCO LIMITED,03/10/2019,H59620191005WILITURIH-1,22.16,CA BARCROFT D/C-FOOD & DRINK SUPPLIES,OTHER INDUSTRIAL SUPPLIES,GPC
WALSALL COUNCIL,HTTP://OPENDATACOMMUNITIES.ORG/ID/METROPOLITAN-DISTRICT-COUNCIL/WALSALL,31/12/2019,RESOURCES & TRANSFORMATION,CURRYS,03/10/2019,H59620191005WWJCUPCQW-1,94.99,REDUNDANT BUILDINGS-FURNITURE & EQUIPMENT,ELECTRONIC SALES,GPC
WALSALL COUNCIL,HTTP://OPENDATACOMMUNITIES.ORG/ID/METROPOLITAN-DISTRICT-COUNCIL/WALSALL,31/12/2019,CHILDRENS SERVICES,B&M RETAIL LTD,03/10/2019,H59620191005XJNDEHUXM-1,4.38,LOCALITY FAMILY SUPPORT-CENTRA-FURNITURE & EQUIPMENT,DISCOUNT STORES,GPC
WALSALL COUNCIL,HTTP://OPENDATACOMMUNITIES.ORG/ID/METROPOLITAN-DISTRICT-COUNCIL/WALSALL,31/12/2019,RESOURCES & TRANSFORMATION,ARTHUR BRETT CATER,03/10/2019,H59620191005XKEHRHIXW-1,6.75,CA BROWNHILLS WEST PRIMARY SCH-FOOD & DRINK SUPPLIES,MISCELLANEOUS FOOD STORES & CONVENIENCE STORES,GPC
WALSALL COUNCIL,HTTP://OPENDATACOMMUNITIES.ORG/ID/METROPOLITAN-DISTRICT-COUNCIL/WALSALL,31/12/2019,CHILDRENS SERVICES,DRAYTON MANOR THEME PARK,03/10/2019,H59620191005XMZJGGUBB-1,144.00,REDRUTH ROAD-RESIDENTS PERSONAL EXPENSES-AL,OTHER RECREATION SERVICES,GPC
WALSALL COUNCIL,HTTP://OPENDATACOMMUNITIES.ORG/ID/METROPOLITAN-DISTRICT-COUNCIL/WALSALL,31/12/2019,CHILDRENS SERVICES,ASDA SUPERSTORE,03/10/2019,H59620191005XTPWBWHST-1,6.80,MARY ELLIOTT SCHOOL-FOOD & DRINK SUPPLIES,GROCERY STORES AND SUPERMARKETS,GPC
WALSALL COUNCIL,HTTP://OPENDATACOMMUNITIES.ORG/ID/METROPOLITAN-DISTRICT-COUNCIL/WALSALL,31/12/2019,ECONOMY & ENVIRONMENT,METAL SUPERMARKET,03/10/2019,H59620191005YSQLBAGPQ-1,132.00,INFRASTRUCTURE MAINTENANCE-GENERAL MATERIALS,"ROOFING, SIDING AND SHEET METAL WORK CONTRACTORS",GPC
WALSALL COUNCIL,HTTP://OPENDATACOMMUNITIES.ORG/ID/METROPOLITAN-DISTRICT-COUNCIL/WALSALL,31/12/2019,ECONOMY & ENVIRONMENT,AMZNMKTPLACE AMAZON.CO.UK,03/10/2019,H59620191008CNGYGKNFA-1,26.97,OAK PARK-STATIONERY & GENERAL SUPPLIES,MISCELLANEOUS AND SPECIALTY RETAIL STORES,GPC
WALSALL COUNCIL,HTTP://OPENDATACOMMUNITIES.ORG/ID/METROPOLITAN-DISTRICT-COUNCIL/WALSALL,31/12/2019,CHILDRENS SERVICES,AMAZON.CO.UK*MO35M1LW4 AM,03/10/2019,H59620191008JSAUQLBQO-1,15.18,NEW LEAF PUPIL REFERAL UNIT-GENERAL MATERIALS,MISCELLANEOUS AND SPECIALTY RETAIL STORES,GPC
WALSALL COUNCIL,HTTP://OPENDATACOMMUNITIES.ORG/ID/METROPOLITAN-DISTRICT-COUNCIL/WALSALL,31/12/2019,ECONOMY & ENVIRONMENT,LANCASTER LAND ROVER W,03/10/2019,H59620191008MWUTKRNMJ-1,215.87,FLEET-GENERAL MATERIALS,"AUTOMOBILE SALES, SERVICE, REPAIRS",GPC
WALSALL COUNCIL,HTTP://OPENDATACOMMUNITIES.ORG/ID/METROPOLITAN-DISTRICT-COUNCIL/WALSALL,31/12/2019,ECONOMY & ENVIRONMENT,AMAZON.CO.UK*MO2OD7LT4 AM,03/10/2019,H59620191008NNXOVOLFL-1,27.94,OAK PARK-STATIONERY & GENERAL SUPPLIES,MISCELLANEOUS AND SPECIALTY RETAIL STORES,GPC
WALSALL COUNCIL,HTTP://OPENDATACOMMUNITIES.ORG/ID/METROPOLITAN-DISTRICT-COUNCIL/WALSALL,31/12/2019,CHILDRENS SERVICES,PREMIER INN44014565,03/10/2019,H59620191008UTTVRVCXK-1,81.00,LOOKED AFTER CHILDRENS SOCIAL -HOTEL ACCOMMODATION-EMPLOYEES,PREMIER INN,GPC
WALSALL COUNCIL,HTTP://OPENDATACOMMUNITIES.ORG/ID/METROPOLITAN-DISTRICT-COUNCIL/WALSALL,31/12/2019,CHILDRENS SERVICES,PREMIER INN44014565,03/10/2019,H59620191008UTTVRVCXK-2,81.00,FAMILY PLACEMENTS-HOTEL ACCOMMODATION-EMPLOYEES,PREMIER INN,GPC
WALSALL COUNCIL,HTTP://OPENDATACOMMUNITIES.ORG/ID/METROPOLITAN-DISTRICT-COUNCIL/WALSALL,31/12/2019,CHILDRENS SERVICES,AMZNMKTPLACE AMAZON.CO.UK,03/10/2019,H59620191008VVKTSRSEX-1,65.27,FAMILY PLACEMENTS-STATIONERY & GENERAL SUPPLIES,MISCELLANEOUS AND SPECIALTY RETAIL STORES,GPC
WALSALL COUNCIL,HTTP://OPENDATACOMMUNITIES.ORG/ID/METROPOLITAN-DISTRICT-COUNCIL/WALSALL,31/12/2019,CHILDRENS SERVICES,FLYBE.COM U37NZV,03/10/2019,H59620191008WKIWORCLY-1,113.62,LOOKED AFTER CHILDRENS SOCIAL -OTHER-TRAVEL ALLOWANCES,AIRLINES AND AIR CARRIERS,GPC
WALSALL COUNCIL,HTTP://OPENDATACOMMUNITIES.ORG/ID/METROPOLITAN-DISTRICT-COUNCIL/WALSALL,31/12/2019,CHILDRENS SERVICES,FLYBE.COM U37NZV,03/10/2019,H59620191008WKIWORCLY-2,113.62,FAMILY PLACEMENTS-OTHER-TRAVEL ALLOWANCES,AIRLINES AND AIR CARRIERS,GPC
WALSALL COUNCIL,HTTP://OPENDATACOMMUNITIES.ORG/ID/METROPOLITAN-DISTRICT-COUNCIL/WALSALL,31/12/2019,CHILDRENS SERVICES,HUB BY PREMIER INN 496,03/10/2019,H59620191008WQBJSPUEL-1,218.00,SEXUALLY HARMFUL BEHAVIOUR-HOTEL ACCOMMODATION-EMPLOYEES,PREMIER INN,GPC
WALSALL COUNCIL,HTTP://OPENDATACOMMUNITIES.ORG/ID/METROPOLITAN-DISTRICT-COUNCIL/WALSALL,31/12/2019,RESOURCES & TRANSFORMATION,WWW.SCC.COM,03/10/2019,H59620191010IVTGGHVQK-1,9825.11,RECHARGEABLE EQUIPMENT-COMPUTER EQUIPMENT AND SUPPLIE,"COMPUTERS, COMPUTER PERIPHERAL EQUIPMENT, SOFTWARE",GPC
WALSALL COUNCIL,HTTP://OPENDATACOMMUNITIES.ORG/ID/METROPOLITAN-DISTRICT-COUNCIL/WALSALL,31/12/2019,RESOURCES & TRANSFORMATION,WWW.SCC.COM,03/10/2019,H59620191012XYHGVDUCG-1,107.70,RECHARGEABLE EQUIPMENT-COMPUTER EQUIPMENT AND SUPPLIE,"COMPUTERS, COMPUTER PERIPHERAL EQUIPMENT, SOFTWARE",GPC
WALSALL COUNCIL,HTTP://OPENDATACOMMUNITIES.ORG/ID/METROPOLITAN-DISTRICT-COUNCIL/WALSALL,31/12/2019,RESOURCES & TRANSFORMATION,FOREIGN EXCHANGE FEE,04/10/2019,H59620191005OIBVBRFBQ-1,7.80,APPLICATIONS-COMPUTER EQUIPMENT AND SUPPLIE,,GPC
WALSALL COUNCIL,HTTP://OPENDATACOMMUNITIES.ORG/ID/METROPOLITAN-DISTRICT-COUNCIL/WALSALL,31/12/2019,CHILDRENS SERVICES,W M MORRISONS.COM,04/10/2019,H59620191008AYNBSJCHQ-1,19.62,BLUEBELLS-FOOD & DRINK SUPPLIES,GROCERY STORES AND SUPERMARKETS,GPC
WALSALL COUNCIL,HTTP://OPENDATACOMMUNITIES.ORG/ID/METROPOLITAN-DISTRICT-COUNCIL/WALSALL,31/12/2019,CHILDRENS SERVICES,W M MORRISONS.COM,04/10/2019,H59620191008AYNBSJCHQ-2,123.76,BLUEBELLS-FOOD & DRINK SUPPLIES,GROCERY STORES AND SUPERMARKETS,GPC
WALSALL COUNCIL,HTTP://OPENDATACOMMUNITIES.ORG/ID/METROPOLITAN-DISTRICT-COUNCIL/WALSALL,31/12/2019,CHILDRENS SERVICES,ALDI 42 772,04/10/2019,H59620191008BOCRMEFRP-1,44.35,REDRUTH ROAD-FOOD & DRINK SUPPLIES,GROCERY STORES AND SUPERMARKETS,GPC
WALSALL COUNCIL,HTTP://OPENDATACOMMUNITIES.ORG/ID/METROPOLITAN-DISTRICT-COUNCIL/WALSALL,31/12/2019,CHILDRENS SERVICES,AMZNMKTPLACE,04/10/2019,H59620191008BONERGKXO-1,25.48,VIRTUAL SCHOOL - CENTRAL PUPIL-OTHER EXPENSES-EXPENSES,MISCELLANEOUS AND SPECIALTY RETAIL STORES,GPC
WALSALL COUNCIL,HTTP://OPENDATACOMMUNITIES.ORG/ID/METROPOLITAN-DISTRICT-COUNCIL/WALSALL,31/12/2019,ECONOMY & ENVIRONMENT,LUL TICKET MACHINE,04/10/2019,H59620191008BQDPHNQIH-1,13.10,NEW ART GALLERY - ADMIN-OFFICER/STAFF-PUBLIC TRANSPORT,PASSENGER RAILWAYS,GPC
WALSALL COUNCIL,HTTP://OPENDATACOMMUNITIES.ORG/ID/METROPOLITAN-DISTRICT-COUNCIL/WALSALL,31/12/2019,RESOURCES & TRANSFORMATION,TRAVELODGE GB0000,04/10/2019,H59620191008BWXPLKBRD-1,230.00,BED & BREAKFAST PAYMENTS-BED & BREAKFAST PAYMENTS,TRAVELODGE,GPC
WALSALL COUNCIL,HTTP://OPENDATACOMMUNITIES.ORG/ID/METROPOLITAN-DISTRICT-COUNCIL/WALSALL,31/12/2019,ECONOMY & ENVIRONMENT,BOWMONK LTD,04/10/2019,H59620191008CLJMLEXVI-1,89.00,FLEET-VEHICLE TESTING STATION-MATERI,"AUTOMOTIVE PARTS, ACCESSORIES STORES",GPC
WALSALL COUNCIL,HTTP://OPENDATACOMMUNITIES.ORG/ID/METROPOLITAN-DISTRICT-COUNCIL/WALSALL,31/12/2019,ECONOMY & ENVIRONMENT,SSC RODBASTON,04/10/2019,H59620191008COOKPPNTH-1,62.50,YEI ESF FUNDING-OTHER-TRAVEL ALLOWANCES,"COLLEGES, UNIVERSITIES, PROFESSIONAL SCHOOLS",GPC
WALSALL COUNCIL,HTTP://OPENDATACOMMUNITIES.ORG/ID/METROPOLITAN-DISTRICT-COUNCIL/WALSALL,31/12/2019,ECONOMY & ENVIRONMENT,SSC RODBASTON,04/10/2019,H59620191008COOKPPNTH-2,62.50,YEI (IMPACT) PROGRAMME-OTHER-TRAVEL ALLOWANCES,"COLLEGES, UNIVERSITIES, PROFESSIONAL SCHOOLS",GPC
WALSALL COUNCIL,HTTP://OPENDATACOMMUNITIES.ORG/ID/METROPOLITAN-DISTRICT-COUNCIL/WALSALL,31/12/2019,CHILDRENS SERVICES (SCHOOLS),AMZNMKTPLACE,04/10/2019,H59620191008CSQYSPBZL-1,24.99,ADMINISTRATIVE SUPPLIES-GENERAL MATERIALS,MISCELLANEOUS AND SPECIALTY RETAIL STORES,GPC
WALSALL COUNCIL,HTTP://OPENDATACOMMUNITIES.ORG/ID/METROPOLITAN-DISTRICT-COUNCIL/WALSALL,31/12/2019,CHILDRENS SERVICES,WWW.JKP.COM/UK/TERMS/,04/10/2019,H59620191008DOMEIQFPO-1,93.06,GENERAL MANAGEMENT SUPPORT (IN-MISC FEES AND EXPENSES,DIRECT MARKETING COMBINATION CATALOG,GPC
WALSALL COUNCIL,HTTP://OPENDATACOMMUNITIES.ORG/ID/METROPOLITAN-DISTRICT-COUNCIL/WALSALL,31/12/2019,CHILDRENS SERVICES,AMZNMKTPLACE,04/10/2019,H59620191008DOOBSQUKQ-1,60.96,MEADOW VIEW JMI PRIMARY SCHOOL-STATIONERY & GENERAL SUPPLIES,MISCELLANEOUS AND SPECIALTY RETAIL STORES,GPC
WALSALL COUNCIL,HTTP://OPENDATACOMMUNITIES.ORG/ID/METROPOLITAN-DISTRICT-COUNCIL/WALSALL,31/12/2019,RESOURCES & TRANSFORMATION,ARTHUR BRETT CATER,04/10/2019,H59620191008DPRJMBJYM-1,52.99,CA BUSILL JONES PRIMARY SCHOOL-FOOD & DRINK SUPPLIES,MISCELLANEOUS FOOD STORES & CONVENIENCE STORES,GPC
WALSALL COUNCIL,HTTP://OPENDATACOMMUNITIES.ORG/ID/METROPOLITAN-DISTRICT-COUNCIL/WALSALL,31/12/2019,CHILDRENS SERVICES,TESCO STORES 6161,04/10/2019,H59620191008DUVRBOUVB-1,7.59,"43A HILTON ROAD, WILLENHALL-RESIDENTS PERSONAL EXPENSES-AL",GROCERY STORES AND SUPERMARKETS,GPC
WALSALL COUNCIL,HTTP://OPENDATACOMMUNITIES.ORG/ID/METROPOLITAN-DISTRICT-COUNCIL/WALSALL,31/12/2019,ECONOMY & ENVIRONMENT,TOOLSTATION LTD,04/10/2019,H59620191008EIZNGJSER-1,22.48,INFRASTRUCTURE MAINTENANCE-GENERAL MATERIALS,HARDWARE STORES,GPC
WALSALL COUNCIL,HTTP://OPENDATACOMMUNITIES.ORG/ID/METROPOLITAN-DISTRICT-COUNCIL/WALSALL,31/12/2019,ECONOMY & ENVIRONMENT,AMZNMKTPLACE,04/10/2019,H59620191008ETFOCTETR-1,29.95,OAK PARK-STATIONERY & GENERAL SUPPLIES,MISCELLANEOUS AND SPECIALTY RETAIL STORES,GPC
WALSALL COUNCIL,HTTP://OPENDATACOMMUNITIES.ORG/ID/METROPOLITAN-DISTRICT-COUNCIL/WALSALL,31/12/2019,RESOURCES & TRANSFORMATION,HTTP://WEBEX.COM,04/10/2019,H59620191008FHZQFDMGJ-1,14.40,DATA CENTRES-COMPUTER EQUIPMENT AND SUPPLIE,OTHER BUSINESS SERVICES,GPC
WALSALL COUNCIL,HTTP://OPENDATACOMMUNITIES.ORG/ID/METROPOLITAN-DISTRICT-COUNCIL/WALSALL,31/12/2019,ECONOMY & ENVIRONMENT,WWW.BANNERUK.COM,04/10/2019,H59620191008FLMQLPFKE-1,14.54,CENTRALISED STATIONARY-STATIONERY & GENERAL SUPPLIES,"STATIONERY, OFFICE SUPPLIES AND WRITING PAPER",GPC
WALSALL COUNCIL,HTTP://OPENDATACOMMUNITIES.ORG/ID/METROPOLITAN-DISTRICT-COUNCIL/WALSALL,31/12/2019,CHILDRENS SERVICES,WWW.H.TEMPEST LTD,04/10/2019,H59620191008GJWOOKFRL-1,27.00,REDRUTH ROAD-RESIDENTS PERSONAL EXPENSES-AL,PHOTOGRAPHIC STUDIOS,GPC
WALSALL COUNCIL,HTTP://OPENDATACOMMUNITIES.ORG/ID/METROPOLITAN-DISTRICT-COUNCIL/WALSALL,31/12/2019,ECONOMY & ENVIRONMENT,FAST KEY SERVICES LIMI,04/10/2019,H59620191008GSCOJNPBR-1,7.26,YEI ESF FUNDING-PROFESSIONAL FEES AND SERVICES,OTHER BUSINESS SERVICES,GPC
WALSALL COUNCIL,HTTP://OPENDATACOMMUNITIES.ORG/ID/METROPOLITAN-DISTRICT-COUNCIL/WALSALL,31/12/2019,CHILDRENS SERVICES,REGISTRATION SERVICES,04/10/2019,H59620191008HNMEIELXM-1,66.00,GENERAL MANAGEMENT SUPPORT (IN-OTHER FEES & LICENCES-SERVICES,OTHER RECREATION SERVICES,GPC
WALSALL COUNCIL,HTTP://OPENDATACOMMUNITIES.ORG/ID/METROPOLITAN-DISTRICT-COUNCIL/WALSALL,31/12/2019,CHILDRENS SERVICES,TESCO STORES 6161,04/10/2019,H59620191008HNUFDSHVJ-1,35.00,LOOKED AFTER CHILDRENS SOCIAL -FOOD & DRINK SUPPLIES,GROCERY STORES AND SUPERMARKETS,GPC
WALSALL COUNCIL,HTTP://OPENDATACOMMUNITIES.ORG/ID/METROPOLITAN-DISTRICT-COUNCIL/WALSALL,31/12/2019,RESOURCES & TRANSFORMATION,ARTHUR BRETT CATER,04/10/2019,H59620191008IAFYRECTE-1,41.95,CA CASTLEFORT JMI SCHOOL-FOOD & DRINK SUPPLIES,MISCELLANEOUS FOOD STORES & CONVENIENCE STORES,GPC
WALSALL COUNCIL,HTTP://OPENDATACOMMUNITIES.ORG/ID/METROPOLITAN-DISTRICT-COUNCIL/WALSALL,31/12/2019,ECONOMY & ENVIRONMENT,WWW.BANNERUK.COM,04/10/2019,H59620191008IBGBOTUAL-1,21.02,ESF - COMMUNITY GRANTS-STATIONERY & GENERAL SUPPLIES,"STATIONERY, OFFICE SUPPLIES AND WRITING PAPER",GPC
WALSALL COUNCIL,HTTP://OPENDATACOMMUNITIES.ORG/ID/METROPOLITAN-DISTRICT-COUNCIL/WALSALL,31/12/2019,CHILDRENS SERVICES,CURRYS,04/10/2019,H59620191008IFBDFWTBH-1,63.30,TRANSITION AND LEAVING CARE PL-FURNITURE & EQUIPMENT,ELECTRONIC SALES,GPC
WALSALL COUNCIL,HTTP://OPENDATACOMMUNITIES.ORG/ID/METROPOLITAN-DISTRICT-COUNCIL/WALSALL,31/12/2019,ECONOMY & ENVIRONMENT,WWW.BANNERUK.COM,04/10/2019,H59620191008IOYVUKRMC-1,73.62,CENTRALISED STATIONARY-STATIONERY & GENERAL SUPPLIES,"STATIONERY, OFFICE SUPPLIES AND WRITING PAPER",GPC
WALSALL COUNCIL,HTTP://OPENDATACOMMUNITIES.ORG/ID/METROPOLITAN-DISTRICT-COUNCIL/WALSALL,31/12/2019,ECONOMY & ENVIRONMENT,WALSALL WOOD,04/10/2019,H59620191008ISEFLTWNM-1,57.03,COMMUNITY LIASON-GENERAL MATERIALS,LUMBER & BUILDING MATERIALS STORES,GPC
WALSALL COUNCIL,HTTP://OPENDATACOMMUNITIES.ORG/ID/METROPOLITAN-DISTRICT-COUNCIL/WALSALL,31/12/2019,RESOURCES & TRANSFORMATION,ARTHUR BRETT CATER,04/10/2019,H59620191008IUXVTGFRS-1,30.04,CA LEIGHSWOOD PRIMARY SCHOOL-FOOD & DRINK SUPPLIES,MISCELLANEOUS FOOD STORES & CONVENIENCE STORES,GPC
WALSALL COUNCIL,HTTP://OPENDATACOMMUNITIES.ORG/ID/METROPOLITAN-DISTRICT-COUNCIL/WALSALL,31/12/2019,RESOURCES & TRANSFORMATION,TRAVELODGE GB0000,04/10/2019,H59620191008IXXBVZEGA-1,153.00,ACCOMMODATION SERVICES MANAGEM-HOTEL ACCOMMODATION-EMPLOYEES,TRAVELODGE,GPC
WALSALL COUNCIL,HTTP://OPENDATACOMMUNITIES.ORG/ID/METROPOLITAN-DISTRICT-COUNCIL/WALSALL,31/12/2019,CHILDRENS SERVICES,DECATHLON,04/10/2019,H59620191008KODBSHUHP-1,10.96,REDRUTH ROAD-RESIDENTS PERSONAL EXPENSES-AL,SPORTING GOODS STORES,GPC
WALSALL COUNCIL,HTTP://OPENDATACOMMUNITIES.ORG/ID/METROPOLITAN-DISTRICT-COUNCIL/WALSALL,31/12/2019,CHILDRENS SERVICES,ASDA GEORGE COM LEEDS,04/10/2019,H59620191008KQOAPMNUH-1,82.50,TRANSITION AND LEAVING CARE PL-FURNITURE & EQUIPMENT,GROCERY STORES AND SUPERMARKETS,GPC
WALSALL COUNCIL,HTTP://OPENDATACOMMUNITIES.ORG/ID/METROPOLITAN-DISTRICT-COUNCIL/WALSALL,31/12/2019,CHILDRENS SERVICES (SCHOOLS),EB *WALSALL CONFERENCE,04/10/2019,H59620191008LDWETULVX-1,80.00,CHUCKERY PRIMARY SCHOOL-EXTERNAL TRAINING,OTHER BUSINESS SERVICES,GPC
WALSALL COUNCIL,HTTP://OPENDATACOMMUNITIES.ORG/ID/METROPOLITAN-DISTRICT-COUNCIL/WALSALL,31/12/2019,ECONOMY & ENVIRONMENT,TRAVEL WEST MIDLAN,04/10/2019,H59620191008LKNSTRLNU-1,110.00,YEI (IMPACT) PROGRAMME-OFFICER/STAFF-PUBLIC TRANSPORT,BUS LINES,GPC
WALSALL COUNCIL,HTTP://OPENDATACOMMUNITIES.ORG/ID/METROPOLITAN-DISTRICT-COUNCIL/WALSALL,31/12/2019,ECONOMY & ENVIRONMENT,TRAVEL WEST MIDLAN,04/10/2019,H59620191008LKNSTRLNU-2,110.00,YEI ESF FUNDING-OFFICER/STAFF-PUBLIC TRANSPORT,BUS LINES,GPC
WALSALL COUNCIL,HTTP://OPENDATACOMMUNITIES.ORG/ID/METROPOLITAN-DISTRICT-COUNCIL/WALSALL,31/12/2019,ECONOMY & ENVIRONMENT,AMZNMKTPLACE AMAZON.CO.UK,04/10/2019,H59620191008LVCRPZOMD-1,16.71,ALDRIDGE LIBRARY-STATIONERY & GENERAL SUPPLIES,MISCELLANEOUS AND SPECIALTY RETAIL STORES,GPC
WALSALL COUNCIL,HTTP://OPENDATACOMMUNITIES.ORG/ID/METROPOLITAN-DISTRICT-COUNCIL/WALSALL,31/12/2019,CHILDRENS SERVICES,PRIMARK 690,04/10/2019,H59620191008MVWSSFSKN-1,45.00,VIRTUAL SCHOOL - CENTRAL PUPIL-MISC FEES AND EXPENSES,CLOTHING STORES,GPC
WALSALL COUNCIL,HTTP://OPENDATACOMMUNITIES.ORG/ID/METROPOLITAN-DISTRICT-COUNCIL/WALSALL,31/12/2019,CHILDRENS SERVICES,AMZNMKTPLACE,04/10/2019,H59620191008MZDNMVFQL-1,109.78,ADMISSIONS & PUPIL PLACE PLANN-FURNITURE & EQUIPMENT,MISCELLANEOUS AND SPECIALTY RETAIL STORES,GPC
WALSALL COUNCIL,HTTP://OPENDATACOMMUNITIES.ORG/ID/METROPOLITAN-DISTRICT-COUNCIL/WALSALL,31/12/2019,CHILDRENS SERVICES,AMZNMKTPLACE,04/10/2019,H59620191008NIGUJILZC-1,-226.78,TRANSITION AND LEAVING CARE PL-FURNITURE & EQUIPMENT,MISCELLANEOUS AND SPECIALTY RETAIL STORES,GPC
WALSALL COUNCIL,HTTP://OPENDATACOMMUNITIES.ORG/ID/METROPOLITAN-DISTRICT-COUNCIL/WALSALL,31/12/2019,CHILDRENS SERVICES,SAGE PUBLICATIONS UK,04/10/2019,H59620191008NUBPGMMKV-1,134.95,GENERAL MANAGEMENT SUPPORT (IN-MISC FEES AND EXPENSES,NEWS DEALERS AND NEWSSTANDS,GPC
WALSALL COUNCIL,HTTP://OPENDATACOMMUNITIES.ORG/ID/METROPOLITAN-DISTRICT-COUNCIL/WALSALL,31/12/2019,CHILDRENS SERVICES,AMZNMKTPLACE,04/10/2019,H59620191008OXAGJXXTQ-1,226.78,TRANSITION AND LEAVING CARE PL-FURNITURE & EQUIPMENT,MISCELLANEOUS AND SPECIALTY RETAIL STORES,GPC
WALSALL COUNCIL,HTTP://OPENDATACOMMUNITIES.ORG/ID/METROPOLITAN-DISTRICT-COUNCIL/WALSALL,31/12/2019,CHILDRENS SERVICES,POUNDLAND LTD 1427,04/10/2019,H59620191008PSIFVHBWZ-1,5.05,ADOLESCENT SERVICE-FOOD & DRINK SUPPLIES,DISCOUNT STORES,GPC
WALSALL COUNCIL,HTTP://OPENDATACOMMUNITIES.ORG/ID/METROPOLITAN-DISTRICT-COUNCIL/WALSALL,31/12/2019,RESOURCES & TRANSFORMATION,ARTHUR BRETT CATER,04/10/2019,H59620191008PYGTLCZYA-1,32.36,CA BUSILL JONES PRIMARY SCHOOL-FOOD & DRINK SUPPLIES,MISCELLANEOUS FOOD STORES & CONVENIENCE STORES,GPC
WALSALL COUNCIL,HTTP://OPENDATACOMMUNITIES.ORG/ID/METROPOLITAN-DISTRICT-COUNCIL/WALSALL,31/12/2019,RESOURCES & TRANSFORMATION,WWW.SOLOPRESS.COM,04/10/2019,H59620191008QZCOJHDUP-1,104.70,INTEGRATED COMMUNITIES PROGRAM-EXTERNAL PRINTING SERVICES,MISCELLANEOUS PUBLISHING AND PRINTING,GPC
WALSALL COUNCIL,HTTP://OPENDATACOMMUNITIES.ORG/ID/METROPOLITAN-DISTRICT-COUNCIL/WALSALL,31/12/2019,CHILDRENS SERVICES,WM MORRISONS STORE,04/10/2019,H59620191008RPXZOSCVA-1,0.65,57 LICHFIELD ROAD-FOOD & DRINK SUPPLIES,GROCERY STORES AND SUPERMARKETS,GPC
WALSALL COUNCIL,HTTP://OPENDATACOMMUNITIES.ORG/ID/METROPOLITAN-DISTRICT-COUNCIL/WALSALL,31/12/2019,CHILDRENS SERVICES,WM MORRISONS STORE,04/10/2019,H59620191008RPXZOSCVA-2,15.55,57 LICHFIELD ROAD-FOOD & DRINK SUPPLIES,GROCERY STORES AND SUPERMARKETS,GPC
WALSALL COUNCIL,HTTP://OPENDATACOMMUNITIES.ORG/ID/METROPOLITAN-DISTRICT-COUNCIL/WALSALL,31/12/2019,CHILDRENS SERVICES,BCC REGISTER OFFIC,04/10/2019,H59620191008RSUGJKVRN-1,14.00,SAFEGUARDING & FAMILY SUPPORT-MISC FEES AND EXPENSES,GOVERNMENT SERVICES,GPC
WALSALL COUNCIL,HTTP://OPENDATACOMMUNITIES.ORG/ID/METROPOLITAN-DISTRICT-COUNCIL/WALSALL,31/12/2019,ECONOMY & ENVIRONMENT,AMZNMKTPLACE,04/10/2019,H59620191008RTOZCORRZ-1,13.82,OAK PARK-GENERAL MATERIALS,MISCELLANEOUS AND SPECIALTY RETAIL STORES,GPC
WALSALL COUNCIL,HTTP://OPENDATACOMMUNITIES.ORG/ID/METROPOLITAN-DISTRICT-COUNCIL/WALSALL,31/12/2019,ECONOMY & ENVIRONMENT,AMZNMKTPLACE,04/10/2019,H59620191008RTOZCORRZ-2,7.96,OAK PARK-GENERAL MATERIALS,MISCELLANEOUS AND SPECIALTY RETAIL STORES,GPC
WALSALL COUNCIL,HTTP://OPENDATACOMMUNITIES.ORG/ID/METROPOLITAN-DISTRICT-COUNCIL/WALSALL,31/12/2019,CHILDRENS SERVICES,WWW.THECONSORTIUM/WMS,04/10/2019,H59620191008RUADWQKON-1,52.64,SEN-GENERAL MATERIALS,DIRECT MARKETING CONTINUITY SUBSCRIPTION MERCHANTS,GPC
WALSALL COUNCIL,HTTP://OPENDATACOMMUNITIES.ORG/ID/METROPOLITAN-DISTRICT-COUNCIL/WALSALL,31/12/2019,CHILDRENS SERVICES,AMZNMKTPLACE,04/10/2019,H59620191008RVWSRNUNA-1,76.72,ST JOHNS C.E. PRIMARY SCHOOL-PERSONAL REQUISITES-MATERIALS,MISCELLANEOUS AND SPECIALTY RETAIL STORES,GPC
WALSALL COUNCIL,HTTP://OPENDATACOMMUNITIES.ORG/ID/METROPOLITAN-DISTRICT-COUNCIL/WALSALL,31/12/2019,CHILDRENS SERVICES,PAYPAL *KIRWINMACLE,04/10/2019,H59620191008TBFKNNXIX-1,267.50,GENERAL MANAGEMENT SUPPORT (IN-MISC FEES AND EXPENSES,BOOK STORES,GPC
WALSALL COUNCIL,HTTP://OPENDATACOMMUNITIES.ORG/ID/METROPOLITAN-DISTRICT-COUNCIL/WALSALL,31/12/2019,CHILDRENS SERVICES,VIRGIN TRAINS,04/10/2019,H59620191008THTXDCMDZ-1,150.75,CHILD PROTECTION & REVIEW SERV-OFFICER/STAFF-PUBLIC TRANSPORT,PASSENGER RAILWAYS,GPC
WALSALL COUNCIL,HTTP://OPENDATACOMMUNITIES.ORG/ID/METROPOLITAN-DISTRICT-COUNCIL/WALSALL,31/12/2019,CHILDRENS SERVICES,PAYPAL *CLASSROOMSE,04/10/2019,H59620191008THXVCVZQX-1,49.50,ENGLISH-GENERAL MATERIALS,"SCHOOLS, BUSINESS AND SECRETARIAL",GPC
WALSALL COUNCIL,HTTP://OPENDATACOMMUNITIES.ORG/ID/METROPOLITAN-DISTRICT-COUNCIL/WALSALL,31/12/2019,CHILDRENS SERVICES,CO-OPERATIVE FOOD,04/10/2019,H59620191008TRTPYEOQS-1,21.93,WALSALL WOOD PRIMARY SCHOOL-FOOD & DRINK SUPPLIES,GROCERY STORES AND SUPERMARKETS,GPC
WALSALL COUNCIL,HTTP://OPENDATACOMMUNITIES.ORG/ID/METROPOLITAN-DISTRICT-COUNCIL/WALSALL,31/12/2019,CHILDRENS SERVICES,CO-OPERATIVE FOOD,04/10/2019,H59620191008TRTPYEOQS-2,4.30,WALSALL WOOD PRIMARY SCHOOL-FOOD & DRINK SUPPLIES,GROCERY STORES AND SUPERMARKETS,GPC
WALSALL COUNCIL,HTTP://OPENDATACOMMUNITIES.ORG/ID/METROPOLITAN-DISTRICT-COUNCIL/WALSALL,31/12/2019,CHILDRENS SERVICES,AMZNMKTPLACE,04/10/2019,H59620191008TWLVOIIOM-1,25.67,VIRTUAL SCHOOL - CENTRAL PUPIL-OTHER EXPENSES-EXPENSES,MISCELLANEOUS AND SPECIALTY RETAIL STORES,GPC
WALSALL COUNCIL,HTTP://OPENDATACOMMUNITIES.ORG/ID/METROPOLITAN-DISTRICT-COUNCIL/WALSALL,31/12/2019,ADULT SOCIAL CARE,AMZNMKTPLACE AMAZON.CO.UK,04/10/2019,H59620191008UPYKOKHTQ-1,-7.73,SENIOR MANAGEMENT TEAM-STATIONERY & GENERAL SUPPLIES,MISCELLANEOUS AND SPECIALTY RETAIL STORES,GPC
WALSALL COUNCIL,HTTP://OPENDATACOMMUNITIES.ORG/ID/METROPOLITAN-DISTRICT-COUNCIL/WALSALL,31/12/2019,RESOURCES & TRANSFORMATION,ASDA GROCERIES ONLINE,04/10/2019,H59620191008VIVQMNHED-1,44.00,LAW LIBRARY-STATIONERY & GENERAL SUPPLIES,GROCERY STORES AND SUPERMARKETS,GPC
WALSALL COUNCIL,HTTP://OPENDATACOMMUNITIES.ORG/ID/METROPOLITAN-DISTRICT-COUNCIL/WALSALL,31/12/2019,ECONOMY & ENVIRONMENT,SAINSBURYS S/MKT,04/10/2019,H59620191008WQEEMONOM-1,2.25,LEATHER MUSEUM-FOOD & DRINK SUPPLIES,GROCERY STORES AND SUPERMARKETS,GPC
WALSALL COUNCIL,HTTP://OPENDATACOMMUNITIES.ORG/ID/METROPOLITAN-DISTRICT-COUNCIL/WALSALL,31/12/2019,CHILDRENS SERVICES,AMZNMKTPLACE,04/10/2019,H59620191008WYLFKAVEM-1,47.95,BLUEBELLS-RESIDENTS PERSONAL EXPENSES-AL,MISCELLANEOUS AND SPECIALTY RETAIL STORES,GPC
WALSALL COUNCIL,HTTP://OPENDATACOMMUNITIES.ORG/ID/METROPOLITAN-DISTRICT-COUNCIL/WALSALL,31/12/2019,CHILDRENS SERVICES,AMZNMKTPLACE,04/10/2019,H59620191008YSPJYQZKJ-1,289.99,LOOKED AFTER CHILDRENS SOCIAL -STATIONERY & GENERAL SUPPLIES,MISCELLANEOUS AND SPECIALTY RETAIL STORES,GPC
WALSALL COUNCIL,HTTP://OPENDATACOMMUNITIES.ORG/ID/METROPOLITAN-DISTRICT-COUNCIL/WALSALL,31/12/2019,CHILDRENS SERVICES,PEARSON ED LTD,04/10/2019,H59620191010BNQQXPXTI-1,182.40,SEN-GENERAL MATERIALS,OTHER SCHOOLS AND EDUCATIONAL SERVICES,GPC
WALSALL COUNCIL,HTTP://OPENDATACOMMUNITIES.ORG/ID/METROPOLITAN-DISTRICT-COUNCIL/WALSALL,31/12/2019,CHILDRENS SERVICES,PEARSON ED LTD,04/10/2019,H59620191010DTBFPBMKF-1,26.82,SEN-GENERAL MATERIALS,OTHER SCHOOLS AND EDUCATIONAL SERVICES,GPC
WALSALL COUNCIL,HTTP://OPENDATACOMMUNITIES.ORG/ID/METROPOLITAN-DISTRICT-COUNCIL/WALSALL,31/12/2019,ECONOMY & ENVIRONMENT,AMAZON.CO.UK*MO17M8NL4,05/10/2019,H59620191008CEECVKHEP-1,13.09,BLOXWICH LEISURE CENTRE-GENERAL MATERIALS,OTHER DIRECT MARKETING-OTHER DIRECT MARKETERS,GPC
WALSALL COUNCIL,HTTP://OPENDATACOMMUNITIES.ORG/ID/METROPOLITAN-DISTRICT-COUNCIL/WALSALL,31/12/2019,ECONOMY & ENVIRONMENT,CROFT NEWS,05/10/2019,H59620191008DCCNVWCQP-1,84.15,ALDRIDGE LIBRARY-NEWSPAPERS/PERIODICALS/MAGAZIN,GROCERY STORES AND SUPERMARKETS,GPC
WALSALL COUNCIL,HTTP://OPENDATACOMMUNITIES.ORG/ID/METROPOLITAN-DISTRICT-COUNCIL/WALSALL,31/12/2019,ECONOMY & ENVIRONMENT,POUNDLAND LTD 1427,05/10/2019,H59620191008MRWAXOEFI-1,3.00,LEATHER MUSEUM-GENERAL MATERIALS,DISCOUNT STORES,GPC
WALSALL COUNCIL,HTTP://OPENDATACOMMUNITIES.ORG/ID/METROPOLITAN-DISTRICT-COUNCIL/WALSALL,31/12/2019,ECONOMY & ENVIRONMENT,CROFT NEWS,05/10/2019,H59620191008MUMWHCQUB-1,94.00,ALDRIDGE LIBRARY-NEWSPAPERS/PERIODICALS/MAGAZIN,GROCERY STORES AND SUPERMARKETS,GPC
WALSALL COUNCIL,HTTP://OPENDATACOMMUNITIES.ORG/ID/METROPOLITAN-DISTRICT-COUNCIL/WALSALL,31/12/2019,CHILDRENS SERVICES,WM MORRISONS STORE,05/10/2019,H59620191008NJKGPTBJB-1,9.90,CONTACT SESSIONAL STAFF-FOOD & DRINK SUPPLIES,GROCERY STORES AND SUPERMARKETS,GPC
WALSALL COUNCIL,HTTP://OPENDATACOMMUNITIES.ORG/ID/METROPOLITAN-DISTRICT-COUNCIL/WALSALL,31/12/2019,CHILDRENS SERVICES,THE RANGE,05/10/2019,H59620191008NTPWEXRSR-1,6.60,EARLY YEARS DEPARTMENT-GENERAL MATERIALS,DEPARTMENT STORES,GPC
WALSALL COUNCIL,HTTP://OPENDATACOMMUNITIES.ORG/ID/METROPOLITAN-DISTRICT-COUNCIL/WALSALL,31/12/2019,CHILDRENS SERVICES,THE RANGE,05/10/2019,H59620191008NTPWEXRSR-2,1.78,PELSALL VILLAGE SCHOOL-FOOD & DRINK SUPPLIES,DEPARTMENT STORES,GPC
WALSALL COUNCIL,HTTP://OPENDATACOMMUNITIES.ORG/ID/METROPOLITAN-DISTRICT-COUNCIL/WALSALL,31/12/2019,CHILDRENS SERVICES,AMZNMKTPLACE,05/10/2019,H59620191008RATEHXZKO-1,131.79,TRANSITION AND LEAVING CARE PL-FURNITURE & EQUIPMENT,MISCELLANEOUS AND SPECIALTY RETAIL STORES,GPC
WALSALL COUNCIL,HTTP://OPENDATACOMMUNITIES.ORG/ID/METROPOLITAN-DISTRICT-COUNCIL/WALSALL,31/12/2019,ECONOMY & ENVIRONMENT,BOUNDARY MILLS STORE W,05/10/2019,H59620191008SDLGOJNKD-1,36.00,BLOXWICH LEISURE CENTRE-CLOTHING & LAUNDRY,DEPARTMENT STORES,GPC
WALSALL COUNCIL,HTTP://OPENDATACOMMUNITIES.ORG/ID/METROPOLITAN-DISTRICT-COUNCIL/WALSALL,31/12/2019,CHILDRENS SERVICES,ECHO ISLAND,05/10/2019,H59620191008SNEVLKDIC-1,35.00,REDRUTH ROAD-RESIDENTS PERSONAL EXPENSES-AL,MENS AND BOYS CLOTHING AND FURNISHINGS STORE,GPC
WALSALL COUNCIL,HTTP://OPENDATACOMMUNITIES.ORG/ID/METROPOLITAN-DISTRICT-COUNCIL/WALSALL,31/12/2019,CHILDRENS SERVICES,HOME BARGAINS,05/10/2019,H59620191008URWAJRURK-1,1.99,WEST LOCALITY - SCHOOL READY-GENERAL MATERIALS,HARDWARE STORES,GPC
WALSALL COUNCIL,HTTP://OPENDATACOMMUNITIES.ORG/ID/METROPOLITAN-DISTRICT-COUNCIL/WALSALL,31/12/2019,RESOURCES & TRANSFORMATION,LINKEDIN 4124186856 LNKD.,05/10/2019,H59620191008VNHYVTNKC-1,13.62,SCHOOL HR TRANSACTIONAL TEAM-ADVERTISING STAFF VACANCIES,DIRECT MARKETING CONTINUITY SUBSCRIPTION MERCHANTS,GPC
WALSALL COUNCIL,HTTP://OPENDATACOMMUNITIES.ORG/ID/METROPOLITAN-DISTRICT-COUNCIL/WALSALL,31/12/2019,CHILDRENS SERVICES,TESCO STORES 6672,05/10/2019,H59620191008WKKLXUMSW-1,3.30,EARLY YEARS DEPARTMENT-GENERAL MATERIALS,GROCERY STORES AND SUPERMARKETS,GPC
WALSALL COUNCIL,HTTP://OPENDATACOMMUNITIES.ORG/ID/METROPOLITAN-DISTRICT-COUNCIL/WALSALL,31/12/2019,CHILDRENS SERVICES,TESCO STORES 6672,05/10/2019,H59620191008WKKLXUMSW-2,0.99,EARLY YEARS DEPARTMENT-GENERAL MATERIALS,GROCERY STORES AND SUPERMARKETS,GPC
WALSALL COUNCIL,HTTP://OPENDATACOMMUNITIES.ORG/ID/METROPOLITAN-DISTRICT-COUNCIL/WALSALL,31/12/2019,CHILDRENS SERVICES,ALDI 90 772,05/10/2019,H59620191008XEHIINEHI-1,14.94,EARLY YEARS DEPARTMENT-GENERAL MATERIALS,GROCERY STORES AND SUPERMARKETS,GPC
WALSALL COUNCIL,HTTP://OPENDATACOMMUNITIES.ORG/ID/METROPOLITAN-DISTRICT-COUNCIL/WALSALL,31/12/2019,RESOURCES & TRANSFORMATION,123 REG R/T,06/10/2019,H59620191008DVYJECCAM-1,19.19,APPLICATIONS-COMPUTER EQUIPMENT AND SUPPLIE,DIRECT MARKETING CONTINUITY SUBSCRIPTION MERCHANTS,GPC
WALSALL COUNCIL,HTTP://OPENDATACOMMUNITIES.ORG/ID/METROPOLITAN-DISTRICT-COUNCIL/WALSALL,31/12/2019,CHILDRENS SERVICES,ASDA SUPERSTORE,06/10/2019,H59620191008DZKUFDLND-1,30.00,REWARDS-GENERAL MATERIALS,GROCERY STORES AND SUPERMARKETS,GPC
WALSALL COUNCIL,HTTP://OPENDATACOMMUNITIES.ORG/ID/METROPOLITAN-DISTRICT-COUNCIL/WALSALL,31/12/2019,RESOURCES & TRANSFORMATION,AMZNMKTPLACE,06/10/2019,H59620191008FMLBLKEUL-1,39.99,REVENUES-FURNITURE & EQUIPMENT,MISCELLANEOUS AND SPECIALTY RETAIL STORES,GPC
WALSALL COUNCIL,HTTP://OPENDATACOMMUNITIES.ORG/ID/METROPOLITAN-DISTRICT-COUNCIL/WALSALL,31/12/2019,CHILDRENS SERVICES,AMZNMKTPLACE,06/10/2019,H59620191008HBIYNPIEO-1,30.18,FOUNDATION STAGE-GENERAL MATERIALS,MISCELLANEOUS AND SPECIALTY RETAIL STORES,GPC
WALSALL COUNCIL,HTTP://OPENDATACOMMUNITIES.ORG/ID/METROPOLITAN-DISTRICT-COUNCIL/WALSALL,31/12/2019,ECONOMY & ENVIRONMENT,AMZNMKTPLACE,06/10/2019,H59620191008HWFJPDZLT-1,16.60,CENTRALISED STATIONARY-STATIONERY & GENERAL SUPPLIES,MISCELLANEOUS AND SPECIALTY RETAIL STORES,GPC
WALSALL COUNCIL,HTTP://OPENDATACOMMUNITIES.ORG/ID/METROPOLITAN-DISTRICT-COUNCIL/WALSALL,31/12/2019,CHILDRENS SERVICES,WATERWORLD 2000 LIMITED,06/10/2019,H59620191008JAHTKGJWJ-1,87.50,REDRUTH ROAD-RESIDENTS PERSONAL EXPENSES-AL,OTHER RECREATION SERVICES,GPC
WALSALL COUNCIL,HTTP://OPENDATACOMMUNITIES.ORG/ID/METROPOLITAN-DISTRICT-COUNCIL/WALSALL,31/12/2019,CHILDRENS SERVICES,HOME BARGAINS,06/10/2019,H59620191008JLSZNZMUX-1,34.93,CONTINGENCY-GENERAL MATERIALS,HARDWARE STORES,GPC
WALSALL COUNCIL,HTTP://OPENDATACOMMUNITIES.ORG/ID/METROPOLITAN-DISTRICT-COUNCIL/WALSALL,31/12/2019,ECONOMY & ENVIRONMENT,AMZNMKTPLACE,06/10/2019,H59620191008RCLLGOGFO-1,46.98,DIRECTORATE SUPPORT-STATIONERY & GENERAL SUPPLIES,MISCELLANEOUS AND SPECIALTY RETAIL STORES,GPC
WALSALL COUNCIL,HTTP://OPENDATACOMMUNITIES.ORG/ID/METROPOLITAN-DISTRICT-COUNCIL/WALSALL,31/12/2019,CHILDRENS SERVICES,AMAZON.CO.UK*MO5WC1LY4,06/10/2019,H59620191008WOKONTHXR-1,189.95,GENERAL MANAGEMENT SUPPORT (IN-MISC FEES AND EXPENSES,OTHER DIRECT MARKETING-OTHER DIRECT MARKETERS,GPC
WALSALL COUNCIL,HTTP://OPENDATACOMMUNITIES.ORG/ID/METROPOLITAN-DISTRICT-COUNCIL/WALSALL,31/12/2019,ECONOMY & ENVIRONMENT,AMAZON.CO.UK*MO1726NL4 AM,06/10/2019,H59620191009DTLBLHOJQ-1,12.27,LOCAL HISTORY CENTRE-GENERAL MATERIALS,MISCELLANEOUS AND SPECIALTY RETAIL STORES,GPC
WALSALL COUNCIL,HTTP://OPENDATACOMMUNITIES.ORG/ID/METROPOLITAN-DISTRICT-COUNCIL/WALSALL,31/12/2019,CHILDRENS SERVICES,ASDA SUPERSTORE,07/10/2019,H59620191009AOKZHJRXV-1,3.88,REDRUTH ROAD-FOOD & DRINK SUPPLIES,GROCERY STORES AND SUPERMARKETS,GPC
WALSALL COUNCIL,HTTP://OPENDATACOMMUNITIES.ORG/ID/METROPOLITAN-DISTRICT-COUNCIL/WALSALL,31/12/2019,RESOURCES & TRANSFORMATION,JOHAL DAIRIES LTD,07/10/2019,H59620191009ARHYBNYMQ-1,12.46,CA LITTLE BLOXWICH CE PRIMARY -FOOD & DRINK SUPPLIES,OTHER NONDURABLE GOODS,GPC
WALSALL COUNCIL,HTTP://OPENDATACOMMUNITIES.ORG/ID/METROPOLITAN-DISTRICT-COUNCIL/WALSALL,31/12/2019,CHILDRENS SERVICES,WALSALL COUNCIL,07/10/2019,H59620191009AROCDLTSZ-1,25.00,PRIMARY-GENERAL MATERIALS,GOVERNMENT SERVICES,GPC
WALSALL COUNCIL,HTTP://OPENDATACOMMUNITIES.ORG/ID/METROPOLITAN-DISTRICT-COUNCIL/WALSALL,31/12/2019,CHILDRENS SERVICES,VIRGIN TRAINS,07/10/2019,H59620191009AWUVPUZTX-1,223.50,CHILD PROTECTION & REVIEW SERV-OFFICER/STAFF-PUBLIC TRANSPORT,PASSENGER RAILWAYS,GPC
WALSALL COUNCIL,HTTP://OPENDATACOMMUNITIES.ORG/ID/METROPOLITAN-DISTRICT-COUNCIL/WALSALL,31/12/2019,RESOURCES & TRANSFORMATION,BLAKEMORE FOODSERVICE,07/10/2019,H59620191009AXFOPQWVG-1,16.50,CA BUSILL JONES PRIMARY SCHOOL-FOOD & DRINK SUPPLIES,CATERERS,GPC
WALSALL COUNCIL,HTTP://OPENDATACOMMUNITIES.ORG/ID/METROPOLITAN-DISTRICT-COUNCIL/WALSALL,31/12/2019,ECONOMY & ENVIRONMENT,TOOLSTATION LTD,07/10/2019,H59620191009BBWOPNWBY-1,9.59,INFRASTRUCTURE MAINTENANCE-GENERAL MATERIALS,HARDWARE STORES,GPC
WALSALL COUNCIL,HTTP://OPENDATACOMMUNITIES.ORG/ID/METROPOLITAN-DISTRICT-COUNCIL/WALSALL,31/12/2019,ECONOMY & ENVIRONMENT,WALSALL WOOD,07/10/2019,H59620191009BHEYIYHMK-1,17.98,COMMUNITY LIASON-GENERAL MATERIALS,LUMBER & BUILDING MATERIALS STORES,GPC
WALSALL COUNCIL,HTTP://OPENDATACOMMUNITIES.ORG/ID/METROPOLITAN-DISTRICT-COUNCIL/WALSALL,31/12/2019,RESOURCES & TRANSFORMATION,JOHAL DAIRIES LTD,07/10/2019,H59620191009BOWIEWJEG-1,22.25,CA RADLEYS PRIMARY SCHOOL-FOOD & DRINK SUPPLIES,OTHER NONDURABLE GOODS,GPC
WALSALL COUNCIL,HTTP://OPENDATACOMMUNITIES.ORG/ID/METROPOLITAN-DISTRICT-COUNCIL/WALSALL,31/12/2019,ECONOMY & ENVIRONMENT,WWW.BANNERUK.COM,07/10/2019,H59620191009BVKSYVQUC-1,-14.54,CENTRALISED STATIONARY-STATIONERY & GENERAL SUPPLIES,"STATIONERY, OFFICE SUPPLIES AND WRITING PAPER",GPC
WALSALL COUNCIL,HTTP://OPENDATACOMMUNITIES.ORG/ID/METROPOLITAN-DISTRICT-COUNCIL/WALSALL,31/12/2019,RESOURCES & TRANSFORMATION,BLAKEMORE FOODSERVICE,07/10/2019,H59620191009BYANCEMEH-1,17.66,CA BUSILL JONES PRIMARY SCHOOL-FOOD & DRINK SUPPLIES,CATERERS,GPC
WALSALL COUNCIL,HTTP://OPENDATACOMMUNITIES.ORG/ID/METROPOLITAN-DISTRICT-COUNCIL/WALSALL,31/12/2019,RESOURCES & TRANSFORMATION,JOHAL DAIRIES LTD,07/10/2019,H59620191009BZCXUHDBD-1,1.78,CA ST JOHNS C.E. PRIMARY SCHOO-FOOD & DRINK SUPPLIES,OTHER NONDURABLE GOODS,GPC
WALSALL COUNCIL,HTTP://OPENDATACOMMUNITIES.ORG/ID/METROPOLITAN-DISTRICT-COUNCIL/WALSALL,31/12/2019,CHILDRENS SERVICES,AMZNMKTPLACE AMAZON.CO.UK,07/10/2019,H59620191009CALRVSHRT-1,4.78,ADMINISTRATIVE SUPPLIES-GENERAL MATERIALS,MISCELLANEOUS AND SPECIALTY RETAIL STORES,GPC
WALSALL COUNCIL,HTTP://OPENDATACOMMUNITIES.ORG/ID/METROPOLITAN-DISTRICT-COUNCIL/WALSALL,31/12/2019,RESOURCES & TRANSFORMATION,CO-OPERATIVE FOOD,07/10/2019,H59620191009CGYZXTTIJ-1,7.69,CORPORATE MANAGEMENT TEAM-FOOD & DRINK SUPPLIES,GROCERY STORES AND SUPERMARKETS,GPC
WALSALL COUNCIL,HTTP://OPENDATACOMMUNITIES.ORG/ID/METROPOLITAN-DISTRICT-COUNCIL/WALSALL,31/12/2019,RESOURCES & TRANSFORMATION,JOHAL DAIRIES LTD,07/10/2019,H59620191009DCBFKUSFF-1,51.23,CA ST GILES C.E. PRIMARY SCHOO-FOOD & DRINK SUPPLIES,OTHER NONDURABLE GOODS,GPC
WALSALL COUNCIL,HTTP://OPENDATACOMMUNITIES.ORG/ID/METROPOLITAN-DISTRICT-COUNCIL/WALSALL,31/12/2019,RESOURCES & TRANSFORMATION,JOHAL DAIRIES LTD,07/10/2019,H59620191009DCIUQIYHD-1,38.96,CA OLD HALL SPECIAL SCHOOL-FOOD & DRINK SUPPLIES,OTHER NONDURABLE GOODS,GPC
WALSALL COUNCIL,HTTP://OPENDATACOMMUNITIES.ORG/ID/METROPOLITAN-DISTRICT-COUNCIL/WALSALL,31/12/2019,CHILDRENS SERVICES (SCHOOLS),WWW.IRONMONGERYANDMORE.CO,07/10/2019,H59620191009DDBKSFMLP-1,144.00,E19-OPERATIONAL MAINTENANCE,HARDWARE STORES,GPC
WALSALL COUNCIL,HTTP://OPENDATACOMMUNITIES.ORG/ID/METROPOLITAN-DISTRICT-COUNCIL/WALSALL,31/12/2019,RESOURCES & TRANSFORMATION,TRAVELODGE GB0000,07/10/2019,H59620191009DDWUSLVTP-1,213.50,WALSALL CRISIS SUPPORT SCHEME-HOTEL ACCOMMODATION-EMPLOYEES,TRAVELODGE,GPC
WALSALL COUNCIL,HTTP://OPENDATACOMMUNITIES.ORG/ID/METROPOLITAN-DISTRICT-COUNCIL/WALSALL,31/12/2019,RESOURCES & TRANSFORMATION,JOHAL DAIRIES LTD,07/10/2019,H59620191009DEMKRCOIT-1,33.38,CA LINDENS PRIMARY SCHOOL-FOOD & DRINK SUPPLIES,OTHER NONDURABLE GOODS,GPC
WALSALL COUNCIL,HTTP://OPENDATACOMMUNITIES.ORG/ID/METROPOLITAN-DISTRICT-COUNCIL/WALSALL,31/12/2019,RESOURCES & TRANSFORMATION,JOHAL DAIRIES LTD,07/10/2019,H59620191009DKDIUXWUC-1,15.04,CA LEIGHSWOOD PRIMARY SCHOOL-FOOD & DRINK SUPPLIES,OTHER NONDURABLE GOODS,GPC
WALSALL COUNCIL,HTTP://OPENDATACOMMUNITIES.ORG/ID/METROPOLITAN-DISTRICT-COUNCIL/WALSALL,31/12/2019,RESOURCES & TRANSFORMATION,JOHAL DAIRIES LTD,07/10/2019,H59620191009DKHBPZDLA-1,47.02,CA WHITEHALL JUNIOR COMMUNITY -FOOD & DRINK SUPPLIES,OTHER NONDURABLE GOODS,GPC
WALSALL COUNCIL,HTTP://OPENDATACOMMUNITIES.ORG/ID/METROPOLITAN-DISTRICT-COUNCIL/WALSALL,31/12/2019,RESOURCES & TRANSFORMATION,BLAKEMORE FOODSERVICE,07/10/2019,H59620191009DRKQBPITS-1,24.43,CA RADLEYS PRIMARY SCHOOL-FOOD & DRINK SUPPLIES,CATERERS,GPC
WALSALL COUNCIL,HTTP://OPENDATACOMMUNITIES.ORG/ID/METROPOLITAN-DISTRICT-COUNCIL/WALSALL,31/12/2019,RESOURCES & TRANSFORMATION,BLAKEMORE FOODSERVICE,07/10/2019,H59620191009DRKQBPITS-2,311.99,CA RADLEYS PRIMARY SCHOOL-FOOD & DRINK SUPPLIES,CATERERS,GPC
WALSALL COUNCIL,HTTP://OPENDATACOMMUNITIES.ORG/ID/METROPOLITAN-DISTRICT-COUNCIL/WALSALL,31/12/2019,CHILDRENS SERVICES,PATOSS LTD,07/10/2019,H59620191009EIKODWGUQ-1,198.00,SEN-EXTERNAL TRAINING,"SCHOOLS, ELEMENTARY AND SECONDARY",GPC
WALSALL COUNCIL,HTTP://OPENDATACOMMUNITIES.ORG/ID/METROPOLITAN-DISTRICT-COUNCIL/WALSALL,31/12/2019,RESOURCES & TRANSFORMATION,BLAKEMORE FOODSERVICE,07/10/2019,H59620191009ETHPPEWUR-1,99.81,CA ELMORE GREEN PRIMARY SCHOOL-FOOD & DRINK SUPPLIES,CATERERS,GPC
WALSALL COUNCIL,HTTP://OPENDATACOMMUNITIES.ORG/ID/METROPOLITAN-DISTRICT-COUNCIL/WALSALL,31/12/2019,RESOURCES & TRANSFORMATION,BLAKEMORE FOODSERVICE,07/10/2019,H59620191009ETHPPEWUR-2,73.02,CA ELMORE GREEN PRIMARY SCHOOL-FOOD & DRINK SUPPLIES,CATERERS,GPC
WALSALL COUNCIL,HTTP://OPENDATACOMMUNITIES.ORG/ID/METROPOLITAN-DISTRICT-COUNCIL/WALSALL,31/12/2019,RESOURCES & TRANSFORMATION,JOHAL DAIRIES LTD,07/10/2019,H59620191009FCKKYIAES-1,35.60,CA COOPER JORDAN CE PRIMARY SC-FOOD & DRINK SUPPLIES,OTHER NONDURABLE GOODS,GPC
WALSALL COUNCIL,HTTP://OPENDATACOMMUNITIES.ORG/ID/METROPOLITAN-DISTRICT-COUNCIL/WALSALL,31/12/2019,ECONOMY & ENVIRONMENT,J P LENNARD LTD,07/10/2019,H59620191009FHJKBSREQ-1,248.45,WALSALL GALA CENTRE-FURNITURE & EQUIPMENT,SPORTING GOODS STORES,GPC
WALSALL COUNCIL,HTTP://OPENDATACOMMUNITIES.ORG/ID/METROPOLITAN-DISTRICT-COUNCIL/WALSALL,31/12/2019,RESOURCES & TRANSFORMATION,EXPEDIA 7482328342657,07/10/2019,H59620191009FHLNPUXBP-1,355.49,BED & BREAKFAST PAYMENTS-BED & BREAKFAST PAYMENTS,TRAVEL AGENCIES AND TOUR OPERATORS,GPC
WALSALL COUNCIL,HTTP://OPENDATACOMMUNITIES.ORG/ID/METROPOLITAN-DISTRICT-COUNCIL/WALSALL,31/12/2019,ECONOMY & ENVIRONMENT,L & S ENGINEERS LTD,07/10/2019,H59620191009FHWLJDHNI-1,22.40,DEPOT-GENERAL MATERIALS,HARDWARE STORES,GPC
WALSALL COUNCIL,HTTP://OPENDATACOMMUNITIES.ORG/ID/METROPOLITAN-DISTRICT-COUNCIL/WALSALL,31/12/2019,ECONOMY & ENVIRONMENT,FAST KEY SERVICES LIMI,07/10/2019,H59620191009FNUGMOULM-1,9.95,LICENSING ADMINISTRATION-PROFESSIONAL FEES AND SERVICES,OTHER BUSINESS SERVICES,GPC
WALSALL COUNCIL,HTTP://OPENDATACOMMUNITIES.ORG/ID/METROPOLITAN-DISTRICT-COUNCIL/WALSALL,31/12/2019,RESOURCES & TRANSFORMATION,JOHAL DAIRIES LTD,07/10/2019,H59620191009FNVJQGBSP-1,24.72,CA MOORCROFT WOOD-FOOD & DRINK SUPPLIES,OTHER NONDURABLE GOODS,GPC
WALSALL COUNCIL,HTTP://OPENDATACOMMUNITIES.ORG/ID/METROPOLITAN-DISTRICT-COUNCIL/WALSALL,31/12/2019,RESOURCES & TRANSFORMATION,JOHAL DAIRIES LTD,07/10/2019,H59620191009FOWTMEDPG-1,32.43,CA ABBEY PRIMARY SCHOOL-FOOD & DRINK SUPPLIES,OTHER NONDURABLE GOODS,GPC
WALSALL COUNCIL,HTTP://OPENDATACOMMUNITIES.ORG/ID/METROPOLITAN-DISTRICT-COUNCIL/WALSALL,31/12/2019,CHILDRENS SERVICES,WALSALL COUNCIL,07/10/2019,H59620191009FUNLOTJXM-1,2.34,ST JOHNS C.E. PRIMARY SCHOOL-POLICE CHECKS-EMPLOYEES,GOVERNMENT SERVICES,GPC
WALSALL COUNCIL,HTTP://OPENDATACOMMUNITIES.ORG/ID/METROPOLITAN-DISTRICT-COUNCIL/WALSALL,31/12/2019,CHILDRENS SERVICES,ALDI 90 772,07/10/2019,H59620191009FYDAHYRHN-1,19.54,PELSALL VILLAGE SCHOOL-FOOD & DRINK SUPPLIES,GROCERY STORES AND SUPERMARKETS,GPC
WALSALL COUNCIL,HTTP://OPENDATACOMMUNITIES.ORG/ID/METROPOLITAN-DISTRICT-COUNCIL/WALSALL,31/12/2019,CHILDRENS SERVICES,ALDI 90 772,07/10/2019,H59620191009FYDAHYRHN-2,1.58,PELSALL VILLAGE SCHOOL-FOOD & DRINK SUPPLIES,GROCERY STORES AND SUPERMARKETS,GPC
WALSALL COUNCIL,HTTP://OPENDATACOMMUNITIES.ORG/ID/METROPOLITAN-DISTRICT-COUNCIL/WALSALL,31/12/2019,RESOURCES & TRANSFORMATION,JOHAL DAIRIES LTD,07/10/2019,H59620191009GEFXUUEBG-1,2.82,CA CROFT COMMUNITY PRIMARY SCH-FOOD & DRINK SUPPLIES,OTHER NONDURABLE GOODS,GPC
WALSALL COUNCIL,HTTP://OPENDATACOMMUNITIES.ORG/ID/METROPOLITAN-DISTRICT-COUNCIL/WALSALL,31/12/2019,CHILDRENS SERVICES,WWW.ARGOS.CO.UK,07/10/2019,H59620191009GKXKYDDYU-1,36.94,TRANSITION AND LEAVING CARE PL-FURNITURE & EQUIPMENT,DISCOUNT STORES,GPC
WALSALL COUNCIL,HTTP://OPENDATACOMMUNITIES.ORG/ID/METROPOLITAN-DISTRICT-COUNCIL/WALSALL,31/12/2019,CHILDRENS SERVICES,ASDA GROCERIES ONLINE,07/10/2019,H59620191009HALHNMLTB-1,4.50,FOOD TECHNOLOGY-GENERAL MATERIALS,GROCERY STORES AND SUPERMARKETS,GPC
WALSALL COUNCIL,HTTP://OPENDATACOMMUNITIES.ORG/ID/METROPOLITAN-DISTRICT-COUNCIL/WALSALL,31/12/2019,CHILDRENS SERVICES,ASDA GROCERIES ONLINE,07/10/2019,H59620191009HALHNMLTB-2,39.38,FOOD TECHNOLOGY-GENERAL MATERIALS,GROCERY STORES AND SUPERMARKETS,GPC
WALSALL COUNCIL,HTTP://OPENDATACOMMUNITIES.ORG/ID/METROPOLITAN-DISTRICT-COUNCIL/WALSALL,31/12/2019,CHILDRENS SERVICES,TTROCKSTARS.COM,07/10/2019,H59620191009HFAEKMOJY-1,113.88,PELSALL VILLAGE SCHOOL-FAIR FUNDING CORPORATE ELEMENT,OTHER SCHOOLS AND EDUCATIONAL SERVICES,GPC
WALSALL COUNCIL,HTTP://OPENDATACOMMUNITIES.ORG/ID/METROPOLITAN-DISTRICT-COUNCIL/WALSALL,31/12/2019,RESOURCES & TRANSFORMATION,BLAKEMORE FOODSERVICE,07/10/2019,H59620191009HHWPCIXGL-1,123.97,CA ST GILES C.E. PRIMARY SCHOO-FOOD & DRINK SUPPLIES,CATERERS,GPC
WALSALL COUNCIL,HTTP://OPENDATACOMMUNITIES.ORG/ID/METROPOLITAN-DISTRICT-COUNCIL/WALSALL,31/12/2019,RESOURCES & TRANSFORMATION,DIAMOND CARS TELFORD L,07/10/2019,H59620191009HJOZNGKRV-1,94.70,PROCESSING-EXTERNAL TRAINING,TAXI SERVICES,GPC
WALSALL COUNCIL,HTTP://OPENDATACOMMUNITIES.ORG/ID/METROPOLITAN-DISTRICT-COUNCIL/WALSALL,31/12/2019,RESOURCES & TRANSFORMATION,JOHAL DAIRIES LTD,07/10/2019,H59620191009HRPIICXIQ-1,22.56,CA BROWNHILLS WEST PRIMARY SCH-FOOD & DRINK SUPPLIES,OTHER NONDURABLE GOODS,GPC
WALSALL COUNCIL,HTTP://OPENDATACOMMUNITIES.ORG/ID/METROPOLITAN-DISTRICT-COUNCIL/WALSALL,31/12/2019,RESOURCES & TRANSFORMATION,TRAINLINE.COM,07/10/2019,H59620191009IAINIOEEL-1,355.24,DATA CENTRES-OTHER-TRAVEL ALLOWANCES,PASSENGER RAILWAYS,GPC
WALSALL COUNCIL,HTTP://OPENDATACOMMUNITIES.ORG/ID/METROPOLITAN-DISTRICT-COUNCIL/WALSALL,31/12/2019,CHILDRENS SERVICES,FARMFOODS- KINGSTA,07/10/2019,H59620191009ICJPSWSQB-1,48.00,REDRUTH ROAD-CLEANING MATERIALS,GROCERY STORES AND SUPERMARKETS,GPC
WALSALL COUNCIL,HTTP://OPENDATACOMMUNITIES.ORG/ID/METROPOLITAN-DISTRICT-COUNCIL/WALSALL,31/12/2019,RESOURCES & TRANSFORMATION,JOHAL DAIRIES LTD,07/10/2019,H59620191009IDJHXXBJX-1,25.20,CA CASTLEFORT JMI SCHOOL-FOOD & DRINK SUPPLIES,OTHER NONDURABLE GOODS,GPC
WALSALL COUNCIL,HTTP://OPENDATACOMMUNITIES.ORG/ID/METROPOLITAN-DISTRICT-COUNCIL/WALSALL,31/12/2019,CHILDRENS SERVICES,WWW.RYMAN.CO.UK,07/10/2019,H59620191009ITBGGMGHL-1,27.47,ADMINISTRATIVE SUPPLIES-STATIONERY & GENERAL SUPPLIES,"OFFICE, SCHOOL SUPPLY, AND STATIONERY STORES",GPC
WALSALL COUNCIL,HTTP://OPENDATACOMMUNITIES.ORG/ID/METROPOLITAN-DISTRICT-COUNCIL/WALSALL,31/12/2019,CHILDRENS SERVICES,WALSALL DIY LTD,07/10/2019,H59620191009IXTCFXKVM-1,7.50,TARGETED YOUTH WORK-GENERAL MATERIALS,HARDWARE STORES,GPC
WALSALL COUNCIL,HTTP://OPENDATACOMMUNITIES.ORG/ID/METROPOLITAN-DISTRICT-COUNCIL/WALSALL,31/12/2019,CHILDRENS SERVICES,AMAZON.CO.UK*MO1VS5NE4 AM,07/10/2019,H59620191009IYSIEIORH-1,69.49,TRANSITION AND LEAVING CARE PL-FURNITURE & EQUIPMENT,MISCELLANEOUS AND SPECIALTY RETAIL STORES,GPC
WALSALL COUNCIL,HTTP://OPENDATACOMMUNITIES.ORG/ID/METROPOLITAN-DISTRICT-COUNCIL/WALSALL,31/12/2019,ADULT SOCIAL CARE,POST OFFICE COUNTER,07/10/2019,H59620191009JHXHNFYYL-1,1.90,GOSCOTE-POSTAGES AND COURIER SERVICES,POSTAL SERVICES - GOVERNMENT ONLY,GPC
WALSALL COUNCIL,HTTP://OPENDATACOMMUNITIES.ORG/ID/METROPOLITAN-DISTRICT-COUNCIL/WALSALL,31/12/2019,RESOURCES & TRANSFORMATION,JOHAL DAIRIES LTD,07/10/2019,H59620191009JSDHPKEGX-1,18.66,CA WATLING STREET PRIMARY SCHO-FOOD & DRINK SUPPLIES,OTHER NONDURABLE GOODS,GPC
WALSALL COUNCIL,HTTP://OPENDATACOMMUNITIES.ORG/ID/METROPOLITAN-DISTRICT-COUNCIL/WALSALL,31/12/2019,ECONOMY & ENVIRONMENT,WWW.BANNERUK.COM,07/10/2019,H59620191009KGJTSRLBT-1,63.79,CENTRALISED STATIONARY-STATIONERY & GENERAL SUPPLIES,"STATIONERY, OFFICE SUPPLIES AND WRITING PAPER",GPC
WALSALL COUNCIL,HTTP://OPENDATACOMMUNITIES.ORG/ID/METROPOLITAN-DISTRICT-COUNCIL/WALSALL,31/12/2019,RESOURCES & TRANSFORMATION,BLAKEMORE FOODSERVICE,07/10/2019,H59620191009KWBLPRFVH-1,232.08,CA COOPER JORDAN CE PRIMARY SC-FOOD & DRINK SUPPLIES,CATERERS,GPC
WALSALL COUNCIL,HTTP://OPENDATACOMMUNITIES.ORG/ID/METROPOLITAN-DISTRICT-COUNCIL/WALSALL,31/12/2019,RESOURCES & TRANSFORMATION,BLAKEMORE FOODSERVICE,07/10/2019,H59620191009KWBLPRFVH-2,36.65,CA COOPER JORDAN CE PRIMARY SC-FOOD & DRINK SUPPLIES,CATERERS,GPC
WALSALL COUNCIL,HTTP://OPENDATACOMMUNITIES.ORG/ID/METROPOLITAN-DISTRICT-COUNCIL/WALSALL,31/12/2019,RESOURCES & TRANSFORMATION,JOHAL DAIRIES LTD,07/10/2019,H59620191009LMPBVRXZF-1,7.22,CA JANE LANE SPECIAL SCHOOL-FOOD & DRINK SUPPLIES,OTHER NONDURABLE GOODS,GPC
WALSALL COUNCIL,HTTP://OPENDATACOMMUNITIES.ORG/ID/METROPOLITAN-DISTRICT-COUNCIL/WALSALL,31/12/2019,CHILDRENS SERVICES,AMZNMKTPLACE,07/10/2019,H59620191009LOKJFYSHK-1,22.78,FOUNDATION STAGE-GENERAL MATERIALS,MISCELLANEOUS AND SPECIALTY RETAIL STORES,GPC
WALSALL COUNCIL,HTTP://OPENDATACOMMUNITIES.ORG/ID/METROPOLITAN-DISTRICT-COUNCIL/WALSALL,31/12/2019,CHILDRENS SERVICES,TRAINLINE.COM,07/10/2019,H59620191009LRXOAPQJI-1,43.22,SEN-OFFICER/STAFF-PUBLIC TRANSPORT,PASSENGER RAILWAYS,GPC
WALSALL COUNCIL,HTTP://OPENDATACOMMUNITIES.ORG/ID/METROPOLITAN-DISTRICT-COUNCIL/WALSALL,31/12/2019,CHILDRENS SERVICES,W M MORRISONS.COM,07/10/2019,H59620191009LVRJTMDYV-1,10.86,57 LICHFIELD ROAD-FOOD & DRINK SUPPLIES,GROCERY STORES AND SUPERMARKETS,GPC
WALSALL COUNCIL,HTTP://OPENDATACOMMUNITIES.ORG/ID/METROPOLITAN-DISTRICT-COUNCIL/WALSALL,31/12/2019,CHILDRENS SERVICES,W M MORRISONS.COM,07/10/2019,H59620191009LVRJTMDYV-2,88.24,57 LICHFIELD ROAD-FOOD & DRINK SUPPLIES,GROCERY STORES AND SUPERMARKETS,GPC
WALSALL COUNCIL,HTTP://OPENDATACOMMUNITIES.ORG/ID/METROPOLITAN-DISTRICT-COUNCIL/WALSALL,31/12/2019,RESOURCES & TRANSFORMATION,BLAKEMORE FOODSERVICE,07/10/2019,H59620191009NDDEGXUKY-1,151.69,TOWN HALL RESTAURANT BISTRO-FOOD & DRINK SUPPLIES,CATERERS,GPC
WALSALL COUNCIL,HTTP://OPENDATACOMMUNITIES.ORG/ID/METROPOLITAN-DISTRICT-COUNCIL/WALSALL,31/12/2019,RESOURCES & TRANSFORMATION,BLAKEMORE FOODSERVICE,07/10/2019,H59620191009NDDEGXUKY-2,855.80,TOWN HALL RESTAURANT BISTRO-FOOD & DRINK SUPPLIES,CATERERS,GPC
WALSALL COUNCIL,HTTP://OPENDATACOMMUNITIES.ORG/ID/METROPOLITAN-DISTRICT-COUNCIL/WALSALL,31/12/2019,CHILDRENS SERVICES,WWW.BANNERUK.COM,07/10/2019,H59620191009NFSLVREVO-1,63.57,SAFEGUARDING & FAMILY SUPPORT-STATIONERY & GENERAL SUPPLIES,"STATIONERY, OFFICE SUPPLIES AND WRITING PAPER",GPC
WALSALL COUNCIL,HTTP://OPENDATACOMMUNITIES.ORG/ID/METROPOLITAN-DISTRICT-COUNCIL/WALSALL,31/12/2019,CHILDRENS SERVICES,WWW.BANNERUK.COM,07/10/2019,H59620191009NFSLVREVO-2,63.58,FAMILY PLACEMENTS-STATIONERY & GENERAL SUPPLIES,"STATIONERY, OFFICE SUPPLIES AND WRITING PAPER",GPC
WALSALL COUNCIL,HTTP://OPENDATACOMMUNITIES.ORG/ID/METROPOLITAN-DISTRICT-COUNCIL/WALSALL,31/12/2019,ECONOMY & ENVIRONMENT,AMZNMKTPLACE,07/10/2019,H59620191009NHVORBUZP-1,-4.28,EXHIBITIONS - SPECIAL PROJECTS-GENERAL MATERIALS,MISCELLANEOUS AND SPECIALTY RETAIL STORES,GPC
WALSALL COUNCIL,HTTP://OPENDATACOMMUNITIES.ORG/ID/METROPOLITAN-DISTRICT-COUNCIL/WALSALL,31/12/2019,CHILDRENS SERVICES,TRAINLINE,07/10/2019,H59620191009NMNDBFADI-1,32.80,SEN-OFFICER/STAFF-PUBLIC TRANSPORT,PASSENGER RAILWAYS,GPC
WALSALL COUNCIL,HTTP://OPENDATACOMMUNITIES.ORG/ID/METROPOLITAN-DISTRICT-COUNCIL/WALSALL,31/12/2019,RESOURCES & TRANSFORMATION,BLAKEMORE FOODSERVICE,07/10/2019,H59620191009NYJKPUGTS-1,247.16,CA BARCROFT D/C-FOOD & DRINK SUPPLIES,CATERERS,GPC
WALSALL COUNCIL,HTTP://OPENDATACOMMUNITIES.ORG/ID/METROPOLITAN-DISTRICT-COUNCIL/WALSALL,31/12/2019,RESOURCES & TRANSFORMATION,BLAKEMORE FOODSERVICE,07/10/2019,H59620191009NYJKPUGTS-2,58.42,CA BARCROFT D/C-FOOD & DRINK SUPPLIES,CATERERS,GPC
WALSALL COUNCIL,HTTP://OPENDATACOMMUNITIES.ORG/ID/METROPOLITAN-DISTRICT-COUNCIL/WALSALL,31/12/2019,RESOURCES & TRANSFORMATION,JOHAL DAIRIES LTD,07/10/2019,H59620191009OLKHQVPMI-1,8.65,CA ST BERNADETTES CATHOLIC PRI-FOOD & DRINK SUPPLIES,OTHER NONDURABLE GOODS,GPC
WALSALL COUNCIL,HTTP://OPENDATACOMMUNITIES.ORG/ID/METROPOLITAN-DISTRICT-COUNCIL/WALSALL,31/12/2019,RESOURCES & TRANSFORMATION,JOHAL DAIRIES LTD,07/10/2019,H59620191009OVTJWCDLJ-1,3.56,CA WALSALL WOOD PRIMARY SCHOOL-FOOD & DRINK SUPPLIES,OTHER NONDURABLE GOODS,GPC
WALSALL COUNCIL,HTTP://OPENDATACOMMUNITIES.ORG/ID/METROPOLITAN-DISTRICT-COUNCIL/WALSALL,31/12/2019,RESOURCES & TRANSFORMATION,BLAKEMORE FOODSERVICE,07/10/2019,H59620191009PENCKPWBA-1,35.33,CA KINGSHILL SCHOOL-FOOD & DRINK SUPPLIES,CATERERS,GPC
WALSALL COUNCIL,HTTP://OPENDATACOMMUNITIES.ORG/ID/METROPOLITAN-DISTRICT-COUNCIL/WALSALL,31/12/2019,RESOURCES & TRANSFORMATION,BLAKEMORE FOODSERVICE,07/10/2019,H59620191009PENCKPWBA-2,228.92,CA KINGSHILL SCHOOL-FOOD & DRINK SUPPLIES,CATERERS,GPC
WALSALL COUNCIL,HTTP://OPENDATACOMMUNITIES.ORG/ID/METROPOLITAN-DISTRICT-COUNCIL/WALSALL,31/12/2019,CHILDRENS SERVICES,REGISTRATION SERVICES,07/10/2019,H59620191009PQRRKFYVH-1,11.00,SAFEGUARDING & FAMILY SUPPORT-MISC FEES AND EXPENSES,OTHER RECREATION SERVICES,GPC
WALSALL COUNCIL,HTTP://OPENDATACOMMUNITIES.ORG/ID/METROPOLITAN-DISTRICT-COUNCIL/WALSALL,31/12/2019,RESOURCES & TRANSFORMATION,BLAKEMORE FOODSERVICE,07/10/2019,H59620191009PSEAVKTVG-1,191.80,CA ST MICHAELS C.E. PRIMARY SC-FOOD & DRINK SUPPLIES,CATERERS,GPC
WALSALL COUNCIL,HTTP://OPENDATACOMMUNITIES.ORG/ID/METROPOLITAN-DISTRICT-COUNCIL/WALSALL,31/12/2019,CHILDRENS SERVICES,WEST MID TRAVEL,07/10/2019,H59620191009PUXEMEORX-1,460.00,SAFEGUARDING & FAMILY SUPPORT-OTHER/VOLUNTEERS-PUBLIC TRANSP,BUS LINES,GPC
WALSALL COUNCIL,HTTP://OPENDATACOMMUNITIES.ORG/ID/METROPOLITAN-DISTRICT-COUNCIL/WALSALL,31/12/2019,CHILDRENS SERVICES,WEST MID TRAVEL,07/10/2019,H59620191009PUXEMEORX-2,6.35,SAFEGUARDING & FAMILY SUPPORT-POSTAGES AND COURIER SERVICES,BUS LINES,GPC
WALSALL COUNCIL,HTTP://OPENDATACOMMUNITIES.ORG/ID/METROPOLITAN-DISTRICT-COUNCIL/WALSALL,31/12/2019,RESOURCES & TRANSFORMATION,BLAKEMORE FOODSERVICE,07/10/2019,H59620191009PXQUSFFOO-1,350.99,CA ST JOHNS C.E. PRIMARY SCHOO-FOOD & DRINK SUPPLIES,CATERERS,GPC
WALSALL COUNCIL,HTTP://OPENDATACOMMUNITIES.ORG/ID/METROPOLITAN-DISTRICT-COUNCIL/WALSALL,31/12/2019,RESOURCES & TRANSFORMATION,BLAKEMORE FOODSERVICE,07/10/2019,H59620191009QBSBGJJEM-1,8.83,CA WHITEHALL JUNIOR COMMUNITY -FOOD & DRINK SUPPLIES,CATERERS,GPC
WALSALL COUNCIL,HTTP://OPENDATACOMMUNITIES.ORG/ID/METROPOLITAN-DISTRICT-COUNCIL/WALSALL,31/12/2019,RESOURCES & TRANSFORMATION,BLAKEMORE FOODSERVICE,07/10/2019,H59620191009QBSBGJJEM-2,254.62,CA WHITEHALL JUNIOR COMMUNITY -FOOD & DRINK SUPPLIES,CATERERS,GPC
WALSALL COUNCIL,HTTP://OPENDATACOMMUNITIES.ORG/ID/METROPOLITAN-DISTRICT-COUNCIL/WALSALL,31/12/2019,RESOURCES & TRANSFORMATION,BLAKEMORE FOODSERVICE,07/10/2019,H59620191009QHQNHFXPS-1,29.21,CA ELMORE GREEN PRIMARY SCHOOL-FOOD & DRINK SUPPLIES,CATERERS,GPC
WALSALL COUNCIL,HTTP://OPENDATACOMMUNITIES.ORG/ID/METROPOLITAN-DISTRICT-COUNCIL/WALSALL,31/12/2019,RESOURCES & TRANSFORMATION,TRAINLINE,07/10/2019,H59620191009QLGMTROUH-1,0.75,WELFARE RIGHTS-MISC FEES AND EXPENSES,PASSENGER RAILWAYS,GPC
WALSALL COUNCIL,HTTP://OPENDATACOMMUNITIES.ORG/ID/METROPOLITAN-DISTRICT-COUNCIL/WALSALL,31/12/2019,RESOURCES & TRANSFORMATION,TRAINLINE,07/10/2019,H59620191009QLGMTROUH-2,0.20,WELFARE RIGHTS-EXTERNAL TRAINING,PASSENGER RAILWAYS,GPC
WALSALL COUNCIL,HTTP://OPENDATACOMMUNITIES.ORG/ID/METROPOLITAN-DISTRICT-COUNCIL/WALSALL,31/12/2019,RESOURCES & TRANSFORMATION,TRAINLINE,07/10/2019,H59620191009QLGMTROUH-3,10.90,WELFARE RIGHTS-MISC FEES AND EXPENSES,PASSENGER RAILWAYS,GPC
WALSALL COUNCIL,HTTP://OPENDATACOMMUNITIES.ORG/ID/METROPOLITAN-DISTRICT-COUNCIL/WALSALL,31/12/2019,ECONOMY & ENVIRONMENT,SWIMMING TEACHERS ASSO,07/10/2019,H59620191009QMOFEZWSB-1,160.00,BLOXWICH LEISURE CENTRE-GENERAL MATERIALS,OTHER RECREATION SERVICES,GPC
WALSALL COUNCIL,HTTP://OPENDATACOMMUNITIES.ORG/ID/METROPOLITAN-DISTRICT-COUNCIL/WALSALL,31/12/2019,RESOURCES & TRANSFORMATION,BLAKEMORE FOODSERVICE,07/10/2019,H59620191009QXIDNRNTU-1,72.15,CA CROFT COMMUNITY PRIMARY SCH-FOOD & DRINK SUPPLIES,CATERERS,GPC
WALSALL COUNCIL,HTTP://OPENDATACOMMUNITIES.ORG/ID/METROPOLITAN-DISTRICT-COUNCIL/WALSALL,31/12/2019,RESOURCES & TRANSFORMATION,BLAKEMORE FOODSERVICE,07/10/2019,H59620191009QXIDNRNTU-2,14.60,CA CROFT COMMUNITY PRIMARY SCH-FOOD & DRINK SUPPLIES,CATERERS,GPC
WALSALL COUNCIL,HTTP://OPENDATACOMMUNITIES.ORG/ID/METROPOLITAN-DISTRICT-COUNCIL/WALSALL,31/12/2019,CHILDRENS SERVICES,VIRGIN TRAINS,07/10/2019,H59620191009QYMPGPWXJ-1,116.80,CHILD PROTECTION & REVIEW SERV-OFFICER/STAFF-PUBLIC TRANSPORT,PASSENGER RAILWAYS,GPC
WALSALL COUNCIL,HTTP://OPENDATACOMMUNITIES.ORG/ID/METROPOLITAN-DISTRICT-COUNCIL/WALSALL,31/12/2019,RESOURCES & TRANSFORMATION,BLAKEMORE FOODSERVICE,07/10/2019,H59620191009QYQJMOKZP-1,24.78,CA BUSILL JONES PRIMARY SCHOOL-FOOD & DRINK SUPPLIES,CATERERS,GPC
WALSALL COUNCIL,HTTP://OPENDATACOMMUNITIES.ORG/ID/METROPOLITAN-DISTRICT-COUNCIL/WALSALL,31/12/2019,RESOURCES & TRANSFORMATION,JOHAL DAIRIES LTD,07/10/2019,H59620191009RBORYHJDN-1,4.54,CA KINGSHILL SCHOOL-FOOD & DRINK SUPPLIES,OTHER NONDURABLE GOODS,GPC
WALSALL COUNCIL,HTTP://OPENDATACOMMUNITIES.ORG/ID/METROPOLITAN-DISTRICT-COUNCIL/WALSALL,31/12/2019,RESOURCES & TRANSFORMATION,JOHAL DAIRIES LTD,07/10/2019,H59620191009ROOXSTBDN-1,54.31,CA ELMORE GREEN PRIMARY SCHOOL-FOOD & DRINK SUPPLIES,OTHER NONDURABLE GOODS,GPC
WALSALL COUNCIL,HTTP://OPENDATACOMMUNITIES.ORG/ID/METROPOLITAN-DISTRICT-COUNCIL/WALSALL,31/12/2019,RESOURCES & TRANSFORMATION,BLAKEMORE FOODSERVICE,07/10/2019,H59620191009SFOEPHMVK-1,123.32,CA CASTLEFORT JMI SCHOOL-FOOD & DRINK SUPPLIES,CATERERS,GPC
WALSALL COUNCIL,HTTP://OPENDATACOMMUNITIES.ORG/ID/METROPOLITAN-DISTRICT-COUNCIL/WALSALL,31/12/2019,RESOURCES & TRANSFORMATION,BLAKEMORE FOODSERVICE,07/10/2019,H59620191009SGEWXQLKC-1,239.26,CA CROFT COMMUNITY PRIMARY SCH-FOOD & DRINK SUPPLIES,CATERERS,GPC
WALSALL COUNCIL,HTTP://OPENDATACOMMUNITIES.ORG/ID/METROPOLITAN-DISTRICT-COUNCIL/WALSALL,31/12/2019,RESOURCES & TRANSFORMATION,BLAKEMORE FOODSERVICE,07/10/2019,H59620191009STEFIKSHX-1,341.38,CA LEIGHSWOOD PRIMARY SCHOOL-FOOD & DRINK SUPPLIES,CATERERS,GPC
WALSALL COUNCIL,HTTP://OPENDATACOMMUNITIES.ORG/ID/METROPOLITAN-DISTRICT-COUNCIL/WALSALL,31/12/2019,RESOURCES & TRANSFORMATION,BLAKEMORE FOODSERVICE,07/10/2019,H59620191009TNWCJFOPW-1,250.24,CA BEACON PRIMARY SCHOOL-FOOD & DRINK SUPPLIES,CATERERS,GPC
WALSALL COUNCIL,HTTP://OPENDATACOMMUNITIES.ORG/ID/METROPOLITAN-DISTRICT-COUNCIL/WALSALL,31/12/2019,RESOURCES & TRANSFORMATION,BLAKEMORE FOODSERVICE,07/10/2019,H59620191009TNWCJFOPW-2,29.21,CA BEACON PRIMARY SCHOOL-FOOD & DRINK SUPPLIES,CATERERS,GPC
WALSALL COUNCIL,HTTP://OPENDATACOMMUNITIES.ORG/ID/METROPOLITAN-DISTRICT-COUNCIL/WALSALL,31/12/2019,RESOURCES & TRANSFORMATION,JOHAL DAIRIES LTD,07/10/2019,H59620191009TVVRBDKRR-1,18.20,CA BARCROFT D/C-FOOD & DRINK SUPPLIES,OTHER NONDURABLE GOODS,GPC
WALSALL COUNCIL,HTTP://OPENDATACOMMUNITIES.ORG/ID/METROPOLITAN-DISTRICT-COUNCIL/WALSALL,31/12/2019,CHILDRENS SERVICES,WM MORRISON FOOD.COM,07/10/2019,H59620191009UNGXILQDN-1,14.16,BIRCHILLS CHILDCARE SERVICES-FOOD & DRINK SUPPLIES,GROCERY STORES AND SUPERMARKETS,GPC
WALSALL COUNCIL,HTTP://OPENDATACOMMUNITIES.ORG/ID/METROPOLITAN-DISTRICT-COUNCIL/WALSALL,31/12/2019,CHILDRENS SERVICES,WM MORRISON FOOD.COM,07/10/2019,H59620191009UNGXILQDN-2,125.83,BIRCHILLS CHILDCARE SERVICES-FOOD & DRINK SUPPLIES,GROCERY STORES AND SUPERMARKETS,GPC
WALSALL COUNCIL,HTTP://OPENDATACOMMUNITIES.ORG/ID/METROPOLITAN-DISTRICT-COUNCIL/WALSALL,31/12/2019,CHILDRENS SERVICES,ALDI 14 772,07/10/2019,H59620191009UPNTGBTRU-1,12.60,PARENTING TEAM-FOOD & DRINK SUPPLIES,GROCERY STORES AND SUPERMARKETS,GPC
WALSALL COUNCIL,HTTP://OPENDATACOMMUNITIES.ORG/ID/METROPOLITAN-DISTRICT-COUNCIL/WALSALL,31/12/2019,CHILDRENS SERVICES,ALDI 14 772,07/10/2019,H59620191009UPNTGBTRU-2,2.80,PARENTING TEAM-FOOD & DRINK SUPPLIES,GROCERY STORES AND SUPERMARKETS,GPC
WALSALL COUNCIL,HTTP://OPENDATACOMMUNITIES.ORG/ID/METROPOLITAN-DISTRICT-COUNCIL/WALSALL,31/12/2019,RESOURCES & TRANSFORMATION,TRAVELODGE GB0000,07/10/2019,H59620191009UTOEYGSRK-1,344.00,WALSALL CRISIS SUPPORT SCHEME-HOTEL ACCOMMODATION-EMPLOYEES,TRAVELODGE,GPC
WALSALL COUNCIL,HTTP://OPENDATACOMMUNITIES.ORG/ID/METROPOLITAN-DISTRICT-COUNCIL/WALSALL,31/12/2019,RESOURCES & TRANSFORMATION,JOHAL DAIRIES LTD,07/10/2019,H59620191009UUYERDXCW-1,1.90,CA BUSILL JONES PRIMARY SCHOOL-FOOD & DRINK SUPPLIES,OTHER NONDURABLE GOODS,GPC
WALSALL COUNCIL,HTTP://OPENDATACOMMUNITIES.ORG/ID/METROPOLITAN-DISTRICT-COUNCIL/WALSALL,31/12/2019,RESOURCES & TRANSFORMATION,BLAKEMORE FOODSERVICE,07/10/2019,H59620191009UUYQQEZGI-1,416.49,CA ST JOHNS C.E. PRIMARY SCHOO-FOOD & DRINK SUPPLIES,CATERERS,GPC
WALSALL COUNCIL,HTTP://OPENDATACOMMUNITIES.ORG/ID/METROPOLITAN-DISTRICT-COUNCIL/WALSALL,31/12/2019,CHILDRENS SERVICES,HALFORDS 0820,07/10/2019,H59620191009UYBDHLGBB-1,29.99,EARLY HELP HUB-MISC FEES AND EXPENSES,BICYCLE SHOPS-SALES AND SERVICE,GPC
WALSALL COUNCIL,HTTP://OPENDATACOMMUNITIES.ORG/ID/METROPOLITAN-DISTRICT-COUNCIL/WALSALL,31/12/2019,CHILDRENS SERVICES,TWINKL LIMITED,07/10/2019,H59620191009VAJRLJNMW-1,67.44,EARLY YEARS-PUBLICATIONS/ORGANISATIONS-SUB,OTHER SCHOOLS AND EDUCATIONAL SERVICES,GPC
WALSALL COUNCIL,HTTP://OPENDATACOMMUNITIES.ORG/ID/METROPOLITAN-DISTRICT-COUNCIL/WALSALL,31/12/2019,RESOURCES & TRANSFORMATION,BLAKEMORE FOODSERVICE,07/10/2019,H59620191009VCKOYELQX-1,102.23,CA RADLEYS PRIMARY SCHOOL-FOOD & DRINK SUPPLIES,CATERERS,GPC
WALSALL COUNCIL,HTTP://OPENDATACOMMUNITIES.ORG/ID/METROPOLITAN-DISTRICT-COUNCIL/WALSALL,31/12/2019,RESOURCES & TRANSFORMATION,BLAKEMORE FOODSERVICE,07/10/2019,H59620191009VCKOYELQX-2,316.70,CA RADLEYS PRIMARY SCHOOL-FOOD & DRINK SUPPLIES,CATERERS,GPC
WALSALL COUNCIL,HTTP://OPENDATACOMMUNITIES.ORG/ID/METROPOLITAN-DISTRICT-COUNCIL/WALSALL,31/12/2019,RESOURCES & TRANSFORMATION,JOHAL DAIRIES LTD,07/10/2019,H59620191009VJJONXIPI-1,1.72,CA BEACON PRIMARY SCHOOL-FOOD & DRINK SUPPLIES,OTHER NONDURABLE GOODS,GPC
WALSALL COUNCIL,HTTP://OPENDATACOMMUNITIES.ORG/ID/METROPOLITAN-DISTRICT-COUNCIL/WALSALL,31/12/2019,CHILDRENS SERVICES,ASDA GROCERIES ONLINE,07/10/2019,H59620191009VLKQVHOBM-1,43.78,BREAKFAST CLUB-FOOD & DRINK SUPPLIES,GROCERY STORES AND SUPERMARKETS,GPC
WALSALL COUNCIL,HTTP://OPENDATACOMMUNITIES.ORG/ID/METROPOLITAN-DISTRICT-COUNCIL/WALSALL,31/12/2019,RESOURCES & TRANSFORMATION,BLAKEMORE FOODSERVICE,07/10/2019,H59620191009VMJDRHRDM-1,112.34,CA BUSILL JONES PRIMARY SCHOOL-FOOD & DRINK SUPPLIES,CATERERS,GPC
WALSALL COUNCIL,HTTP://OPENDATACOMMUNITIES.ORG/ID/METROPOLITAN-DISTRICT-COUNCIL/WALSALL,31/12/2019,RESOURCES & TRANSFORMATION,BLAKEMORE FOODSERVICE,07/10/2019,H59620191009VMJDRHRDM-2,58.42,CA BUSILL JONES PRIMARY SCHOOL-FOOD & DRINK SUPPLIES,CATERERS,GPC
WALSALL COUNCIL,HTTP://OPENDATACOMMUNITIES.ORG/ID/METROPOLITAN-DISTRICT-COUNCIL/WALSALL,31/12/2019,CHILDRENS SERVICES,ASDA SUPERSTORE,07/10/2019,H59620191009VVHLDRMEP-1,6.21,MARY ELLIOTT SCHOOL-FOOD & DRINK SUPPLIES,GROCERY STORES AND SUPERMARKETS,GPC
WALSALL COUNCIL,HTTP://OPENDATACOMMUNITIES.ORG/ID/METROPOLITAN-DISTRICT-COUNCIL/WALSALL,31/12/2019,CHILDRENS SERVICES,DAVENPORT BURGESS,07/10/2019,H59620191009WEEYUUVFY-1,8.00,PELSALL VILLAGE SCHOOL-OPERATIONAL MAINTENANCE,"HAT CLEANING SHOPS, SHOE REPAIR SHOPS, SHOE SHINE ",GPC
WALSALL COUNCIL,HTTP://OPENDATACOMMUNITIES.ORG/ID/METROPOLITAN-DISTRICT-COUNCIL/WALSALL,31/12/2019,CHILDRENS SERVICES,JOHAL DAIRIES LTD,07/10/2019,H59620191009WEXUQPBWC-1,7.20,57 LICHFIELD ROAD-FOOD & DRINK SUPPLIES,OTHER NONDURABLE GOODS,GPC
WALSALL COUNCIL,HTTP://OPENDATACOMMUNITIES.ORG/ID/METROPOLITAN-DISTRICT-COUNCIL/WALSALL,31/12/2019,RESOURCES & TRANSFORMATION,JOHAL DAIRIES LTD,07/10/2019,H59620191009WGJFYIRKN-1,37.44,TOWN HALL RESTAURANT BISTRO-FOOD & DRINK SUPPLIES,OTHER NONDURABLE GOODS,GPC
WALSALL COUNCIL,HTTP://OPENDATACOMMUNITIES.ORG/ID/METROPOLITAN-DISTRICT-COUNCIL/WALSALL,31/12/2019,RESOURCES & TRANSFORMATION,JOHAL DAIRIES LTD,07/10/2019,H59620191009WNXTOCBNQ-1,56.16,CA ST MICHAELS C.E. PRIMARY SC-FOOD & DRINK SUPPLIES,OTHER NONDURABLE GOODS,GPC
WALSALL COUNCIL,HTTP://OPENDATACOMMUNITIES.ORG/ID/METROPOLITAN-DISTRICT-COUNCIL/WALSALL,31/12/2019,ECONOMY & ENVIRONMENT,AMZNMKTPLACE,07/10/2019,H59620191009WUIQVVQHQ-1,43.69,EXHIBITIONS - SPECIAL PROJECTS-GENERAL MATERIALS,MISCELLANEOUS AND SPECIALTY RETAIL STORES,GPC
WALSALL COUNCIL,HTTP://OPENDATACOMMUNITIES.ORG/ID/METROPOLITAN-DISTRICT-COUNCIL/WALSALL,31/12/2019,CHILDRENS SERVICES,PATOSS LTD,07/10/2019,H59620191009XQTSHBHHT-1,198.00,SEN-EXTERNAL TRAINING,"SCHOOLS, ELEMENTARY AND SECONDARY",GPC
WALSALL COUNCIL,HTTP://OPENDATACOMMUNITIES.ORG/ID/METROPOLITAN-DISTRICT-COUNCIL/WALSALL,31/12/2019,CHILDRENS SERVICES (SCHOOLS),BUZZ CONNECT,07/10/2019,H59620191009XRJMWHIWL-1,12.96,ADMINISTRATIVE SUPPLIES-GENERAL MATERIALS,TELECOMMUNICATION SERVICES,GPC
WALSALL COUNCIL,HTTP://OPENDATACOMMUNITIES.ORG/ID/METROPOLITAN-DISTRICT-COUNCIL/WALSALL,31/12/2019,RESOURCES & TRANSFORMATION,JOHAL DAIRIES LTD,07/10/2019,H59620191009XRKPAGKCX-1,8.06,CA ELMWOOD SPECIAL SCHOOL-FOOD & DRINK SUPPLIES,OTHER NONDURABLE GOODS,GPC
WALSALL COUNCIL,HTTP://OPENDATACOMMUNITIES.ORG/ID/METROPOLITAN-DISTRICT-COUNCIL/WALSALL,31/12/2019,ECONOMY & ENVIRONMENT,AMAZON.CO.UK*MO0MG1TC4,07/10/2019,H59620191009YCNHKAHKE-1,16.97,OAK PARK-GENERAL MATERIALS,OTHER DIRECT MARKETING-OTHER DIRECT MARKETERS,GPC
WALSALL COUNCIL,HTTP://OPENDATACOMMUNITIES.ORG/ID/METROPOLITAN-DISTRICT-COUNCIL/WALSALL,31/12/2019,RESOURCES & TRANSFORMATION,BLAKEMORE FOODSERVICE,07/10/2019,H59620191009YGODRTXYR-1,128.27,CA LINDENS PRIMARY SCHOOL-FOOD & DRINK SUPPLIES,CATERERS,GPC
WALSALL COUNCIL,HTTP://OPENDATACOMMUNITIES.ORG/ID/METROPOLITAN-DISTRICT-COUNCIL/WALSALL,31/12/2019,RESOURCES & TRANSFORMATION,BLAKEMORE FOODSERVICE,07/10/2019,H59620191009YGODRTXYR-2,152.36,CA LINDENS PRIMARY SCHOOL-FOOD & DRINK SUPPLIES,CATERERS,GPC
WALSALL COUNCIL,HTTP://OPENDATACOMMUNITIES.ORG/ID/METROPOLITAN-DISTRICT-COUNCIL/WALSALL,31/12/2019,RESOURCES & TRANSFORMATION,JOHAL DAIRIES LTD,07/10/2019,H59620191009YJNLHLOFC-1,7.44,CA RUSHALL JMI SCHOOL-FOOD & DRINK SUPPLIES,OTHER NONDURABLE GOODS,GPC
WALSALL COUNCIL,HTTP://OPENDATACOMMUNITIES.ORG/ID/METROPOLITAN-DISTRICT-COUNCIL/WALSALL,31/12/2019,RESOURCES & TRANSFORMATION,BLAKEMORE FOODSERVICE,07/10/2019,H59620191009YMTTGXOVU-1,27.01,CA COOPER JORDAN CE PRIMARY SC-FOOD & DRINK SUPPLIES,CATERERS,GPC
WALSALL COUNCIL,HTTP://OPENDATACOMMUNITIES.ORG/ID/METROPOLITAN-DISTRICT-COUNCIL/WALSALL,31/12/2019,RESOURCES & TRANSFORMATION,SALVATION ARMY TRADING C,07/10/2019,H59620191009ZQAVNOEGJ-1,500.00,COMMUNITY SAFETY 2012/2013-MISC FEES AND EXPENSES,DEPARTMENT STORES,GPC
WALSALL COUNCIL,HTTP://OPENDATACOMMUNITIES.ORG/ID/METROPOLITAN-DISTRICT-COUNCIL/WALSALL,31/12/2019,CHILDRENS SERVICES,PRIMARK 690,07/10/2019,H59620191010EGUJAFEDW-1,6.50,57 LICHFIELD ROAD-RESIDENTS PERSONAL EXPENSES-AL,CLOTHING STORES,GPC
WALSALL COUNCIL,HTTP://OPENDATACOMMUNITIES.ORG/ID/METROPOLITAN-DISTRICT-COUNCIL/WALSALL,31/12/2019,CHILDRENS SERVICES,PREMIER INN44018095,07/10/2019,H59620191010OIVMYGVZG-1,101.50,SAFEGUARDING & FAMILY SUPPORT-HOTEL ACCOMMODATION-EMPLOYEES,PREMIER INN,GPC
WALSALL COUNCIL,HTTP://OPENDATACOMMUNITIES.ORG/ID/METROPOLITAN-DISTRICT-COUNCIL/WALSALL,31/12/2019,RESOURCES & TRANSFORMATION,PREMIER INN44529235,07/10/2019,H59620191010WUNTFUYVO-1,242.00,DATA CENTRES-HOTEL ACCOMMODATION-EMPLOYEES,PREMIER INN,GPC
WALSALL COUNCIL,HTTP://OPENDATACOMMUNITIES.ORG/ID/METROPOLITAN-DISTRICT-COUNCIL/WALSALL,31/12/2019,CHILDRENS SERVICES,TRAINLINE.COM,08/10/2019,H59620191010AKMYJUAWC-1,102.21,EARLY YEARS AND DISABILITIES S-OFFICER/STAFF-PUBLIC TRANSPORT,PASSENGER RAILWAYS,GPC
WALSALL COUNCIL,HTTP://OPENDATACOMMUNITIES.ORG/ID/METROPOLITAN-DISTRICT-COUNCIL/WALSALL,31/12/2019,RESOURCES & TRANSFORMATION,ARTHUR BRETT CATER,08/10/2019,H59620191010BEELFHELI-1,86.18,CA WATLING STREET PRIMARY SCHO-FOOD & DRINK SUPPLIES,MISCELLANEOUS FOOD STORES & CONVENIENCE STORES,GPC
WALSALL COUNCIL,HTTP://OPENDATACOMMUNITIES.ORG/ID/METROPOLITAN-DISTRICT-COUNCIL/WALSALL,31/12/2019,CHILDRENS SERVICES,WALSALL STN T/O,08/10/2019,H59620191010BFILCSAAR-1,18.35,LOOKED AFTER CHILDRENS SOCIAL -OFFICER/STAFF-PUBLIC TRANSPORT,PASSENGER RAILWAYS,GPC
WALSALL COUNCIL,HTTP://OPENDATACOMMUNITIES.ORG/ID/METROPOLITAN-DISTRICT-COUNCIL/WALSALL,31/12/2019,RESOURCES & TRANSFORMATION,ARTHUR BRETT CATER,08/10/2019,H59620191010BFJFEEKSQ-1,123.75,CA MEADOW VIEW JMI PRIMARY SCH-FOOD & DRINK SUPPLIES,MISCELLANEOUS FOOD STORES & CONVENIENCE STORES,GPC
WALSALL COUNCIL,HTTP://OPENDATACOMMUNITIES.ORG/ID/METROPOLITAN-DISTRICT-COUNCIL/WALSALL,31/12/2019,CHILDRENS SERVICES,AMZNMKTPLACE,08/10/2019,H59620191010BTMYIVAMG-1,19.96,ADMINISTRATIVE SUPPLIES-GENERAL MATERIALS,MISCELLANEOUS AND SPECIALTY RETAIL STORES,GPC
WALSALL COUNCIL,HTTP://OPENDATACOMMUNITIES.ORG/ID/METROPOLITAN-DISTRICT-COUNCIL/WALSALL,31/12/2019,RESOURCES & TRANSFORMATION,TESCO STORES 6876,08/10/2019,H59620191010CMFSFQMLF-1,3.15,YOUNG PERSONS HOMELESS SERVICE-FOOD & DRINK SUPPLIES,GROCERY STORES AND SUPERMARKETS,GPC
WALSALL COUNCIL,HTTP://OPENDATACOMMUNITIES.ORG/ID/METROPOLITAN-DISTRICT-COUNCIL/WALSALL,31/12/2019,RESOURCES & TRANSFORMATION,ARTHUR BRETT CATER,08/10/2019,H59620191010DCXKGIDXE-1,69.80,CA CROFT COMMUNITY PRIMARY SCH-FOOD & DRINK SUPPLIES,MISCELLANEOUS FOOD STORES & CONVENIENCE STORES,GPC
WALSALL COUNCIL,HTTP://OPENDATACOMMUNITIES.ORG/ID/METROPOLITAN-DISTRICT-COUNCIL/WALSALL,31/12/2019,CHILDRENS SERVICES,AMZNMKTPLACE,08/10/2019,H59620191010DDMSHFEWX-1,73.98,DT & ART-GENERAL MATERIALS,MISCELLANEOUS AND SPECIALTY RETAIL STORES,GPC
WALSALL COUNCIL,HTTP://OPENDATACOMMUNITIES.ORG/ID/METROPOLITAN-DISTRICT-COUNCIL/WALSALL,31/12/2019,CHILDRENS SERVICES,AMZNMKTPLACE,08/10/2019,H59620191010DDMSHFEWX-2,35.98,DT & ART-GENERAL MATERIALS,MISCELLANEOUS AND SPECIALTY RETAIL STORES,GPC
WALSALL COUNCIL,HTTP://OPENDATACOMMUNITIES.ORG/ID/METROPOLITAN-DISTRICT-COUNCIL/WALSALL,31/12/2019,CHILDRENS SERVICES,AMZNMKTPLACE,08/10/2019,H59620191010DDMSHFEWX-3,9.99,DT & ART-GENERAL MATERIALS,MISCELLANEOUS AND SPECIALTY RETAIL STORES,GPC
WALSALL COUNCIL,HTTP://OPENDATACOMMUNITIES.ORG/ID/METROPOLITAN-DISTRICT-COUNCIL/WALSALL,31/12/2019,RESOURCES & TRANSFORMATION,AMZNMKTPLACE,08/10/2019,H59620191010DGNKCKBHW-1,46.90,CFR 804 FIRE SAFETY WORKS-SITE WORKS CONTRACTORS,MISCELLANEOUS AND SPECIALTY RETAIL STORES,GPC
WALSALL COUNCIL,HTTP://OPENDATACOMMUNITIES.ORG/ID/METROPOLITAN-DISTRICT-COUNCIL/WALSALL,31/12/2019,ECONOMY & ENVIRONMENT,AMZNMKTPLACE AMAZON.CO.UK,08/10/2019,H59620191010DHRQDKJSU-1,6.94,OAK PARK-STATIONERY & GENERAL SUPPLIES,MISCELLANEOUS AND SPECIALTY RETAIL STORES,GPC
WALSALL COUNCIL,HTTP://OPENDATACOMMUNITIES.ORG/ID/METROPOLITAN-DISTRICT-COUNCIL/WALSALL,31/12/2019,RESOURCES & TRANSFORMATION,AMZNMKTPLACE,08/10/2019,H59620191010DVCAFUUTV-1,41.54,AREA PARTNERSHIPS-STATIONERY & GENERAL SUPPLIES,MISCELLANEOUS AND SPECIALTY RETAIL STORES,GPC
WALSALL COUNCIL,HTTP://OPENDATACOMMUNITIES.ORG/ID/METROPOLITAN-DISTRICT-COUNCIL/WALSALL,31/12/2019,RESOURCES & TRANSFORMATION,ARTHUR BRETT CATER,08/10/2019,H59620191010EMHJVDWTU-1,1.55,CA MOORCROFT WOOD-FOOD & DRINK SUPPLIES,MISCELLANEOUS FOOD STORES & CONVENIENCE STORES,GPC
WALSALL COUNCIL,HTTP://OPENDATACOMMUNITIES.ORG/ID/METROPOLITAN-DISTRICT-COUNCIL/WALSALL,31/12/2019,RESOURCES & TRANSFORMATION,ARTHUR BRETT CATER,08/10/2019,H59620191010EMMOAGOJC-1,45.02,CA KINGSHILL SCHOOL-FOOD & DRINK SUPPLIES,MISCELLANEOUS FOOD STORES & CONVENIENCE STORES,GPC
WALSALL COUNCIL,HTTP://OPENDATACOMMUNITIES.ORG/ID/METROPOLITAN-DISTRICT-COUNCIL/WALSALL,31/12/2019,CHILDRENS SERVICES,WWW.CONNEVANS.COM,08/10/2019,H59620191010ESBWWHCWZ-1,5015.52,EDUCATIONAL PSYCHOLOGISTS-GENERAL MATERIALS,MISCELLANEOUS AND SPECIALTY RETAIL STORES,GPC
WALSALL COUNCIL,HTTP://OPENDATACOMMUNITIES.ORG/ID/METROPOLITAN-DISTRICT-COUNCIL/WALSALL,31/12/2019,RESOURCES & TRANSFORMATION,ARTHUR BRETT CATER,08/10/2019,H59620191010FSKVTTYKB-1,47.64,CA OLD HALL SPECIAL SCHOOL-FOOD & DRINK SUPPLIES,MISCELLANEOUS FOOD STORES & CONVENIENCE STORES,GPC
WALSALL COUNCIL,HTTP://OPENDATACOMMUNITIES.ORG/ID/METROPOLITAN-DISTRICT-COUNCIL/WALSALL,31/12/2019,CHILDRENS SERVICES,TESCO STORE 3351,08/10/2019,H59620191010FUPVDKFVP-1,3.98,LOCALITY FAMILY SUPPORT-NORTH-FOOD & DRINK SUPPLIES,GROCERY STORES AND SUPERMARKETS,GPC
WALSALL COUNCIL,HTTP://OPENDATACOMMUNITIES.ORG/ID/METROPOLITAN-DISTRICT-COUNCIL/WALSALL,31/12/2019,RESOURCES & TRANSFORMATION,ARTHUR BRETT CATER,08/10/2019,H59620191010GALPWUGLW-1,45.60,CA RUSHALL JMI SCHOOL-FOOD & DRINK SUPPLIES,MISCELLANEOUS FOOD STORES & CONVENIENCE STORES,GPC
WALSALL COUNCIL,HTTP://OPENDATACOMMUNITIES.ORG/ID/METROPOLITAN-DISTRICT-COUNCIL/WALSALL,31/12/2019,CHILDRENS SERVICES,WALSALL STN T/O,08/10/2019,H59620191010GHMFHUTDN-1,211.55,LOOKED AFTER CHILDRENS SOCIAL -OFFICER/STAFF-PUBLIC TRANSPORT,PASSENGER RAILWAYS,GPC
WALSALL COUNCIL,HTTP://OPENDATACOMMUNITIES.ORG/ID/METROPOLITAN-DISTRICT-COUNCIL/WALSALL,31/12/2019,CHILDRENS SERVICES,ASDA GROCERIES ONLINE,08/10/2019,H59620191010GKVTDOEVC-1,29.50,TRANSITION AND LEAVING CARE PL-FOOD & DRINK SUPPLIES,GROCERY STORES AND SUPERMARKETS,GPC
WALSALL COUNCIL,HTTP://OPENDATACOMMUNITIES.ORG/ID/METROPOLITAN-DISTRICT-COUNCIL/WALSALL,31/12/2019,CHILDRENS SERVICES,WEST MIDLANDS TRAV,08/10/2019,H59620191010GQBITOHBS-1,60.90,SCHOOL IMPROVEMENT - VIRTUAL S-OFFICER/STAFF-PUBLIC TRANSPORT,BUS LINES,GPC
WALSALL COUNCIL,HTTP://OPENDATACOMMUNITIES.ORG/ID/METROPOLITAN-DISTRICT-COUNCIL/WALSALL,31/12/2019,CHILDRENS SERVICES,CURRYS ONLINE,08/10/2019,H59620191010GTPBGRIQO-1,408.99,VIRTUAL SCHOOL - CENTRAL PUPIL-COMPUTER EQUIPMENT AND SUPPLIE,ELECTRONIC SALES,GPC
WALSALL COUNCIL,HTTP://OPENDATACOMMUNITIES.ORG/ID/METROPOLITAN-DISTRICT-COUNCIL/WALSALL,31/12/2019,CHILDRENS SERVICES,TRAINLINE,08/10/2019,H59620191010HQERZIJDG-1,85.43,SAFEGUARDING & FAMILY SUPPORT-OFFICER/STAFF-PUBLIC TRANSPORT,PASSENGER RAILWAYS,GPC
WALSALL COUNCIL,HTTP://OPENDATACOMMUNITIES.ORG/ID/METROPOLITAN-DISTRICT-COUNCIL/WALSALL,31/12/2019,ECONOMY & ENVIRONMENT,TAYLOR NEWS,08/10/2019,H59620191010HUQXSTBFJ-1,19.95,STREETLY LIBRARY-NEWSPAPERS/PERIODICALS/MAGAZIN,GROCERY STORES AND SUPERMARKETS,GPC
WALSALL COUNCIL,HTTP://OPENDATACOMMUNITIES.ORG/ID/METROPOLITAN-DISTRICT-COUNCIL/WALSALL,31/12/2019,RESOURCES & TRANSFORMATION,ARTHUR BRETT CATER,08/10/2019,H59620191010HVHUUSGTL-1,5.43,CA ST BERNADETTES CATHOLIC PRI-FOOD & DRINK SUPPLIES,MISCELLANEOUS FOOD STORES & CONVENIENCE STORES,GPC
WALSALL COUNCIL,HTTP://OPENDATACOMMUNITIES.ORG/ID/METROPOLITAN-DISTRICT-COUNCIL/WALSALL,31/12/2019,RESOURCES & TRANSFORMATION,ARTHUR BRETT CATER,08/10/2019,H59620191010IABFJJDYI-1,43.94,CA OLD HALL SPECIAL SCHOOL-FOOD & DRINK SUPPLIES,MISCELLANEOUS FOOD STORES & CONVENIENCE STORES,GPC
WALSALL COUNCIL,HTTP://OPENDATACOMMUNITIES.ORG/ID/METROPOLITAN-DISTRICT-COUNCIL/WALSALL,31/12/2019,ECONOMY & ENVIRONMENT,AMZNMKTPLACE AMAZON.CO.UK,08/10/2019,H59620191010IBOBLFSFU-1,63.51,WALSALL OUTDOOR ADVENTURE CENT-OPERATIONAL MAINTENANCE,MISCELLANEOUS AND SPECIALTY RETAIL STORES,GPC
WALSALL COUNCIL,HTTP://OPENDATACOMMUNITIES.ORG/ID/METROPOLITAN-DISTRICT-COUNCIL/WALSALL,31/12/2019,ECONOMY & ENVIRONMENT,TESCO STORES 4357,08/10/2019,H59620191010IDUMRFFJG-1,1.50,LEATHER MUSEUM-GENERAL MATERIALS,GROCERY STORES AND SUPERMARKETS,GPC
WALSALL COUNCIL,HTTP://OPENDATACOMMUNITIES.ORG/ID/METROPOLITAN-DISTRICT-COUNCIL/WALSALL,31/12/2019,ECONOMY & ENVIRONMENT,TESCO STORES 4357,08/10/2019,H59620191010IDUMRFFJG-2,2.29,LEATHER MUSEUM-FOOD & DRINK SUPPLIES,GROCERY STORES AND SUPERMARKETS,GPC
WALSALL COUNCIL,HTTP://OPENDATACOMMUNITIES.ORG/ID/METROPOLITAN-DISTRICT-COUNCIL/WALSALL,31/12/2019,ECONOMY & ENVIRONMENT,VESTA VODAFONE,08/10/2019,H59620191010IGYSVZWAJ-1,72.36,POLLUTION DIVISION-LANDLINE PHONES,TELECOMMUNICATION SERVICES,GPC
WALSALL COUNCIL,HTTP://OPENDATACOMMUNITIES.ORG/ID/METROPOLITAN-DISTRICT-COUNCIL/WALSALL,31/12/2019,CHILDRENS SERVICES,REGISTRATION SERVICES,08/10/2019,H59620191010IMIVTFMXE-1,44.00,SAFEGUARDING & FAMILY SUPPORT-OTHER FEES & LICENCES-SERVICES,OTHER RECREATION SERVICES,GPC
WALSALL COUNCIL,HTTP://OPENDATACOMMUNITIES.ORG/ID/METROPOLITAN-DISTRICT-COUNCIL/WALSALL,31/12/2019,CHILDRENS SERVICES,ALDI 42 772,08/10/2019,H59620191010IYIVLVRUH-1,75.46,REDRUTH ROAD-FOOD & DRINK SUPPLIES,GROCERY STORES AND SUPERMARKETS,GPC
WALSALL COUNCIL,HTTP://OPENDATACOMMUNITIES.ORG/ID/METROPOLITAN-DISTRICT-COUNCIL/WALSALL,31/12/2019,RESOURCES & TRANSFORMATION,ARTHUR BRETT CATER,08/10/2019,H59620191010JFODPFZPQ-1,37.70,CA LITTLE BLOXWICH CE PRIMARY -FOOD & DRINK SUPPLIES,MISCELLANEOUS FOOD STORES & CONVENIENCE STORES,GPC
WALSALL COUNCIL,HTTP://OPENDATACOMMUNITIES.ORG/ID/METROPOLITAN-DISTRICT-COUNCIL/WALSALL,31/12/2019,ECONOMY & ENVIRONMENT,ASDA,08/10/2019,H59620191010JIFRPQSWU-1,52.85,WALSALL TOWN HALL-FOOD & DRINK SUPPLIES,GROCERY STORES AND SUPERMARKETS,GPC
WALSALL COUNCIL,HTTP://OPENDATACOMMUNITIES.ORG/ID/METROPOLITAN-DISTRICT-COUNCIL/WALSALL,31/12/2019,CHILDRENS SERVICES,KEYFACTORS EMBLEMCO LT,08/10/2019,H59620191010JJKPGNDES-1,40.20,P E-GENERAL MATERIALS,MISCELLANEOUS AND SPECIALTY RETAIL STORES,GPC
WALSALL COUNCIL,HTTP://OPENDATACOMMUNITIES.ORG/ID/METROPOLITAN-DISTRICT-COUNCIL/WALSALL,31/12/2019,CHILDRENS SERVICES,WALSALL COUNCIL,08/10/2019,H59620191010JKYFCMZYY-1,2.20,FAMILY PLACEMENTS-OTHER-TRAVEL ALLOWANCES,AUTOMOBILE PARKING LOTS AND GARAGES,GPC
WALSALL COUNCIL,HTTP://OPENDATACOMMUNITIES.ORG/ID/METROPOLITAN-DISTRICT-COUNCIL/WALSALL,31/12/2019,RESOURCES & TRANSFORMATION,HELLOPRINT,08/10/2019,H59620191010JOJWSKQQG-1,441.48,INTEGRATED COMMUNITIES PROGRAM-EXTERNAL PRINTING SERVICES,"QUICK COPY, REPRODUCTION, AND BLUEPRINTING SERVICE",GPC
WALSALL COUNCIL,HTTP://OPENDATACOMMUNITIES.ORG/ID/METROPOLITAN-DISTRICT-COUNCIL/WALSALL,31/12/2019,RESOURCES & TRANSFORMATION,ARTHUR BRETT CATER,08/10/2019,H59620191010KELNVMOUW-1,63.84,CA WHITEHALL JUNIOR COMMUNITY -FOOD & DRINK SUPPLIES,MISCELLANEOUS FOOD STORES & CONVENIENCE STORES,GPC
WALSALL COUNCIL,HTTP://OPENDATACOMMUNITIES.ORG/ID/METROPOLITAN-DISTRICT-COUNCIL/WALSALL,31/12/2019,CHILDRENS SERVICES,CURRYS ONLINE,08/10/2019,H59620191010KNWVULWHV-1,99.00,TRANSITION AND LEAVING CARE PL-FURNITURE & EQUIPMENT,ELECTRONIC SALES,GPC
WALSALL COUNCIL,HTTP://OPENDATACOMMUNITIES.ORG/ID/METROPOLITAN-DISTRICT-COUNCIL/WALSALL,31/12/2019,RESOURCES & TRANSFORMATION,ARTHUR BRETT CATER,08/10/2019,H59620191010KQFKTIQMF-1,40.14,CA ELMWOOD SPECIAL SCHOOL-FOOD & DRINK SUPPLIES,MISCELLANEOUS FOOD STORES & CONVENIENCE STORES,GPC
WALSALL COUNCIL,HTTP://OPENDATACOMMUNITIES.ORG/ID/METROPOLITAN-DISTRICT-COUNCIL/WALSALL,31/12/2019,CHILDRENS SERVICES,VIRGIN TRAINS,08/10/2019,H59620191010KTFIPNILX-1,-134.75,CHILD PROTECTION & REVIEW SERV-OFFICER/STAFF-PUBLIC TRANSPORT,PASSENGER RAILWAYS,GPC
WALSALL COUNCIL,HTTP://OPENDATACOMMUNITIES.ORG/ID/METROPOLITAN-DISTRICT-COUNCIL/WALSALL,31/12/2019,ECONOMY & ENVIRONMENT,TESCO STORES 6161,08/10/2019,H59620191010KTIFXDEOP-1,8.00,LIBRARY OPERATIONS - MOBILE SE-STATIONERY & GENERAL SUPPLIES,GROCERY STORES AND SUPERMARKETS,GPC
WALSALL COUNCIL,HTTP://OPENDATACOMMUNITIES.ORG/ID/METROPOLITAN-DISTRICT-COUNCIL/WALSALL,31/12/2019,CHILDRENS SERVICES,PRIMARY TEACHING SERVI,08/10/2019,H59620191010LCUCCLQTT-1,9.73,ALL YEARS RESOURCES-GENERAL MATERIALS,"OFFICE, SCHOOL SUPPLY, AND STATIONERY STORES",GPC
WALSALL COUNCIL,HTTP://OPENDATACOMMUNITIES.ORG/ID/METROPOLITAN-DISTRICT-COUNCIL/WALSALL,31/12/2019,CHILDRENS SERVICES,AMZNMKTPLACE AMAZON.CO.UK,08/10/2019,H59620191010LXVYHSFJH-1,-9.95,CONTINGENCY-GENERAL MATERIALS,MISCELLANEOUS AND SPECIALTY RETAIL STORES,GPC
WALSALL COUNCIL,HTTP://OPENDATACOMMUNITIES.ORG/ID/METROPOLITAN-DISTRICT-COUNCIL/WALSALL,31/12/2019,CHILDRENS SERVICES,AMAZON.CO.UK*MO7XO7TJ4,08/10/2019,H59620191010MJCEWSSHR-1,30.00,PASTROL (REWARDS & PRIZES)-GENERAL MATERIALS,OTHER DIRECT MARKETING-OTHER DIRECT MARKETERS,GPC
WALSALL COUNCIL,HTTP://OPENDATACOMMUNITIES.ORG/ID/METROPOLITAN-DISTRICT-COUNCIL/WALSALL,31/12/2019,RESOURCES & TRANSFORMATION,ARTHUR BRETT CATER,08/10/2019,H59620191010MNQFMBIJU-1,28.09,CA CASTLEFORT JMI SCHOOL-FOOD & DRINK SUPPLIES,MISCELLANEOUS FOOD STORES & CONVENIENCE STORES,GPC
WALSALL COUNCIL,HTTP://OPENDATACOMMUNITIES.ORG/ID/METROPOLITAN-DISTRICT-COUNCIL/WALSALL,31/12/2019,CHILDRENS SERVICES,ASDA GEORGE COM LEEDS,08/10/2019,H59620191010MTUAWTFML-1,79.95,TRANSITION AND LEAVING CARE PL-FOOD & DRINK SUPPLIES,GROCERY STORES AND SUPERMARKETS,GPC
WALSALL COUNCIL,HTTP://OPENDATACOMMUNITIES.ORG/ID/METROPOLITAN-DISTRICT-COUNCIL/WALSALL,31/12/2019,ECONOMY & ENVIRONMENT,TOOLSTATION LTD,08/10/2019,H59620191010NIDEJXPOJ-1,3.98,INFRASTRUCTURE MAINTENANCE-GENERAL MATERIALS,HARDWARE STORES,GPC
WALSALL COUNCIL,HTTP://OPENDATACOMMUNITIES.ORG/ID/METROPOLITAN-DISTRICT-COUNCIL/WALSALL,31/12/2019,RESOURCES & TRANSFORMATION,ARTHUR BRETT CATER,08/10/2019,H59620191010NVUREBKBQ-1,110.54,CA RADLEYS PRIMARY SCHOOL-FOOD & DRINK SUPPLIES,MISCELLANEOUS FOOD STORES & CONVENIENCE STORES,GPC
WALSALL COUNCIL,HTTP://OPENDATACOMMUNITIES.ORG/ID/METROPOLITAN-DISTRICT-COUNCIL/WALSALL,31/12/2019,ECONOMY & ENVIRONMENT,AMZNMKTPLACE AMAZON.CO.UK,08/10/2019,H59620191010OCTXQBCTP-1,59.18,LIBRARY OPERATIONS CENTRAL-GENERAL MATERIALS,MISCELLANEOUS AND SPECIALTY RETAIL STORES,GPC
WALSALL COUNCIL,HTTP://OPENDATACOMMUNITIES.ORG/ID/METROPOLITAN-DISTRICT-COUNCIL/WALSALL,31/12/2019,RESOURCES & TRANSFORMATION,TRAVELODGE GB0000,08/10/2019,H59620191010OPYJCNMZJ-1,310.00,BED & BREAKFAST PAYMENTS-BED & BREAKFAST PAYMENTS,TRAVELODGE,GPC
WALSALL COUNCIL,HTTP://OPENDATACOMMUNITIES.ORG/ID/METROPOLITAN-DISTRICT-COUNCIL/WALSALL,31/12/2019,CHILDRENS SERVICES,TESCO STORES 6161,08/10/2019,H59620191010OZHTOOPRV-1,31.96,FOOD TECHNOLOGY/HOSPITALITY-GENERAL MATERIALS,GROCERY STORES AND SUPERMARKETS,GPC
WALSALL COUNCIL,HTTP://OPENDATACOMMUNITIES.ORG/ID/METROPOLITAN-DISTRICT-COUNCIL/WALSALL,31/12/2019,RESOURCES & TRANSFORMATION,ARTHUR BRETT CATER,08/10/2019,H59620191010PFCYOFVHE-1,96.46,CA ST GILES C.E. PRIMARY SCHOO-FOOD & DRINK SUPPLIES,MISCELLANEOUS FOOD STORES & CONVENIENCE STORES,GPC
WALSALL COUNCIL,HTTP://OPENDATACOMMUNITIES.ORG/ID/METROPOLITAN-DISTRICT-COUNCIL/WALSALL,31/12/2019,RESOURCES & TRANSFORMATION,HOTEL ON BOOKING.COM IBIS,08/10/2019,H59620191010PXJQFIWGP-1,372.00,DATA CENTRES-HOTEL ACCOMMODATION-EMPLOYEES,"HOTELS, MOTELS, RESORTS",GPC
WALSALL COUNCIL,HTTP://OPENDATACOMMUNITIES.ORG/ID/METROPOLITAN-DISTRICT-COUNCIL/WALSALL,31/12/2019,RESOURCES & TRANSFORMATION,ARTHUR BRETT CATER,08/10/2019,H59620191010QMDZWHLSY-1,97.29,CA BEACON PRIMARY SCHOOL-FOOD & DRINK SUPPLIES,MISCELLANEOUS FOOD STORES & CONVENIENCE STORES,GPC
WALSALL COUNCIL,HTTP://OPENDATACOMMUNITIES.ORG/ID/METROPOLITAN-DISTRICT-COUNCIL/WALSALL,31/12/2019,ECONOMY & ENVIRONMENT,AMZNMKTPLACE,08/10/2019,H59620191010RDJFRPFNN-1,17.07,OAK PARK-STATIONERY & GENERAL SUPPLIES,MISCELLANEOUS AND SPECIALTY RETAIL STORES,GPC
WALSALL COUNCIL,HTTP://OPENDATACOMMUNITIES.ORG/ID/METROPOLITAN-DISTRICT-COUNCIL/WALSALL,31/12/2019,CHILDRENS SERVICES,AMAZON.CO.UK*MO9XT6TB4,08/10/2019,H59620191010RKEYGTENM-1,29.98,ADMINISTRATIVE SUPPLIES-GENERAL MATERIALS,OTHER DIRECT MARKETING-OTHER DIRECT MARKETERS,GPC
WALSALL COUNCIL,HTTP://OPENDATACOMMUNITIES.ORG/ID/METROPOLITAN-DISTRICT-COUNCIL/WALSALL,31/12/2019,CHILDRENS SERVICES,TRAINLINE.COM,08/10/2019,H59620191010SFRXCIPLK-1,104.14,EARLY YEARS AND DISABILITIES S-OFFICER/STAFF-PUBLIC TRANSPORT,PASSENGER RAILWAYS,GPC
WALSALL COUNCIL,HTTP://OPENDATACOMMUNITIES.ORG/ID/METROPOLITAN-DISTRICT-COUNCIL/WALSALL,31/12/2019,RESOURCES & TRANSFORMATION,ARTHUR BRETT CATER,08/10/2019,H59620191010SISSISEMG-1,122.35,CA BARCROFT D/C-FOOD & DRINK SUPPLIES,MISCELLANEOUS FOOD STORES & CONVENIENCE STORES,GPC
WALSALL COUNCIL,HTTP://OPENDATACOMMUNITIES.ORG/ID/METROPOLITAN-DISTRICT-COUNCIL/WALSALL,31/12/2019,RESOURCES & TRANSFORMATION,ARTHUR BRETT CATER,08/10/2019,H59620191010SKCKFSJKO-1,37.49,CA OAKWOOD SPECIAL SCHOOL-FOOD & DRINK SUPPLIES,MISCELLANEOUS FOOD STORES & CONVENIENCE STORES,GPC
WALSALL COUNCIL,HTTP://OPENDATACOMMUNITIES.ORG/ID/METROPOLITAN-DISTRICT-COUNCIL/WALSALL,31/12/2019,RESOURCES & TRANSFORMATION,ARTHUR BRETT CATER,08/10/2019,H59620191010SMKKWMHPE-1,113.82,CA LINDENS PRIMARY SCHOOL-FOOD & DRINK SUPPLIES,MISCELLANEOUS FOOD STORES & CONVENIENCE STORES,GPC
WALSALL COUNCIL,HTTP://OPENDATACOMMUNITIES.ORG/ID/METROPOLITAN-DISTRICT-COUNCIL/WALSALL,31/12/2019,RESOURCES & TRANSFORMATION,ARTHUR BRETT CATER,08/10/2019,H59620191010TIVZOMVRD-1,115.21,CA COOPER JORDAN CE PRIMARY SC-FOOD & DRINK SUPPLIES,MISCELLANEOUS FOOD STORES & CONVENIENCE STORES,GPC
WALSALL COUNCIL,HTTP://OPENDATACOMMUNITIES.ORG/ID/METROPOLITAN-DISTRICT-COUNCIL/WALSALL,31/12/2019,RESOURCES & TRANSFORMATION,ARTHUR BRETT CATER,08/10/2019,H59620191010TJVJWWAXS-1,25.14,CA BLOXWICH C.E. JMI PRIMARY S-FOOD & DRINK SUPPLIES,MISCELLANEOUS FOOD STORES & CONVENIENCE STORES,GPC
WALSALL COUNCIL,HTTP://OPENDATACOMMUNITIES.ORG/ID/METROPOLITAN-DISTRICT-COUNCIL/WALSALL,31/12/2019,RESOURCES & TRANSFORMATION,BLAKENALL DRINKS,08/10/2019,H59620191010TNEGLIVJX-1,40.00,ACCOMMODATION SERVICES MANAGEM-FOOD & DRINK SUPPLIES,GROCERY STORES AND SUPERMARKETS,GPC
WALSALL COUNCIL,HTTP://OPENDATACOMMUNITIES.ORG/ID/METROPOLITAN-DISTRICT-COUNCIL/WALSALL,31/12/2019,CHILDRENS SERVICES,WALSALL STN T/O,08/10/2019,H59620191010TPVQDOJNN-1,147.35,LOOKED AFTER CHILDRENS SOCIAL -OFFICER/STAFF-PUBLIC TRANSPORT,PASSENGER RAILWAYS,GPC
WALSALL COUNCIL,HTTP://OPENDATACOMMUNITIES.ORG/ID/METROPOLITAN-DISTRICT-COUNCIL/WALSALL,31/12/2019,RESOURCES & TRANSFORMATION,ARTHUR BRETT CATER,08/10/2019,H59620191010TYTYRMXFH-1,93.10,CA BROWNHILLS WEST PRIMARY SCH-FOOD & DRINK SUPPLIES,MISCELLANEOUS FOOD STORES & CONVENIENCE STORES,GPC
WALSALL COUNCIL,HTTP://OPENDATACOMMUNITIES.ORG/ID/METROPOLITAN-DISTRICT-COUNCIL/WALSALL,31/12/2019,ECONOMY & ENVIRONMENT,TOOLSTATION LTD,08/10/2019,H59620191010TYVWQCDDK-1,31.00,INFRASTRUCTURE MAINTENANCE-GENERAL MATERIALS,HARDWARE STORES,GPC
WALSALL COUNCIL,HTTP://OPENDATACOMMUNITIES.ORG/ID/METROPOLITAN-DISTRICT-COUNCIL/WALSALL,31/12/2019,CHILDRENS SERVICES (SCHOOLS),WWW.LASTINGIMPRESSIONS,08/10/2019,H59620191010UFOCVACVT-1,31.36,CHUCKERY PRIMARY SCHOOL-OPERATIONAL MAINTENANCE,MISCELLANEOUS PUBLISHING AND PRINTING,GPC
WALSALL COUNCIL,HTTP://OPENDATACOMMUNITIES.ORG/ID/METROPOLITAN-DISTRICT-COUNCIL/WALSALL,31/12/2019,CHILDRENS SERVICES,LYCO GROUP LTD,08/10/2019,H59620191010UHNDTGVXB-1,63.47,MEADOW VIEW JMI PRIMARY SCHOOL-OPERATIONAL MAINTENANCE,ELECTRICAL PARTS AND EQUIPMENT,GPC
WALSALL COUNCIL,HTTP://OPENDATACOMMUNITIES.ORG/ID/METROPOLITAN-DISTRICT-COUNCIL/WALSALL,31/12/2019,RESOURCES & TRANSFORMATION,ARTHUR BRETT CATER,08/10/2019,H59620191010ULDXNGXXU-1,11.80,CA KINGSHILL SCHOOL-FOOD & DRINK SUPPLIES,MISCELLANEOUS FOOD STORES & CONVENIENCE STORES,GPC
WALSALL COUNCIL,HTTP://OPENDATACOMMUNITIES.ORG/ID/METROPOLITAN-DISTRICT-COUNCIL/WALSALL,31/12/2019,RESOURCES & TRANSFORMATION,ARTHUR BRETT CATER,08/10/2019,H59620191010UOUBXXERX-1,122.32,CA ELMORE GREEN PRIMARY SCHOOL-FOOD & DRINK SUPPLIES,MISCELLANEOUS FOOD STORES & CONVENIENCE STORES,GPC
WALSALL COUNCIL,HTTP://OPENDATACOMMUNITIES.ORG/ID/METROPOLITAN-DISTRICT-COUNCIL/WALSALL,31/12/2019,RESOURCES & TRANSFORMATION,ARTHUR BRETT CATER,08/10/2019,H59620191010USWAOBBSL-1,81.34,CA MOORCROFT WOOD-FOOD & DRINK SUPPLIES,MISCELLANEOUS FOOD STORES & CONVENIENCE STORES,GPC
WALSALL COUNCIL,HTTP://OPENDATACOMMUNITIES.ORG/ID/METROPOLITAN-DISTRICT-COUNCIL/WALSALL,31/12/2019,RESOURCES & TRANSFORMATION,ARTHUR BRETT CATER,08/10/2019,H59620191010VCSNKTGLV-1,139.34,CA LEIGHSWOOD PRIMARY SCHOOL-FOOD & DRINK SUPPLIES,MISCELLANEOUS FOOD STORES & CONVENIENCE STORES,GPC
WALSALL COUNCIL,HTTP://OPENDATACOMMUNITIES.ORG/ID/METROPOLITAN-DISTRICT-COUNCIL/WALSALL,31/12/2019,RESOURCES & TRANSFORMATION,ARTHUR BRETT CATER,08/10/2019,H59620191010VGNSRFWSW-1,44.81,CA ABBEY PRIMARY SCHOOL-FOOD & DRINK SUPPLIES,MISCELLANEOUS FOOD STORES & CONVENIENCE STORES,GPC
WALSALL COUNCIL,HTTP://OPENDATACOMMUNITIES.ORG/ID/METROPOLITAN-DISTRICT-COUNCIL/WALSALL,31/12/2019,RESOURCES & TRANSFORMATION,ARTHUR BRETT CATER,08/10/2019,H59620191010VLEUJPJIJ-1,252.66,CA ST JOHNS C.E. PRIMARY SCHOO-FOOD & DRINK SUPPLIES,MISCELLANEOUS FOOD STORES & CONVENIENCE STORES,GPC
WALSALL COUNCIL,HTTP://OPENDATACOMMUNITIES.ORG/ID/METROPOLITAN-DISTRICT-COUNCIL/WALSALL,31/12/2019,CHILDRENS SERVICES,AMAZON.CO.UK*MO0F83TE4,08/10/2019,H59620191010VUYWUCIFB-1,27.87,SEN-GENERAL MATERIALS,OTHER DIRECT MARKETING-OTHER DIRECT MARKETERS,GPC
WALSALL COUNCIL,HTTP://OPENDATACOMMUNITIES.ORG/ID/METROPOLITAN-DISTRICT-COUNCIL/WALSALL,31/12/2019,RESOURCES & TRANSFORMATION,ARTHUR BRETT CATER,08/10/2019,H59620191010VWRYSHMWM-1,55.13,CA BUSILL JONES PRIMARY SCHOOL-FOOD & DRINK SUPPLIES,MISCELLANEOUS FOOD STORES & CONVENIENCE STORES,GPC
WALSALL COUNCIL,HTTP://OPENDATACOMMUNITIES.ORG/ID/METROPOLITAN-DISTRICT-COUNCIL/WALSALL,31/12/2019,CHILDRENS SERVICES,AMZNMKTPLACE,08/10/2019,H59620191010WBBKOOHMP-1,29.79,PERFORMANCE & OUTCOMES TEAM (C-STATIONERY & GENERAL SUPPLIES,MISCELLANEOUS AND SPECIALTY RETAIL STORES,GPC
WALSALL COUNCIL,HTTP://OPENDATACOMMUNITIES.ORG/ID/METROPOLITAN-DISTRICT-COUNCIL/WALSALL,31/12/2019,CHILDRENS SERVICES (SCHOOLS),PLANBEE,08/10/2019,H59620191010WBUENNDBE-1,99.99,E19-LIBRARY BOOKS,BOOK STORES,GPC
WALSALL COUNCIL,HTTP://OPENDATACOMMUNITIES.ORG/ID/METROPOLITAN-DISTRICT-COUNCIL/WALSALL,31/12/2019,CHILDRENS SERVICES,AMAZON.CO.UK*MO5HI9TL4 AM,08/10/2019,H59620191010WNCNLBCYY-1,15.08,VIRTUAL SCHOOL - CENTRAL PUPIL-OTHER EXPENSES-EXPENSES,MISCELLANEOUS AND SPECIALTY RETAIL STORES,GPC
WALSALL COUNCIL,HTTP://OPENDATACOMMUNITIES.ORG/ID/METROPOLITAN-DISTRICT-COUNCIL/WALSALL,31/12/2019,CHILDRENS SERVICES,NET WORLD SPORTS,08/10/2019,H59620191010WOMETQYUC-1,97.91,PE-GENERAL MATERIALS,MISCELLANEOUS AND SPECIALTY RETAIL STORES,GPC
WALSALL COUNCIL,HTTP://OPENDATACOMMUNITIES.ORG/ID/METROPOLITAN-DISTRICT-COUNCIL/WALSALL,31/12/2019,RESOURCES & TRANSFORMATION,ARTHUR BRETT CATER,08/10/2019,H59620191010WWKMBXSKG-1,51.47,CA ST MICHAELS C.E. PRIMARY SC-FOOD & DRINK SUPPLIES,MISCELLANEOUS FOOD STORES & CONVENIENCE STORES,GPC
WALSALL COUNCIL,HTTP://OPENDATACOMMUNITIES.ORG/ID/METROPOLITAN-DISTRICT-COUNCIL/WALSALL,31/12/2019,CHILDRENS SERVICES,ARGOS MERE GREEN,08/10/2019,H59620191010WWOFGSYOJ-1,19.98,ADMINISTRATIVE SUPPLIES-STATIONERY & GENERAL SUPPLIES,DISCOUNT STORES,GPC
WALSALL COUNCIL,HTTP://OPENDATACOMMUNITIES.ORG/ID/METROPOLITAN-DISTRICT-COUNCIL/WALSALL,31/12/2019,RESOURCES & TRANSFORMATION,ARTHUR BRETT CATER,08/10/2019,H59620191010XFKPYJCMA-1,36.47,CA WALSALL WOOD PRIMARY SCHOOL-FOOD & DRINK SUPPLIES,MISCELLANEOUS FOOD STORES & CONVENIENCE STORES,GPC
WALSALL COUNCIL,HTTP://OPENDATACOMMUNITIES.ORG/ID/METROPOLITAN-DISTRICT-COUNCIL/WALSALL,31/12/2019,CHILDRENS SERVICES (SCHOOLS),WORLDOFCAMPING.CO.,08/10/2019,H59620191010YPCMSUEXO-1,175.96,E19-GENERAL MATERIALS,CLOTHING STORES,GPC
WALSALL COUNCIL,HTTP://OPENDATACOMMUNITIES.ORG/ID/METROPOLITAN-DISTRICT-COUNCIL/WALSALL,31/12/2019,RESOURCES & TRANSFORMATION,B&M RETAIL LTD,08/10/2019,H59620191010ZSKVCFPAQ-1,17.94,CA CATERING PRIMARY SCHOOLS-GENERAL MATERIALS,DISCOUNT STORES,GPC
WALSALL COUNCIL,HTTP://OPENDATACOMMUNITIES.ORG/ID/METROPOLITAN-DISTRICT-COUNCIL/WALSALL,31/12/2019,CHILDRENS SERVICES,AMZNMKTPLACE AMAZON.CO.UK,08/10/2019,H59620191011BPDZFVFKD-1,18.45,ST FRANCIS OF ASSISI CATHOLIC -OPERATIONAL MAINTENANCE,MISCELLANEOUS AND SPECIALTY RETAIL STORES,GPC
WALSALL COUNCIL,HTTP://OPENDATACOMMUNITIES.ORG/ID/METROPOLITAN-DISTRICT-COUNCIL/WALSALL,31/12/2019,CHILDRENS SERVICES,WWW.BANNERUK.COM,08/10/2019,H59620191011DVEVWKQOE-1,10.01,BIRCHILLS CHILDCARE SERVICES-STATIONERY & GENERAL SUPPLIES,"STATIONERY, OFFICE SUPPLIES AND WRITING PAPER",GPC
WALSALL COUNCIL,HTTP://OPENDATACOMMUNITIES.ORG/ID/METROPOLITAN-DISTRICT-COUNCIL/WALSALL,31/12/2019,CHILDRENS SERVICES,WWW.BANNERUK.COM,08/10/2019,H59620191011DVEVWKQOE-2,172.26,BIRCHILLS CHILDCARE SERVICES-GENERAL MATERIALS,"STATIONERY, OFFICE SUPPLIES AND WRITING PAPER",GPC
WALSALL COUNCIL,HTTP://OPENDATACOMMUNITIES.ORG/ID/METROPOLITAN-DISTRICT-COUNCIL/WALSALL,31/12/2019,RESOURCES & TRANSFORMATION,AMZNMKTPLACE AMAZON.CO.UK,08/10/2019,H59620191011GMZTNIPBT-1,27.95,RECHARGEABLE EQUIPMENT-COMPUTER EQUIPMENT AND SUPPLIE,MISCELLANEOUS AND SPECIALTY RETAIL STORES,GPC
WALSALL COUNCIL,HTTP://OPENDATACOMMUNITIES.ORG/ID/METROPOLITAN-DISTRICT-COUNCIL/WALSALL,31/12/2019,RESOURCES & TRANSFORMATION,AMZNMKTPLACE AMAZON.CO.UK,08/10/2019,H59620191011HXEZZDSSZ-1,27.95,RECHARGEABLE EQUIPMENT-COMPUTER EQUIPMENT AND SUPPLIE,MISCELLANEOUS AND SPECIALTY RETAIL STORES,GPC
WALSALL COUNCIL,HTTP://OPENDATACOMMUNITIES.ORG/ID/METROPOLITAN-DISTRICT-COUNCIL/WALSALL,31/12/2019,ECONOMY & ENVIRONMENT,AMAZON.CO.UK*MO4691T94 AM,08/10/2019,H59620191011IARAYDIKC-1,10.84,CENTRALISED STATIONARY-STATIONERY & GENERAL SUPPLIES,MISCELLANEOUS AND SPECIALTY RETAIL STORES,GPC
WALSALL COUNCIL,HTTP://OPENDATACOMMUNITIES.ORG/ID/METROPOLITAN-DISTRICT-COUNCIL/WALSALL,31/12/2019,CHILDRENS SERVICES (SCHOOLS),AMAZON.CO.UK*MO6JL7TM4 AM,08/10/2019,H59620191011IXXTREKQL-1,191.94,E19-GENERAL MATERIALS,MISCELLANEOUS AND SPECIALTY RETAIL STORES,GPC
WALSALL COUNCIL,HTTP://OPENDATACOMMUNITIES.ORG/ID/METROPOLITAN-DISTRICT-COUNCIL/WALSALL,31/12/2019,ECONOMY & ENVIRONMENT,WWW.BANNERUK.COM,08/10/2019,H59620191011OBAVWFLNN-1,41.99,LIBRARY OPERATIONS CENTRAL-CLEANING MATERIALS,"STATIONERY, OFFICE SUPPLIES AND WRITING PAPER",GPC
WALSALL COUNCIL,HTTP://OPENDATACOMMUNITIES.ORG/ID/METROPOLITAN-DISTRICT-COUNCIL/WALSALL,31/12/2019,CHILDRENS SERVICES,WWW.BANNERUK.COM,08/10/2019,H59620191011RDMFPPBIE-1,97.52,LOCALITY FAMILY SUPPORT-CENTRA-STATIONERY & GENERAL SUPPLIES,"STATIONERY, OFFICE SUPPLIES AND WRITING PAPER",GPC
WALSALL COUNCIL,HTTP://OPENDATACOMMUNITIES.ORG/ID/METROPOLITAN-DISTRICT-COUNCIL/WALSALL,31/12/2019,RESOURCES & TRANSFORMATION,PREMIER INN44529235,08/10/2019,H59620191011SQXQKNUWL-1,-242.00,DATA CENTRES-HOTEL ACCOMMODATION-EMPLOYEES,PREMIER INN,GPC
WALSALL COUNCIL,HTTP://OPENDATACOMMUNITIES.ORG/ID/METROPOLITAN-DISTRICT-COUNCIL/WALSALL,31/12/2019,ECONOMY & ENVIRONMENT,WWW.BANNERUK.COM,08/10/2019,H59620191011UHWOQMBET-1,31.66,LOCAL HISTORY CENTRE-STATIONERY & GENERAL SUPPLIES,"STATIONERY, OFFICE SUPPLIES AND WRITING PAPER",GPC
WALSALL COUNCIL,HTTP://OPENDATACOMMUNITIES.ORG/ID/METROPOLITAN-DISTRICT-COUNCIL/WALSALL,31/12/2019,ECONOMY & ENVIRONMENT,WWW.BANNERUK.COM,08/10/2019,H59620191011XFKRQGEBM-1,137.35,LIBRARY OPERATIONS CENTRAL-STATIONERY & GENERAL SUPPLIES,"STATIONERY, OFFICE SUPPLIES AND WRITING PAPER",GPC
WALSALL COUNCIL,HTTP://OPENDATACOMMUNITIES.ORG/ID/METROPOLITAN-DISTRICT-COUNCIL/WALSALL,31/12/2019,RESOURCES & TRANSFORMATION,B & Q 1276,08/10/2019,H59620191012YSRVOBNOU-1,128.84,CA CENTRAL SUPPORT SERVICES-FURNITURE & EQUIPMENT,HOME SUPPLY WAREHOUSE STORES,GPC
WALSALL COUNCIL,HTTP://OPENDATACOMMUNITIES.ORG/ID/METROPOLITAN-DISTRICT-COUNCIL/WALSALL,31/12/2019,RESOURCES & TRANSFORMATION,ANNUAL CARD FEE,09/10/2019,H59620191010TATVLXJHS-1,40.00,FINANCE ADMIN-MISC FEES AND EXPENSES,,GPC
WALSALL COUNCIL,HTTP://OPENDATACOMMUNITIES.ORG/ID/METROPOLITAN-DISTRICT-COUNCIL/WALSALL,31/12/2019,RESOURCES & TRANSFORMATION,ARTHUR BRETT CATER,09/10/2019,H59620191011AJKTVGKTV-1,9.54,CA CROFT COMMUNITY PRIMARY SCH-FOOD & DRINK SUPPLIES,MISCELLANEOUS FOOD STORES & CONVENIENCE STORES,GPC
WALSALL COUNCIL,HTTP://OPENDATACOMMUNITIES.ORG/ID/METROPOLITAN-DISTRICT-COUNCIL/WALSALL,31/12/2019,RESOURCES & TRANSFORMATION,NOBISCO LIMITED,09/10/2019,H59620191011BCHJQGUBE-1,82.25,CA LEIGHSWOOD PRIMARY SCHOOL-FURNITURE & EQUIPMENT,OTHER INDUSTRIAL SUPPLIES,GPC
WALSALL COUNCIL,HTTP://OPENDATACOMMUNITIES.ORG/ID/METROPOLITAN-DISTRICT-COUNCIL/WALSALL,31/12/2019,RESOURCES & TRANSFORMATION,OAKLAND,09/10/2019,H59620191011BVOIYGGSP-1,85.00,WALSALL CRISIS SUPPORT SCHEME-HOTEL ACCOMMODATION-EMPLOYEES,"HOTELS, MOTELS, RESORTS",GPC
WALSALL COUNCIL,HTTP://OPENDATACOMMUNITIES.ORG/ID/METROPOLITAN-DISTRICT-COUNCIL/WALSALL,31/12/2019,RESOURCES & TRANSFORMATION,BLAKEMORE FOODSERVICE,09/10/2019,H59620191011BXPBJIYLH-1,43.81,CA ST GILES C.E. PRIMARY SCHOO-FOOD & DRINK SUPPLIES,CATERERS,GPC
WALSALL COUNCIL,HTTP://OPENDATACOMMUNITIES.ORG/ID/METROPOLITAN-DISTRICT-COUNCIL/WALSALL,31/12/2019,RESOURCES & TRANSFORMATION,BLAKEMORE FOODSERVICE,09/10/2019,H59620191011BXPBJIYLH-2,223.32,CA ST GILES C.E. PRIMARY SCHOO-FOOD & DRINK SUPPLIES,CATERERS,GPC
WALSALL COUNCIL,HTTP://OPENDATACOMMUNITIES.ORG/ID/METROPOLITAN-DISTRICT-COUNCIL/WALSALL,31/12/2019,CHILDRENS SERVICES,ARGOS LTD,09/10/2019,H59620191011CNTHIPCTP-1,14.00,TRANSITION AND LEAVING CARE PL-CARE LEAVERS MTCE PAYMENTS,DISCOUNT STORES,GPC
WALSALL COUNCIL,HTTP://OPENDATACOMMUNITIES.ORG/ID/METROPOLITAN-DISTRICT-COUNCIL/WALSALL,31/12/2019,RESOURCES & TRANSFORMATION,BLAKEMORE FOODSERVICE,09/10/2019,H59620191011CTOXDTQTV-1,210.96,TOWN HALL RESTAURANT BISTRO-FOOD & DRINK SUPPLIES,CATERERS,GPC
WALSALL COUNCIL,HTTP://OPENDATACOMMUNITIES.ORG/ID/METROPOLITAN-DISTRICT-COUNCIL/WALSALL,31/12/2019,RESOURCES & TRANSFORMATION,BLAKEMORE FOODSERVICE,09/10/2019,H59620191011CXQMBGDDX-1,43.81,CA ST MICHAELS C.E. PRIMARY SC-FOOD & DRINK SUPPLIES,CATERERS,GPC
WALSALL COUNCIL,HTTP://OPENDATACOMMUNITIES.ORG/ID/METROPOLITAN-DISTRICT-COUNCIL/WALSALL,31/12/2019,RESOURCES & TRANSFORMATION,BLAKEMORE FOODSERVICE,09/10/2019,H59620191011CXQMBGDDX-2,29.60,CA ST MICHAELS C.E. PRIMARY SC-FOOD & DRINK SUPPLIES,CATERERS,GPC
WALSALL COUNCIL,HTTP://OPENDATACOMMUNITIES.ORG/ID/METROPOLITAN-DISTRICT-COUNCIL/WALSALL,31/12/2019,RESOURCES & TRANSFORMATION,KIRWIN MACLEAN ASSOCIATES,09/10/2019,H59620191011DFHWJEKQJ-1,125.75,WORKFORCE DEVELOPMENT-LIBRARY BOOKS,BOOK STORES,GPC
WALSALL COUNCIL,HTTP://OPENDATACOMMUNITIES.ORG/ID/METROPOLITAN-DISTRICT-COUNCIL/WALSALL,31/12/2019,RESOURCES & TRANSFORMATION,NOBISCO LIMITED,09/10/2019,H59620191011EGVUQTTON-1,20.71,CA RUSHALL JMI SCHOOL-FOOD & DRINK SUPPLIES,OTHER INDUSTRIAL SUPPLIES,GPC
WALSALL COUNCIL,HTTP://OPENDATACOMMUNITIES.ORG/ID/METROPOLITAN-DISTRICT-COUNCIL/WALSALL,31/12/2019,CHILDRENS SERVICES,WWW.REDLETTERDAYS.CO.U,09/10/2019,H59620191011EQGRHUJUZ-1,36.99,REDRUTH ROAD-RESIDENTS PERSONAL EXPENSES-AL,TRAVEL AGENCIES AND TOUR OPERATORS,GPC
WALSALL COUNCIL,HTTP://OPENDATACOMMUNITIES.ORG/ID/METROPOLITAN-DISTRICT-COUNCIL/WALSALL,31/12/2019,RESOURCES & TRANSFORMATION,BLAKEMORE FOODSERVICE,09/10/2019,H59620191011EZZFEWIZE-1,7.80,CA MEADOW VIEW JMI PRIMARY SCH-FOOD & DRINK SUPPLIES,CATERERS,GPC
WALSALL COUNCIL,HTTP://OPENDATACOMMUNITIES.ORG/ID/METROPOLITAN-DISTRICT-COUNCIL/WALSALL,31/12/2019,RESOURCES & TRANSFORMATION,BEVERLEY HOTEL LTD - T,09/10/2019,H59620191011FDAXEOOWL-1,38.00,YOUNG PERSONS HOMELESS SERVICE-HOTEL ACCOMMODATION-EMPLOYEES,"HOTELS, MOTELS, RESORTS",GPC
WALSALL COUNCIL,HTTP://OPENDATACOMMUNITIES.ORG/ID/METROPOLITAN-DISTRICT-COUNCIL/WALSALL,31/12/2019,ECONOMY & ENVIRONMENT,WWW.ZORO.CO.UK,09/10/2019,H59620191011FPLIEXRDR-1,25.98,FLEET-GENERAL MATERIALS,HARDWARE STORES,GPC
WALSALL COUNCIL,HTTP://OPENDATACOMMUNITIES.ORG/ID/METROPOLITAN-DISTRICT-COUNCIL/WALSALL,31/12/2019,CHILDRENS SERVICES,AMZNMKTPLACE AMAZON.CO.UK,09/10/2019,H59620191011FUBUMUXOM-1,31.70,BASIC STATIONERY-GENERAL MATERIALS,MISCELLANEOUS AND SPECIALTY RETAIL STORES,GPC
WALSALL COUNCIL,HTTP://OPENDATACOMMUNITIES.ORG/ID/METROPOLITAN-DISTRICT-COUNCIL/WALSALL,31/12/2019,RESOURCES & TRANSFORMATION,BLAKEMORE FOODSERVICE,09/10/2019,H59620191011FVRESYYEV-1,136.13,CA WHITEHALL JUNIOR COMMUNITY -FOOD & DRINK SUPPLIES,CATERERS,GPC
WALSALL COUNCIL,HTTP://OPENDATACOMMUNITIES.ORG/ID/METROPOLITAN-DISTRICT-COUNCIL/WALSALL,31/12/2019,ECONOMY & ENVIRONMENT,BUTLERS LANE T/O,09/10/2019,H59620191011FYHBZYUOJ-1,6.90,EMERGENCY PLANNING-OFFICER/STAFF-PUBLIC TRANSPORT,PASSENGER RAILWAYS,GPC
WALSALL COUNCIL,HTTP://OPENDATACOMMUNITIES.ORG/ID/METROPOLITAN-DISTRICT-COUNCIL/WALSALL,31/12/2019,CHILDRENS SERVICES,O2,09/10/2019,H59620191011GCTXASTAR-1,33.00,ADMIN-TELEPHONES MOBILE/PAGERS-TELEP,TELECOMMUNICATION SERVICES,GPC
WALSALL COUNCIL,HTTP://OPENDATACOMMUNITIES.ORG/ID/METROPOLITAN-DISTRICT-COUNCIL/WALSALL,31/12/2019,RESOURCES & TRANSFORMATION,BLAKEMORE FOODSERVICE,09/10/2019,H59620191011GFMDISBJT-1,29.21,CA LEIGHSWOOD PRIMARY SCHOOL-FOOD & DRINK SUPPLIES,CATERERS,GPC
WALSALL COUNCIL,HTTP://OPENDATACOMMUNITIES.ORG/ID/METROPOLITAN-DISTRICT-COUNCIL/WALSALL,31/12/2019,RESOURCES & TRANSFORMATION,BLAKEMORE FOODSERVICE,09/10/2019,H59620191011GFMDISBJT-2,236.67,CA LEIGHSWOOD PRIMARY SCHOOL-FOOD & DRINK SUPPLIES,CATERERS,GPC
WALSALL COUNCIL,HTTP://OPENDATACOMMUNITIES.ORG/ID/METROPOLITAN-DISTRICT-COUNCIL/WALSALL,31/12/2019,RESOURCES & TRANSFORMATION,BLAKEMORE FOODSERVICE,09/10/2019,H59620191011GHDBMFDYS-1,315.97,CA BUSILL JONES PRIMARY SCHOOL-FOOD & DRINK SUPPLIES,CATERERS,GPC
WALSALL COUNCIL,HTTP://OPENDATACOMMUNITIES.ORG/ID/METROPOLITAN-DISTRICT-COUNCIL/WALSALL,31/12/2019,RESOURCES & TRANSFORMATION,BLAKEMORE FOODSERVICE,09/10/2019,H59620191011GHDBMFDYS-2,7.58,CA BUSILL JONES PRIMARY SCHOOL-FOOD & DRINK SUPPLIES,CATERERS,GPC
WALSALL COUNCIL,HTTP://OPENDATACOMMUNITIES.ORG/ID/METROPOLITAN-DISTRICT-COUNCIL/WALSALL,31/12/2019,RESOURCES & TRANSFORMATION,BLAKEMORE FOODSERVICE,09/10/2019,H59620191011GMQLKKPCY-1,31.56,CA ELMWOOD SPECIAL SCHOOL-FOOD & DRINK SUPPLIES,CATERERS,GPC
WALSALL COUNCIL,HTTP://OPENDATACOMMUNITIES.ORG/ID/METROPOLITAN-DISTRICT-COUNCIL/WALSALL,31/12/2019,RESOURCES & TRANSFORMATION,BLAKEMORE FOODSERVICE,09/10/2019,H59620191011GMQLKKPCY-2,141.78,CA ELMWOOD SPECIAL SCHOOL-FOOD & DRINK SUPPLIES,CATERERS,GPC
WALSALL COUNCIL,HTTP://OPENDATACOMMUNITIES.ORG/ID/METROPOLITAN-DISTRICT-COUNCIL/WALSALL,31/12/2019,RESOURCES & TRANSFORMATION,JOHAL CONVENIENCE,09/10/2019,H59620191011GUQOPJQKR-1,2.00,ACCOMMODATION SERVICES MANAGEM-FOOD & DRINK SUPPLIES,"PACKAGE STORES, BEER, WINE, LIQUOR",GPC
WALSALL COUNCIL,HTTP://OPENDATACOMMUNITIES.ORG/ID/METROPOLITAN-DISTRICT-COUNCIL/WALSALL,31/12/2019,RESOURCES & TRANSFORMATION,REFUNND ANNUAL CARD FEE,09/10/2019,H59620191011HOFVTFYGF-1,-40.00,FINANCE ADMIN-MISC FEES AND EXPENSES,,GPC
WALSALL COUNCIL,HTTP://OPENDATACOMMUNITIES.ORG/ID/METROPOLITAN-DISTRICT-COUNCIL/WALSALL,31/12/2019,CHILDRENS SERVICES,AMZNMKTPLACE,09/10/2019,H59620191011HTZQNYBMH-1,47.49,ICT LEARNING RESOURCES-STATIONERY & GENERAL SUPPLIES,MISCELLANEOUS AND SPECIALTY RETAIL STORES,GPC
WALSALL COUNCIL,HTTP://OPENDATACOMMUNITIES.ORG/ID/METROPOLITAN-DISTRICT-COUNCIL/WALSALL,31/12/2019,CHILDRENS SERVICES,AMZNMKTPLACE,09/10/2019,H59620191011HTZQNYBMH-2,47.49,ICT LEARNING RESOURCES-STATIONERY & GENERAL SUPPLIES,MISCELLANEOUS AND SPECIALTY RETAIL STORES,GPC
WALSALL COUNCIL,HTTP://OPENDATACOMMUNITIES.ORG/ID/METROPOLITAN-DISTRICT-COUNCIL/WALSALL,31/12/2019,RESOURCES & TRANSFORMATION,NOBISCO LIMITED,09/10/2019,H59620191011IFQWISSOA-1,76.79,CA ELMORE GREEN PRIMARY SCHOOL-FOOD & DRINK SUPPLIES,OTHER INDUSTRIAL SUPPLIES,GPC
WALSALL COUNCIL,HTTP://OPENDATACOMMUNITIES.ORG/ID/METROPOLITAN-DISTRICT-COUNCIL/WALSALL,31/12/2019,CHILDRENS SERVICES,AMZNMKTPLACE,09/10/2019,H59620191011IIYRPXLNO-1,23.68,VIRTUAL SCHOOL - CENTRAL PUPIL-OTHER EXPENSES-EXPENSES,MISCELLANEOUS AND SPECIALTY RETAIL STORES,GPC
WALSALL COUNCIL,HTTP://OPENDATACOMMUNITIES.ORG/ID/METROPOLITAN-DISTRICT-COUNCIL/WALSALL,31/12/2019,RESOURCES & TRANSFORMATION,ASDA,09/10/2019,H59620191011IOQDYJWWG-1,0.15,TOWN HALL RESTAURANT BISTRO-OTHER EXPENSES-EXPENSES,GROCERY STORES AND SUPERMARKETS,GPC
WALSALL COUNCIL,HTTP://OPENDATACOMMUNITIES.ORG/ID/METROPOLITAN-DISTRICT-COUNCIL/WALSALL,31/12/2019,RESOURCES & TRANSFORMATION,ASDA,09/10/2019,H59620191011IOQDYJWWG-2,1.30,TOWN HALL RESTAURANT BISTRO-FOOD & DRINK SUPPLIES,GROCERY STORES AND SUPERMARKETS,GPC
WALSALL COUNCIL,HTTP://OPENDATACOMMUNITIES.ORG/ID/METROPOLITAN-DISTRICT-COUNCIL/WALSALL,31/12/2019,RESOURCES & TRANSFORMATION,ASDA,09/10/2019,H59620191011IOQDYJWWG-3,7.80,TOWN HALL RESTAURANT BISTRO-FOOD & DRINK SUPPLIES,GROCERY STORES AND SUPERMARKETS,GPC
WALSALL COUNCIL,HTTP://OPENDATACOMMUNITIES.ORG/ID/METROPOLITAN-DISTRICT-COUNCIL/WALSALL,31/12/2019,CHILDRENS SERVICES,ARGOS LTD,09/10/2019,H59620191011IOSUCKOUV-1,22.00,TRANSITION AND LEAVING CARE PL-CARE LEAVERS MTCE PAYMENTS,DISCOUNT STORES,GPC
WALSALL COUNCIL,HTTP://OPENDATACOMMUNITIES.ORG/ID/METROPOLITAN-DISTRICT-COUNCIL/WALSALL,31/12/2019,RESOURCES & TRANSFORMATION,BLAKEMORE FOODSERVICE,09/10/2019,H59620191011IXEXQANIY-1,13.98,CA ELMWOOD SPECIAL SCHOOL-FOOD & DRINK SUPPLIES,CATERERS,GPC
WALSALL COUNCIL,HTTP://OPENDATACOMMUNITIES.ORG/ID/METROPOLITAN-DISTRICT-COUNCIL/WALSALL,31/12/2019,ECONOMY & ENVIRONMENT,TAYLORS AUTO,09/10/2019,H59620191011IYUKTIVQM-1,50.00,FLEET-VEHICLES-REPAIR & MTCE,AUTOMOTIVE SERVICE SHOPS,GPC
WALSALL COUNCIL,HTTP://OPENDATACOMMUNITIES.ORG/ID/METROPOLITAN-DISTRICT-COUNCIL/WALSALL,31/12/2019,ECONOMY & ENVIRONMENT,AMZNMKTPLACE,09/10/2019,H59620191011JCNZOTRIW-1,63.06,CEMETERIES CENTRAL ADMINISTRAT-STATIONERY & GENERAL SUPPLIES,MISCELLANEOUS AND SPECIALTY RETAIL STORES,GPC
WALSALL COUNCIL,HTTP://OPENDATACOMMUNITIES.ORG/ID/METROPOLITAN-DISTRICT-COUNCIL/WALSALL,31/12/2019,CHILDRENS SERVICES,ALDI 18 772,09/10/2019,H59620191011JDFPLPBBY-1,0.77,PELSALL VILLAGE SCHOOL-FOOD & DRINK SUPPLIES,GROCERY STORES AND SUPERMARKETS,GPC
WALSALL COUNCIL,HTTP://OPENDATACOMMUNITIES.ORG/ID/METROPOLITAN-DISTRICT-COUNCIL/WALSALL,31/12/2019,CHILDRENS SERVICES,ALDI 18 772,09/10/2019,H59620191011JDFPLPBBY-2,14.04,EARLY YEARS DEPARTMENT-GENERAL MATERIALS,GROCERY STORES AND SUPERMARKETS,GPC
WALSALL COUNCIL,HTTP://OPENDATACOMMUNITIES.ORG/ID/METROPOLITAN-DISTRICT-COUNCIL/WALSALL,31/12/2019,CHILDRENS SERVICES,GEN REGISTER OFFICE,09/10/2019,H59620191011JGTMQKIXE-1,14.00,LOOKED AFTER CHILDRENS SOCIAL -MISC FEES AND EXPENSES,GOVERNMENT SERVICES,GPC
WALSALL COUNCIL,HTTP://OPENDATACOMMUNITIES.ORG/ID/METROPOLITAN-DISTRICT-COUNCIL/WALSALL,31/12/2019,ECONOMY & ENVIRONMENT,WM MORRISONS STORE,09/10/2019,H59620191011JJSEGQGCS-1,22.00,WALSALL GALA CENTRE-GENERAL MATERIALS,GROCERY STORES AND SUPERMARKETS,GPC
WALSALL COUNCIL,HTTP://OPENDATACOMMUNITIES.ORG/ID/METROPOLITAN-DISTRICT-COUNCIL/WALSALL,31/12/2019,CHILDRENS SERVICES,WWW.ARGOS.CO.UK,09/10/2019,H59620191011JLWHXEGJY-1,99.92,TRANSITION AND LEAVING CARE PL-FURNITURE & EQUIPMENT,DISCOUNT STORES,GPC
WALSALL COUNCIL,HTTP://OPENDATACOMMUNITIES.ORG/ID/METROPOLITAN-DISTRICT-COUNCIL/WALSALL,31/12/2019,RESOURCES & TRANSFORMATION,BLAKEMORE FOODSERVICE,09/10/2019,H59620191011JREPNHMZD-1,359.74,CA ELMORE GREEN PRIMARY SCHOOL-FOOD & DRINK SUPPLIES,CATERERS,GPC
WALSALL COUNCIL,HTTP://OPENDATACOMMUNITIES.ORG/ID/METROPOLITAN-DISTRICT-COUNCIL/WALSALL,31/12/2019,RESOURCES & TRANSFORMATION,BLAKEMORE FOODSERVICE,09/10/2019,H59620191011JREPNHMZD-2,18.32,CA ELMORE GREEN PRIMARY SCHOOL-FOOD & DRINK SUPPLIES,CATERERS,GPC
WALSALL COUNCIL,HTTP://OPENDATACOMMUNITIES.ORG/ID/METROPOLITAN-DISTRICT-COUNCIL/WALSALL,31/12/2019,CHILDRENS SERVICES (SCHOOLS),AMZNMKTPLACE AMAZON.CO.UK,09/10/2019,H59620191011JTJJYRVYB-1,5.09,E19-GENERAL MATERIALS,MISCELLANEOUS AND SPECIALTY RETAIL STORES,GPC
WALSALL COUNCIL,HTTP://OPENDATACOMMUNITIES.ORG/ID/METROPOLITAN-DISTRICT-COUNCIL/WALSALL,31/12/2019,RESOURCES & TRANSFORMATION,BLAKEMORE FOODSERVICE,09/10/2019,H59620191011JWIBTLQAL-1,20.61,CA OAKWOOD SPECIAL SCHOOL-FOOD & DRINK SUPPLIES,CATERERS,GPC
WALSALL COUNCIL,HTTP://OPENDATACOMMUNITIES.ORG/ID/METROPOLITAN-DISTRICT-COUNCIL/WALSALL,31/12/2019,ECONOMY & ENVIRONMENT,WWW.SWIMMING.ORG,09/10/2019,H59620191011JYUSWPRWZ-1,350.00,WALSALL GALA CENTRE-OTHER FEES & LICENCES-SERVICES,"ORGANIZATIONS, MEMBERSHIP",GPC
WALSALL COUNCIL,HTTP://OPENDATACOMMUNITIES.ORG/ID/METROPOLITAN-DISTRICT-COUNCIL/WALSALL,31/12/2019,RESOURCES & TRANSFORMATION,BLAKEMORE FOODSERVICE,09/10/2019,H59620191011JZXMLWIIH-1,21.47,CA WHITEHALL JUNIOR COMMUNITY -FOOD & DRINK SUPPLIES,CATERERS,GPC
WALSALL COUNCIL,HTTP://OPENDATACOMMUNITIES.ORG/ID/METROPOLITAN-DISTRICT-COUNCIL/WALSALL,31/12/2019,RESOURCES & TRANSFORMATION,BLAKEMORE FOODSERVICE,09/10/2019,H59620191011KJJIJTRZC-1,186.46,CA RADLEYS PRIMARY SCHOOL-FOOD & DRINK SUPPLIES,CATERERS,GPC
WALSALL COUNCIL,HTTP://OPENDATACOMMUNITIES.ORG/ID/METROPOLITAN-DISTRICT-COUNCIL/WALSALL,31/12/2019,RESOURCES & TRANSFORMATION,TRAINLINE,09/10/2019,H59620191011KSTUPTVTE-1,92.10,AREA PARTNERSHIPS-OFFICER/STAFF-PUBLIC TRANSPORT,PASSENGER RAILWAYS,GPC
WALSALL COUNCIL,HTTP://OPENDATACOMMUNITIES.ORG/ID/METROPOLITAN-DISTRICT-COUNCIL/WALSALL,31/12/2019,RESOURCES & TRANSFORMATION,BLAKEMORE FOODSERVICE,09/10/2019,H59620191011LDGILMCHV-1,119.55,CA BROWNHILLS WEST PRIMARY SCH-FOOD & DRINK SUPPLIES,CATERERS,GPC
WALSALL COUNCIL,HTTP://OPENDATACOMMUNITIES.ORG/ID/METROPOLITAN-DISTRICT-COUNCIL/WALSALL,31/12/2019,RESOURCES & TRANSFORMATION,BLAKEMORE FOODSERVICE,09/10/2019,H59620191011LDGILMCHV-2,14.60,CA BROWNHILLS WEST PRIMARY SCH-FOOD & DRINK SUPPLIES,CATERERS,GPC
WALSALL COUNCIL,HTTP://OPENDATACOMMUNITIES.ORG/ID/METROPOLITAN-DISTRICT-COUNCIL/WALSALL,31/12/2019,CHILDRENS SERVICES,AMZNMKTPLACE,09/10/2019,H59620191011LDJWOIKRA-1,28.47,ST FRANCIS OF ASSISI CATHOLIC -OPERATIONAL MAINTENANCE,MISCELLANEOUS AND SPECIALTY RETAIL STORES,GPC
WALSALL COUNCIL,HTTP://OPENDATACOMMUNITIES.ORG/ID/METROPOLITAN-DISTRICT-COUNCIL/WALSALL,31/12/2019,RESOURCES & TRANSFORMATION,ARTHUR BRETT CATER,09/10/2019,H59620191011LHENXPXJY-1,67.74,CA JANE LANE SPECIAL SCHOOL-FOOD & DRINK SUPPLIES,MISCELLANEOUS FOOD STORES & CONVENIENCE STORES,GPC
WALSALL COUNCIL,HTTP://OPENDATACOMMUNITIES.ORG/ID/METROPOLITAN-DISTRICT-COUNCIL/WALSALL,31/12/2019,RESOURCES & TRANSFORMATION,EXPEDIA 7483063234850,09/10/2019,H59620191011LNNKFDLMX-1,186.31,BED & BREAKFAST PAYMENTS-BED & BREAKFAST PAYMENTS,TRAVEL AGENCIES AND TOUR OPERATORS,GPC
WALSALL COUNCIL,HTTP://OPENDATACOMMUNITIES.ORG/ID/METROPOLITAN-DISTRICT-COUNCIL/WALSALL,31/12/2019,RESOURCES & TRANSFORMATION,TRAINLINE,09/10/2019,H59620191011LRPTDQVFQ-1,-80.60,AREA PARTNERSHIPS-OFFICER/STAFF-PUBLIC TRANSPORT,PASSENGER RAILWAYS,GPC
WALSALL COUNCIL,HTTP://OPENDATACOMMUNITIES.ORG/ID/METROPOLITAN-DISTRICT-COUNCIL/WALSALL,31/12/2019,RESOURCES & TRANSFORMATION,NOBISCO LIMITED,09/10/2019,H59620191011LZSDLMPII-1,12.11,CA BARCROFT D/C-FOOD & DRINK SUPPLIES,OTHER INDUSTRIAL SUPPLIES,GPC
WALSALL COUNCIL,HTTP://OPENDATACOMMUNITIES.ORG/ID/METROPOLITAN-DISTRICT-COUNCIL/WALSALL,31/12/2019,RESOURCES & TRANSFORMATION,BLAKEMORE FOODSERVICE,09/10/2019,H59620191011MDFDTQILQ-1,166.55,CA ST MICHAELS C.E. PRIMARY SC-FOOD & DRINK SUPPLIES,CATERERS,GPC
WALSALL COUNCIL,HTTP://OPENDATACOMMUNITIES.ORG/ID/METROPOLITAN-DISTRICT-COUNCIL/WALSALL,31/12/2019,RESOURCES & TRANSFORMATION,ALDI 90 772,09/10/2019,H59620191011MFTTCRYKO-1,16.32,YOUNG PERSONS HOMELESS SERVICE-FOOD & DRINK SUPPLIES,GROCERY STORES AND SUPERMARKETS,GPC
WALSALL COUNCIL,HTTP://OPENDATACOMMUNITIES.ORG/ID/METROPOLITAN-DISTRICT-COUNCIL/WALSALL,31/12/2019,RESOURCES & TRANSFORMATION,BLAKEMORE FOODSERVICE,09/10/2019,H59620191011MGHRFHJFW-1,25.48,CA LEIGHSWOOD PRIMARY SCHOOL-FOOD & DRINK SUPPLIES,CATERERS,GPC
WALSALL COUNCIL,HTTP://OPENDATACOMMUNITIES.ORG/ID/METROPOLITAN-DISTRICT-COUNCIL/WALSALL,31/12/2019,CHILDRENS SERVICES,TRAINLINE,09/10/2019,H59620191011MLLJEQRZI-1,91.50,SAFEGUARDING & FAMILY SUPPORT-OFFICER/STAFF-PUBLIC TRANSPORT,PASSENGER RAILWAYS,GPC
WALSALL COUNCIL,HTTP://OPENDATACOMMUNITIES.ORG/ID/METROPOLITAN-DISTRICT-COUNCIL/WALSALL,31/12/2019,RESOURCES & TRANSFORMATION,BLAKEMORE FOODSERVICE,09/10/2019,H59620191011MLOFOUWTW-1,114.86,CA BEACON PRIMARY SCHOOL-FOOD & DRINK SUPPLIES,CATERERS,GPC
WALSALL COUNCIL,HTTP://OPENDATACOMMUNITIES.ORG/ID/METROPOLITAN-DISTRICT-COUNCIL/WALSALL,31/12/2019,RESOURCES & TRANSFORMATION,BLAKEMORE FOODSERVICE,09/10/2019,H59620191011MLOFOUWTW-2,12.22,CA BEACON PRIMARY SCHOOL-FOOD & DRINK SUPPLIES,CATERERS,GPC
WALSALL COUNCIL,HTTP://OPENDATACOMMUNITIES.ORG/ID/METROPOLITAN-DISTRICT-COUNCIL/WALSALL,31/12/2019,RESOURCES & TRANSFORMATION,BLAKEMORE FOODSERVICE,09/10/2019,H59620191011MXWHVLLFL-1,58.41,CA LINDENS PRIMARY SCHOOL-FOOD & DRINK SUPPLIES,CATERERS,GPC
WALSALL COUNCIL,HTTP://OPENDATACOMMUNITIES.ORG/ID/METROPOLITAN-DISTRICT-COUNCIL/WALSALL,31/12/2019,RESOURCES & TRANSFORMATION,BLAKEMORE FOODSERVICE,09/10/2019,H59620191011MXWHVLLFL-2,204.72,CA LINDENS PRIMARY SCHOOL-FOOD & DRINK SUPPLIES,CATERERS,GPC
WALSALL COUNCIL,HTTP://OPENDATACOMMUNITIES.ORG/ID/METROPOLITAN-DISTRICT-COUNCIL/WALSALL,31/12/2019,CHILDRENS SERVICES,AMAZON.CO.UK*MO95S4TF4,09/10/2019,H59620191011MYBPDCYCV-1,11.49,CURRICULUM STOCK-GENERAL MATERIALS,OTHER DIRECT MARKETING-OTHER DIRECT MARKETERS,GPC
WALSALL COUNCIL,HTTP://OPENDATACOMMUNITIES.ORG/ID/METROPOLITAN-DISTRICT-COUNCIL/WALSALL,31/12/2019,CHILDRENS SERVICES,TRAINLINE,09/10/2019,H59620191011NIOEDSGVR-1,97.15,SAFEGUARDING & FAMILY SUPPORT-MISC FEES AND EXPENSES,PASSENGER RAILWAYS,GPC
WALSALL COUNCIL,HTTP://OPENDATACOMMUNITIES.ORG/ID/METROPOLITAN-DISTRICT-COUNCIL/WALSALL,31/12/2019,RESOURCES & TRANSFORMATION,BLAKEMORE FOODSERVICE,09/10/2019,H59620191011NKMDZMDPS-1,145.12,CA BUSILL JONES PRIMARY SCHOOL-FOOD & DRINK SUPPLIES,CATERERS,GPC
WALSALL COUNCIL,HTTP://OPENDATACOMMUNITIES.ORG/ID/METROPOLITAN-DISTRICT-COUNCIL/WALSALL,31/12/2019,RESOURCES & TRANSFORMATION,BLAKEMORE FOODSERVICE,09/10/2019,H59620191011NVIJTKJEZ-1,-16.50,CA KINGSHILL SCHOOL-FOOD & DRINK SUPPLIES,CATERERS,GPC
WALSALL COUNCIL,HTTP://OPENDATACOMMUNITIES.ORG/ID/METROPOLITAN-DISTRICT-COUNCIL/WALSALL,31/12/2019,RESOURCES & TRANSFORMATION,BLAKEMORE FOODSERVICE,09/10/2019,H59620191011NWCCAZICC-1,23.43,CA OAKWOOD SPECIAL SCHOOL-FOOD & DRINK SUPPLIES,CATERERS,GPC
WALSALL COUNCIL,HTTP://OPENDATACOMMUNITIES.ORG/ID/METROPOLITAN-DISTRICT-COUNCIL/WALSALL,31/12/2019,RESOURCES & TRANSFORMATION,BLAKEMORE FOODSERVICE,09/10/2019,H59620191011NWCCAZICC-2,127.46,CA OAKWOOD SPECIAL SCHOOL-FOOD & DRINK SUPPLIES,CATERERS,GPC
WALSALL COUNCIL,HTTP://OPENDATACOMMUNITIES.ORG/ID/METROPOLITAN-DISTRICT-COUNCIL/WALSALL,31/12/2019,CHILDRENS SERVICES,ASDA GROCERIES ONLINE,09/10/2019,H59620191011OLHHERBJA-1,3.00,EARLY HELP HUB-FOOD & DRINK SUPPLIES,GROCERY STORES AND SUPERMARKETS,GPC
WALSALL COUNCIL,HTTP://OPENDATACOMMUNITIES.ORG/ID/METROPOLITAN-DISTRICT-COUNCIL/WALSALL,31/12/2019,CHILDRENS SERVICES,ASDA GROCERIES ONLINE,09/10/2019,H59620191011OLHHERBJA-2,13.70,EARLY HELP HUB-FOOD & DRINK SUPPLIES,GROCERY STORES AND SUPERMARKETS,GPC
WALSALL COUNCIL,HTTP://OPENDATACOMMUNITIES.ORG/ID/METROPOLITAN-DISTRICT-COUNCIL/WALSALL,31/12/2019,RESOURCES & TRANSFORMATION,BLAKEMORE FOODSERVICE,09/10/2019,H59620191011OTPXQFVKD-1,58.42,CA MEADOW VIEW JMI PRIMARY SCH-FOOD & DRINK SUPPLIES,CATERERS,GPC
WALSALL COUNCIL,HTTP://OPENDATACOMMUNITIES.ORG/ID/METROPOLITAN-DISTRICT-COUNCIL/WALSALL,31/12/2019,RESOURCES & TRANSFORMATION,BLAKEMORE FOODSERVICE,09/10/2019,H59620191011OTPXQFVKD-2,257.95,CA MEADOW VIEW JMI PRIMARY SCH-FOOD & DRINK SUPPLIES,CATERERS,GPC
WALSALL COUNCIL,HTTP://OPENDATACOMMUNITIES.ORG/ID/METROPOLITAN-DISTRICT-COUNCIL/WALSALL,31/12/2019,RESOURCES & TRANSFORMATION,SCREWFIX DIRECT,09/10/2019,H59620191011OWPMEJCSD-1,69.99,CENTRAL OFFICE ACCOMMODATION-OPERATIONAL MAINTENANCE,HOME SUPPLY WAREHOUSE STORES,GPC
WALSALL COUNCIL,HTTP://OPENDATACOMMUNITIES.ORG/ID/METROPOLITAN-DISTRICT-COUNCIL/WALSALL,31/12/2019,RESOURCES & TRANSFORMATION,BLAKEMORE FOODSERVICE,09/10/2019,H59620191011OXJNHPLDS-1,14.60,CA OLD HALL SPECIAL SCHOOL-FOOD & DRINK SUPPLIES,CATERERS,GPC
WALSALL COUNCIL,HTTP://OPENDATACOMMUNITIES.ORG/ID/METROPOLITAN-DISTRICT-COUNCIL/WALSALL,31/12/2019,RESOURCES & TRANSFORMATION,BLAKEMORE FOODSERVICE,09/10/2019,H59620191011OXJNHPLDS-2,87.28,CA OLD HALL SPECIAL SCHOOL-FOOD & DRINK SUPPLIES,CATERERS,GPC
WALSALL COUNCIL,HTTP://OPENDATACOMMUNITIES.ORG/ID/METROPOLITAN-DISTRICT-COUNCIL/WALSALL,31/12/2019,RESOURCES & TRANSFORMATION,BLAKEMORE FOODSERVICE,09/10/2019,H59620191011PHVDQOGSN-1,111.98,CA JANE LANE SPECIAL SCHOOL-FOOD & DRINK SUPPLIES,CATERERS,GPC
WALSALL COUNCIL,HTTP://OPENDATACOMMUNITIES.ORG/ID/METROPOLITAN-DISTRICT-COUNCIL/WALSALL,31/12/2019,RESOURCES & TRANSFORMATION,BLAKEMORE FOODSERVICE,09/10/2019,H59620191011PVOCOUQCQ-1,8.83,CA RUSHALL JMI SCHOOL-FOOD & DRINK SUPPLIES,CATERERS,GPC
WALSALL COUNCIL,HTTP://OPENDATACOMMUNITIES.ORG/ID/METROPOLITAN-DISTRICT-COUNCIL/WALSALL,31/12/2019,RESOURCES & TRANSFORMATION,BLAKEMORE FOODSERVICE,09/10/2019,H59620191011PVOCOUQCQ-2,153.96,CA RUSHALL JMI SCHOOL-FOOD & DRINK SUPPLIES,CATERERS,GPC
WALSALL COUNCIL,HTTP://OPENDATACOMMUNITIES.ORG/ID/METROPOLITAN-DISTRICT-COUNCIL/WALSALL,31/12/2019,RESOURCES & TRANSFORMATION,BLAKEMORE FOODSERVICE,09/10/2019,H59620191011QCRQOLOWP-1,35.33,CA ST JOHNS C.E. PRIMARY SCHOO-FOOD & DRINK SUPPLIES,CATERERS,GPC
WALSALL COUNCIL,HTTP://OPENDATACOMMUNITIES.ORG/ID/METROPOLITAN-DISTRICT-COUNCIL/WALSALL,31/12/2019,RESOURCES & TRANSFORMATION,BLAKEMORE FOODSERVICE,09/10/2019,H59620191011QCRQOLOWP-2,191.55,CA ST JOHNS C.E. PRIMARY SCHOO-FOOD & DRINK SUPPLIES,CATERERS,GPC
WALSALL COUNCIL,HTTP://OPENDATACOMMUNITIES.ORG/ID/METROPOLITAN-DISTRICT-COUNCIL/WALSALL,31/12/2019,CHILDRENS SERVICES,TRAINLINE,09/10/2019,H59620191011QRMTUVHKQ-1,20.70,INITIAL RESPONSE SERVICE-OFFICER/STAFF-PUBLIC TRANSPORT,PASSENGER RAILWAYS,GPC
WALSALL COUNCIL,HTTP://OPENDATACOMMUNITIES.ORG/ID/METROPOLITAN-DISTRICT-COUNCIL/WALSALL,31/12/2019,ECONOMY & ENVIRONMENT,WWW.SWIMMING.ORG,09/10/2019,H59620191011RCRCWGXWU-1,350.00,WALSALL GALA CENTRE-OTHER FEES & LICENCES-SERVICES,"ORGANIZATIONS, MEMBERSHIP",GPC
WALSALL COUNCIL,HTTP://OPENDATACOMMUNITIES.ORG/ID/METROPOLITAN-DISTRICT-COUNCIL/WALSALL,31/12/2019,RESOURCES & TRANSFORMATION,BLAKEMORE FOODSERVICE,09/10/2019,H59620191011RFRZRQCJP-1,305.14,CA ELMORE GREEN PRIMARY SCHOOL-FOOD & DRINK SUPPLIES,CATERERS,GPC
WALSALL COUNCIL,HTTP://OPENDATACOMMUNITIES.ORG/ID/METROPOLITAN-DISTRICT-COUNCIL/WALSALL,31/12/2019,RESOURCES & TRANSFORMATION,ARTHUR BRETT CATER,09/10/2019,H59620191011RGBNFTXDR-1,23.01,TOWN HALL RESTAURANT BISTRO-FOOD & DRINK SUPPLIES,MISCELLANEOUS FOOD STORES & CONVENIENCE STORES,GPC
WALSALL COUNCIL,HTTP://OPENDATACOMMUNITIES.ORG/ID/METROPOLITAN-DISTRICT-COUNCIL/WALSALL,31/12/2019,CHILDRENS SERVICES (SCHOOLS),AMAZON.CO.UK*MO6XZ5AK4,09/10/2019,H59620191011RLRWSVHIH-1,5.24,E19-GENERAL MATERIALS,OTHER DIRECT MARKETING-OTHER DIRECT MARKETERS,GPC
WALSALL COUNCIL,HTTP://OPENDATACOMMUNITIES.ORG/ID/METROPOLITAN-DISTRICT-COUNCIL/WALSALL,31/12/2019,CHILDRENS SERVICES,FACEBK A63K6N2PE2,09/10/2019,H59620191011RSWWYRIXD-1,47.62,FAMILY PLACEMENTS-PUBLICITY & ADVERTISING (NOT S,ADVERTISING SERVICES,GPC
WALSALL COUNCIL,HTTP://OPENDATACOMMUNITIES.ORG/ID/METROPOLITAN-DISTRICT-COUNCIL/WALSALL,31/12/2019,CHILDRENS SERVICES (SCHOOLS),AMAZON.CO.UK*MO4885TZ4 AM,09/10/2019,H59620191011RVIXNGNYQ-1,18.03,E19-GENERAL MATERIALS,MISCELLANEOUS AND SPECIALTY RETAIL STORES,GPC
WALSALL COUNCIL,HTTP://OPENDATACOMMUNITIES.ORG/ID/METROPOLITAN-DISTRICT-COUNCIL/WALSALL,31/12/2019,CHILDRENS SERVICES,WWW.BANNERUK.COM,09/10/2019,H59620191011TAQDXYGSJ-1,8.65,SAFEGUARDING & FAMILY SUPPORT-STATIONERY & GENERAL SUPPLIES,"STATIONERY, OFFICE SUPPLIES AND WRITING PAPER",GPC
WALSALL COUNCIL,HTTP://OPENDATACOMMUNITIES.ORG/ID/METROPOLITAN-DISTRICT-COUNCIL/WALSALL,31/12/2019,CHILDRENS SERVICES,WWW.BANNERUK.COM,09/10/2019,H59620191011TAQDXYGSJ-2,8.65,FAMILY PLACEMENTS-STATIONERY & GENERAL SUPPLIES,"STATIONERY, OFFICE SUPPLIES AND WRITING PAPER",GPC
WALSALL COUNCIL,HTTP://OPENDATACOMMUNITIES.ORG/ID/METROPOLITAN-DISTRICT-COUNCIL/WALSALL,31/12/2019,RESOURCES & TRANSFORMATION,CO-OPERATIVE FOOD,09/10/2019,H59620191011TLJXZLRNL-1,49.00,WALSALL CRISIS SUPPORT SCHEME-CRISIS SUPPORT PAYMENTS,GROCERY STORES AND SUPERMARKETS,GPC
WALSALL COUNCIL,HTTP://OPENDATACOMMUNITIES.ORG/ID/METROPOLITAN-DISTRICT-COUNCIL/WALSALL,31/12/2019,ECONOMY & ENVIRONMENT,WWW.BANNERUK.COM,09/10/2019,H59620191011UHTTSKMYG-1,3.70,PUBLIC HEALTH BUSINESS SUPPORT-GENERAL MATERIALS,"STATIONERY, OFFICE SUPPLIES AND WRITING PAPER",GPC
WALSALL COUNCIL,HTTP://OPENDATACOMMUNITIES.ORG/ID/METROPOLITAN-DISTRICT-COUNCIL/WALSALL,31/12/2019,CHILDRENS SERVICES,MCDONALDS,09/10/2019,H59620191011UJURFFYFF-1,3.89,"43A HILTON ROAD, WILLENHALL-RESIDENTS PERSONAL EXPENSES-AL",QUICK PAYMENT SERVICE-FAST-FOOD RESTAURANTS,GPC
WALSALL COUNCIL,HTTP://OPENDATACOMMUNITIES.ORG/ID/METROPOLITAN-DISTRICT-COUNCIL/WALSALL,31/12/2019,RESOURCES & TRANSFORMATION,TRAVELODGE GB0000,09/10/2019,H59620191011USJBQLYBJ-1,125.00,BED & BREAKFAST PAYMENTS-BED & BREAKFAST PAYMENTS,TRAVELODGE,GPC
WALSALL COUNCIL,HTTP://OPENDATACOMMUNITIES.ORG/ID/METROPOLITAN-DISTRICT-COUNCIL/WALSALL,31/12/2019,CHILDRENS SERVICES,ONE STOP 6322,09/10/2019,H59620191011VDFSCEDWL-1,1.85,PARENTING TEAM-FOOD & DRINK SUPPLIES,GROCERY STORES AND SUPERMARKETS,GPC
WALSALL COUNCIL,HTTP://OPENDATACOMMUNITIES.ORG/ID/METROPOLITAN-DISTRICT-COUNCIL/WALSALL,31/12/2019,RESOURCES & TRANSFORMATION,TESCO STORES 6161,09/10/2019,H59620191011VTSSWNUIN-1,12.15,TOWN HALL RESTAURANT BISTRO-FOOD & DRINK SUPPLIES,GROCERY STORES AND SUPERMARKETS,GPC
WALSALL COUNCIL,HTTP://OPENDATACOMMUNITIES.ORG/ID/METROPOLITAN-DISTRICT-COUNCIL/WALSALL,31/12/2019,CHILDRENS SERVICES,POST OFFICE COUNTER,09/10/2019,H59620191011VWFKUQFQI-1,4.20,PARENTING TEAM-POSTAGES AND COURIER SERVICES,POSTAL SERVICES - GOVERNMENT ONLY,GPC
WALSALL COUNCIL,HTTP://OPENDATACOMMUNITIES.ORG/ID/METROPOLITAN-DISTRICT-COUNCIL/WALSALL,31/12/2019,ECONOMY & ENVIRONMENT,WWW.BANNERUK.COM,09/10/2019,H59620191011VYGMVPULR-1,45.77,CENTRALISED STATIONARY-STATIONERY & GENERAL SUPPLIES,"STATIONERY, OFFICE SUPPLIES AND WRITING PAPER",GPC
WALSALL COUNCIL,HTTP://OPENDATACOMMUNITIES.ORG/ID/METROPOLITAN-DISTRICT-COUNCIL/WALSALL,31/12/2019,CHILDRENS SERVICES,CT WOLVERHAMPTON,09/10/2019,H59620191011WUIDMJWVW-1,65.00,TRANSITION AND LEAVING CARE PL-CARE LEAVERS MTCE PAYMENTS,"ORGANIZATIONS, CHARITABLE AND SOCIAL SERVICE",GPC
WALSALL COUNCIL,HTTP://OPENDATACOMMUNITIES.ORG/ID/METROPOLITAN-DISTRICT-COUNCIL/WALSALL,31/12/2019,RESOURCES & TRANSFORMATION,BLAKEMORE FOODSERVICE,09/10/2019,H59620191011XAJIUVTGW-1,46.19,CA BUSILL JONES PRIMARY SCHOOL-CATERING,CATERERS,GPC
WALSALL COUNCIL,HTTP://OPENDATACOMMUNITIES.ORG/ID/METROPOLITAN-DISTRICT-COUNCIL/WALSALL,31/12/2019,CHILDRENS SERVICES,WWW.BANNERUK.COM,09/10/2019,H59620191011XSSAMEGBE-1,52.32,SAFEGUARDING & FAMILY SUPPORT-STATIONERY & GENERAL SUPPLIES,"STATIONERY, OFFICE SUPPLIES AND WRITING PAPER",GPC
WALSALL COUNCIL,HTTP://OPENDATACOMMUNITIES.ORG/ID/METROPOLITAN-DISTRICT-COUNCIL/WALSALL,31/12/2019,CHILDRENS SERVICES,HM PASSPORT OFFICE,09/10/2019,H59620191011XWXFUAWYF-1,85.00,LOOKED AFTER CHILDRENS SOCIAL -MISC FEES AND EXPENSES,GOVERNMENT SERVICES,GPC
WALSALL COUNCIL,HTTP://OPENDATACOMMUNITIES.ORG/ID/METROPOLITAN-DISTRICT-COUNCIL/WALSALL,31/12/2019,RESOURCES & TRANSFORMATION,BLAKEMORE FOODSERVICE,09/10/2019,H59620191011YDDXMCMTJ-1,259.87,CA COOPER JORDAN CE PRIMARY SC-FOOD & DRINK SUPPLIES,CATERERS,GPC
WALSALL COUNCIL,HTTP://OPENDATACOMMUNITIES.ORG/ID/METROPOLITAN-DISTRICT-COUNCIL/WALSALL,31/12/2019,RESOURCES & TRANSFORMATION,BLAKEMORE FOODSERVICE,09/10/2019,H59620191011YDDXMCMTJ-2,43.81,CA COOPER JORDAN CE PRIMARY SC-FOOD & DRINK SUPPLIES,CATERERS,GPC
WALSALL COUNCIL,HTTP://OPENDATACOMMUNITIES.ORG/ID/METROPOLITAN-DISTRICT-COUNCIL/WALSALL,31/12/2019,CHILDRENS SERVICES,WWW.BANNERUK.COM,09/10/2019,H59620191011YFBIHIUFH-1,123.69,LOCALITY FAMILY SUPPORT-NORTH-STATIONERY & GENERAL SUPPLIES,"STATIONERY, OFFICE SUPPLIES AND WRITING PAPER",GPC
WALSALL COUNCIL,HTTP://OPENDATACOMMUNITIES.ORG/ID/METROPOLITAN-DISTRICT-COUNCIL/WALSALL,31/12/2019,CHILDRENS SERVICES,EXPEDIA 7483083750971,09/10/2019,H59620191011YVWOTDXWN-1,131.92,FAMILY PLACEMENTS-OTHER-TRAVEL ALLOWANCES,TRAVEL AGENCIES AND TOUR OPERATORS,GPC
WALSALL COUNCIL,HTTP://OPENDATACOMMUNITIES.ORG/ID/METROPOLITAN-DISTRICT-COUNCIL/WALSALL,31/12/2019,RESOURCES & TRANSFORMATION,BLAKEMORE FOODSERVICE,09/10/2019,H59620191011YWPGSEEVU-1,127.17,CA CASTLEFORT JMI SCHOOL-FOOD & DRINK SUPPLIES,CATERERS,GPC
WALSALL COUNCIL,HTTP://OPENDATACOMMUNITIES.ORG/ID/METROPOLITAN-DISTRICT-COUNCIL/WALSALL,31/12/2019,RESOURCES & TRANSFORMATION,BLAKEMORE FOODSERVICE,09/10/2019,H59620191011YWPGSEEVU-2,8.83,CA CASTLEFORT JMI SCHOOL-FOOD & DRINK SUPPLIES,CATERERS,GPC
WALSALL COUNCIL,HTTP://OPENDATACOMMUNITIES.ORG/ID/METROPOLITAN-DISTRICT-COUNCIL/WALSALL,31/12/2019,ECONOMY & ENVIRONMENT,WWW.BANNERUK.COM,09/10/2019,H59620191011ZLGWQYPBN-1,19.06,CENTRALISED STATIONARY-STATIONERY & GENERAL SUPPLIES,"STATIONERY, OFFICE SUPPLIES AND WRITING PAPER",GPC
WALSALL COUNCIL,HTTP://OPENDATACOMMUNITIES.ORG/ID/METROPOLITAN-DISTRICT-COUNCIL/WALSALL,31/12/2019,CHILDRENS SERVICES (SCHOOLS),AMZNMKTPLACE AMAZON.CO.UK,09/10/2019,H59620191012FTBKEEGLN-1,20.00,E19-GENERAL MATERIALS,MISCELLANEOUS AND SPECIALTY RETAIL STORES,GPC
WALSALL COUNCIL,HTTP://OPENDATACOMMUNITIES.ORG/ID/METROPOLITAN-DISTRICT-COUNCIL/WALSALL,31/12/2019,CHILDRENS SERVICES,PREMIER INN44029180,09/10/2019,H59620191012KHPQCPQZW-1,81.00,INITIAL RESPONSE SERVICE-ACCOMMODATION AND RELATED COST,PREMIER INN,GPC
WALSALL COUNCIL,HTTP://OPENDATACOMMUNITIES.ORG/ID/METROPOLITAN-DISTRICT-COUNCIL/WALSALL,31/12/2019,CHILDRENS SERVICES,247 CARS WILLENHALL LTD,09/10/2019,H59620191012VSBSPOFUV-1,16.80,INITIAL RESPONSE SERVICE-TAXIS-TRAVEL ALLOWANCES,TAXI SERVICES,GPC
WALSALL COUNCIL,HTTP://OPENDATACOMMUNITIES.ORG/ID/METROPOLITAN-DISTRICT-COUNCIL/WALSALL,31/12/2019,RESOURCES & TRANSFORMATION,WILKO RETAIL LIMITED,10/10/2019,H59620191012ANVKCWOMQ-1,70.10,WALSALL CRISIS SUPPORT SCHEME-CRISIS SUPPORT PAYMENTS,MISCELLANEOUS GENERAL MERCHANDISE,GPC
WALSALL COUNCIL,HTTP://OPENDATACOMMUNITIES.ORG/ID/METROPOLITAN-DISTRICT-COUNCIL/WALSALL,31/12/2019,CHILDRENS SERVICES,TRAINLINE,10/10/2019,H59620191012AWNYWOUCO-1,36.25,SEN-OFFICER/STAFF-PUBLIC TRANSPORT,PASSENGER RAILWAYS,GPC
WALSALL COUNCIL,HTTP://OPENDATACOMMUNITIES.ORG/ID/METROPOLITAN-DISTRICT-COUNCIL/WALSALL,31/12/2019,CHILDRENS SERVICES,AMZNMKTPLACE,10/10/2019,H59620191012BGGHAGPMR-1,8.85,DT & ART-GENERAL MATERIALS,MISCELLANEOUS AND SPECIALTY RETAIL STORES,GPC
WALSALL COUNCIL,HTTP://OPENDATACOMMUNITIES.ORG/ID/METROPOLITAN-DISTRICT-COUNCIL/WALSALL,31/12/2019,CHILDRENS SERVICES,AMZNMKTPLACE,10/10/2019,H59620191012BGGHAGPMR-2,57.98,DT & ART-GENERAL MATERIALS,MISCELLANEOUS AND SPECIALTY RETAIL STORES,GPC
WALSALL COUNCIL,HTTP://OPENDATACOMMUNITIES.ORG/ID/METROPOLITAN-DISTRICT-COUNCIL/WALSALL,31/12/2019,CHILDRENS SERVICES,CITY OF WOLVERHAMPTON,10/10/2019,H59620191012BHLLHNQCY-1,27.00,SAFEGUARDING & FAMILY SUPPORT-OTHER FEES & LICENCES-SERVICES,GOVERNMENT SERVICES,GPC
WALSALL COUNCIL,HTTP://OPENDATACOMMUNITIES.ORG/ID/METROPOLITAN-DISTRICT-COUNCIL/WALSALL,31/12/2019,ADULT SOCIAL CARE,HOLE IN THE WALL C,10/10/2019,H59620191012BMRBJBNGU-1,20.00,GOSCOTE-REPAIR & MAINTENANCE OF FURNIT,"FURNITURE-REUPHOLSTERY AND REPAIR, REFINISHING",GPC
WALSALL COUNCIL,HTTP://OPENDATACOMMUNITIES.ORG/ID/METROPOLITAN-DISTRICT-COUNCIL/WALSALL,31/12/2019,CHILDRENS SERVICES,AMZNMKTPLACE AMAZON.CO.UK,10/10/2019,H59620191012BWZKNIWDE-1,65.90,DRAMA-GENERAL MATERIALS,MISCELLANEOUS AND SPECIALTY RETAIL STORES,GPC
WALSALL COUNCIL,HTTP://OPENDATACOMMUNITIES.ORG/ID/METROPOLITAN-DISTRICT-COUNCIL/WALSALL,31/12/2019,CHILDRENS SERVICES,PAYPAL *OAKLANDGARD,10/10/2019,H59620191012CNEKSRDUO-1,23.90,DT & ART-GENERAL MATERIALS,"NURSERIES, LAWN AND GARDEN SUPPLY STORES",GPC
WALSALL COUNCIL,HTTP://OPENDATACOMMUNITIES.ORG/ID/METROPOLITAN-DISTRICT-COUNCIL/WALSALL,31/12/2019,CHILDRENS SERVICES,GEN REGISTER OFFICE,10/10/2019,H59620191012CSLQCUQWG-1,38.00,SAFEGUARDING & FAMILY SUPPORT-OTHER FEES & LICENCES-SERVICES,GOVERNMENT SERVICES,GPC
WALSALL COUNCIL,HTTP://OPENDATACOMMUNITIES.ORG/ID/METROPOLITAN-DISTRICT-COUNCIL/WALSALL,31/12/2019,ECONOMY & ENVIRONMENT,AMZNMKTPLACE,10/10/2019,H59620191012CXBXORUPM-1,15.48,DIRECTORATE SUPPORT-STATIONERY & GENERAL SUPPLIES,MISCELLANEOUS AND SPECIALTY RETAIL STORES,GPC
WALSALL COUNCIL,HTTP://OPENDATACOMMUNITIES.ORG/ID/METROPOLITAN-DISTRICT-COUNCIL/WALSALL,31/12/2019,CHILDRENS SERVICES,ARGOS LTD,10/10/2019,H59620191012CXXHWTAHM-1,159.99,TRANSITION AND LEAVING CARE PL-FURNITURE & EQUIPMENT,DISCOUNT STORES,GPC
WALSALL COUNCIL,HTTP://OPENDATACOMMUNITIES.ORG/ID/METROPOLITAN-DISTRICT-COUNCIL/WALSALL,31/12/2019,ECONOMY & ENVIRONMENT,AMZNMKTPLACE,10/10/2019,H59620191012DDDLTCFCX-1,9.25,CENTRALISED STATIONARY-STATIONERY & GENERAL SUPPLIES,MISCELLANEOUS AND SPECIALTY RETAIL STORES,GPC
WALSALL COUNCIL,HTTP://OPENDATACOMMUNITIES.ORG/ID/METROPOLITAN-DISTRICT-COUNCIL/WALSALL,31/12/2019,CHILDRENS SERVICES,ASDA SUPERSTORE,10/10/2019,H59620191012DENKTQOYI-1,1.00,EARLY HELP HUB-FOOD & DRINK SUPPLIES,GROCERY STORES AND SUPERMARKETS,GPC
WALSALL COUNCIL,HTTP://OPENDATACOMMUNITIES.ORG/ID/METROPOLITAN-DISTRICT-COUNCIL/WALSALL,31/12/2019,CHILDRENS SERVICES,ASDA SUPERSTORE,10/10/2019,H59620191012DENKTQOYI-2,3.19,EARLY HELP HUB-FOOD & DRINK SUPPLIES,GROCERY STORES AND SUPERMARKETS,GPC
WALSALL COUNCIL,HTTP://OPENDATACOMMUNITIES.ORG/ID/METROPOLITAN-DISTRICT-COUNCIL/WALSALL,31/12/2019,CHILDRENS SERVICES,AMZNMKTPLACE,10/10/2019,H59620191012DPBHIKMCM-1,9.55,READING ZONE-GENERAL MATERIALS,MISCELLANEOUS AND SPECIALTY RETAIL STORES,GPC
WALSALL COUNCIL,HTTP://OPENDATACOMMUNITIES.ORG/ID/METROPOLITAN-DISTRICT-COUNCIL/WALSALL,31/12/2019,CHILDRENS SERVICES,AMZNMKTPLACE,10/10/2019,H59620191012DQDAJEFHW-1,23.05,ART & CRAFT-GENERAL MATERIALS,MISCELLANEOUS AND SPECIALTY RETAIL STORES,GPC
WALSALL COUNCIL,HTTP://OPENDATACOMMUNITIES.ORG/ID/METROPOLITAN-DISTRICT-COUNCIL/WALSALL,31/12/2019,RESOURCES & TRANSFORMATION,AMZNMKTPLACE,10/10/2019,H59620191012DSODYVTXA-1,5.99,AREA PARTNERSHIPS-STATIONERY & GENERAL SUPPLIES,MISCELLANEOUS AND SPECIALTY RETAIL STORES,GPC
WALSALL COUNCIL,HTTP://OPENDATACOMMUNITIES.ORG/ID/METROPOLITAN-DISTRICT-COUNCIL/WALSALL,31/12/2019,ECONOMY & ENVIRONMENT,WWW.SWIMMING.ORG,10/10/2019,H59620191012EBEFOYIMK-1,350.00,WALSALL GALA CENTRE-OTHER FEES & LICENCES-SERVICES,"ORGANIZATIONS, MEMBERSHIP",GPC
WALSALL COUNCIL,HTTP://OPENDATACOMMUNITIES.ORG/ID/METROPOLITAN-DISTRICT-COUNCIL/WALSALL,31/12/2019,ECONOMY & ENVIRONMENT,MAUDESPORT LIMITED,10/10/2019,H59620191012FEUEBTKJO-1,37.10,WALSALL GALA CENTRE-FURNITURE & EQUIPMENT,SPORTING GOODS STORES,GPC
WALSALL COUNCIL,HTTP://OPENDATACOMMUNITIES.ORG/ID/METROPOLITAN-DISTRICT-COUNCIL/WALSALL,31/12/2019,ADULT SOCIAL CARE,HOLE IN THE WALL C,10/10/2019,H59620191012FFRYYJRJW-1,20.00,GOSCOTE-REPAIR & MAINTENANCE OF FURNIT,"FURNITURE-REUPHOLSTERY AND REPAIR, REFINISHING",GPC
WALSALL COUNCIL,HTTP://OPENDATACOMMUNITIES.ORG/ID/METROPOLITAN-DISTRICT-COUNCIL/WALSALL,31/12/2019,RESOURCES & TRANSFORMATION,WWW.BANNERUK.COM,10/10/2019,H59620191012FIRQNVFGC-1,24.82,PRINTING SERVICES-STATIONERY & GENERAL SUPPLIES,"STATIONERY, OFFICE SUPPLIES AND WRITING PAPER",GPC
WALSALL COUNCIL,HTTP://OPENDATACOMMUNITIES.ORG/ID/METROPOLITAN-DISTRICT-COUNCIL/WALSALL,31/12/2019,CHILDRENS SERVICES,WWW.NEOPOST.CO.UK,10/10/2019,H59620191012FJSMODFUO-1,500.00,VIRTUAL SCHOOL - CENTRAL PUPIL-POSTAGES AND COURIER SERVICES,"STATIONERY, OFFICE SUPPLIES AND WRITING PAPER",GPC
WALSALL COUNCIL,HTTP://OPENDATACOMMUNITIES.ORG/ID/METROPOLITAN-DISTRICT-COUNCIL/WALSALL,31/12/2019,CHILDRENS SERVICES,WWW.BANNERUK.COM,10/10/2019,H59620191012FWMJWKTWR-1,36.46,SAFEGUARDING & FAMILY SUPPORT-STATIONERY & GENERAL SUPPLIES,"STATIONERY, OFFICE SUPPLIES AND WRITING PAPER",GPC
WALSALL COUNCIL,HTTP://OPENDATACOMMUNITIES.ORG/ID/METROPOLITAN-DISTRICT-COUNCIL/WALSALL,31/12/2019,CHILDRENS SERVICES,AMZNMKTPLACE,10/10/2019,H59620191012GAEDKEQOJ-1,19.97,READING ZONE-GENERAL MATERIALS,MISCELLANEOUS AND SPECIALTY RETAIL STORES,GPC
WALSALL COUNCIL,HTTP://OPENDATACOMMUNITIES.ORG/ID/METROPOLITAN-DISTRICT-COUNCIL/WALSALL,31/12/2019,RESOURCES & TRANSFORMATION,WILKO RETAIL LIMITED,10/10/2019,H59620191012GAQLPSXEM-1,14.50,ACCOMMODATION SERVICES MANAGEM-MISC FEES AND EXPENSES,MISCELLANEOUS GENERAL MERCHANDISE,GPC
WALSALL COUNCIL,HTTP://OPENDATACOMMUNITIES.ORG/ID/METROPOLITAN-DISTRICT-COUNCIL/WALSALL,31/12/2019,RESOURCES & TRANSFORMATION,HOTEL ON BOOKING.COM IBIS,10/10/2019,H59620191012GJXAWNKVH-1,-207.00,AREA PARTNERSHIPS-HOTEL ACCOMMODATION-EMPLOYEES,"HOTELS, MOTELS, RESORTS",GPC
WALSALL COUNCIL,HTTP://OPENDATACOMMUNITIES.ORG/ID/METROPOLITAN-DISTRICT-COUNCIL/WALSALL,31/12/2019,RESOURCES & TRANSFORMATION,AMAZON.CO.UK*MO93L0AT4,10/10/2019,H59620191012GZYBKCSNR-1,9.66,AREA PARTNERSHIPS-FURNITURE & EQUIPMENT,OTHER DIRECT MARKETING-OTHER DIRECT MARKETERS,GPC
WALSALL COUNCIL,HTTP://OPENDATACOMMUNITIES.ORG/ID/METROPOLITAN-DISTRICT-COUNCIL/WALSALL,31/12/2019,ECONOMY & ENVIRONMENT,WHICH?,10/10/2019,H59620191012HDFHODUIF-1,12.00,BLOXWICH LIBRARY-LIBRARY BOOKS,"BOOKS, PERIODICALS AND NEWSPAPERS",GPC
WALSALL COUNCIL,HTTP://OPENDATACOMMUNITIES.ORG/ID/METROPOLITAN-DISTRICT-COUNCIL/WALSALL,31/12/2019,ECONOMY & ENVIRONMENT,WHICH?,10/10/2019,H59620191012HDFHODUIF-2,83.40,BLOXWICH LIBRARY-LIBRARY BOOKS,"BOOKS, PERIODICALS AND NEWSPAPERS",GPC
WALSALL COUNCIL,HTTP://OPENDATACOMMUNITIES.ORG/ID/METROPOLITAN-DISTRICT-COUNCIL/WALSALL,31/12/2019,ECONOMY & ENVIRONMENT,TRAINLINE.COM,10/10/2019,H59620191012HJEFQHXMQ-1,93.36,NEW ART GALLERY - ADMIN-OFFICER/STAFF-PUBLIC TRANSPORT,PASSENGER RAILWAYS,GPC
WALSALL COUNCIL,HTTP://OPENDATACOMMUNITIES.ORG/ID/METROPOLITAN-DISTRICT-COUNCIL/WALSALL,31/12/2019,CHILDRENS SERVICES,ELEGANCE CARPETS FLOORI,10/10/2019,H59620191012HVGLVROLY-1,356.00,TRANSITION AND LEAVING CARE PL-FURNITURE & EQUIPMENT,FLOOR COVERING STORES,GPC
WALSALL COUNCIL,HTTP://OPENDATACOMMUNITIES.ORG/ID/METROPOLITAN-DISTRICT-COUNCIL/WALSALL,31/12/2019,CHILDRENS SERVICES,ALDI 42 772,10/10/2019,H59620191012ICLBSEFSV-1,22.95,REDRUTH ROAD-FOOD & DRINK SUPPLIES,GROCERY STORES AND SUPERMARKETS,GPC
WALSALL COUNCIL,HTTP://OPENDATACOMMUNITIES.ORG/ID/METROPOLITAN-DISTRICT-COUNCIL/WALSALL,31/12/2019,CHILDRENS SERVICES,WM MORRISONS STORE,10/10/2019,H59620191012IJYJNNRVV-1,2.60,57 LICHFIELD ROAD-FOOD & DRINK SUPPLIES,GROCERY STORES AND SUPERMARKETS,GPC
WALSALL COUNCIL,HTTP://OPENDATACOMMUNITIES.ORG/ID/METROPOLITAN-DISTRICT-COUNCIL/WALSALL,31/12/2019,CHILDRENS SERVICES,WM MORRISONS STORE,10/10/2019,H59620191012IJYJNNRVV-2,16.79,57 LICHFIELD ROAD-FOOD & DRINK SUPPLIES,GROCERY STORES AND SUPERMARKETS,GPC
WALSALL COUNCIL,HTTP://OPENDATACOMMUNITIES.ORG/ID/METROPOLITAN-DISTRICT-COUNCIL/WALSALL,31/12/2019,CHILDRENS SERVICES,REGISTRATION SERVICES,10/10/2019,H59620191012IPWPDBAXP-1,11.00,GENERAL MANAGEMENT SUPPORT (IN-OTHER FEES & LICENCES-SERVICES,OTHER RECREATION SERVICES,GPC
WALSALL COUNCIL,HTTP://OPENDATACOMMUNITIES.ORG/ID/METROPOLITAN-DISTRICT-COUNCIL/WALSALL,31/12/2019,ECONOMY & ENVIRONMENT,ROYAL ACADEMY OF ARTS,10/10/2019,H59620191012IUBKLTWEV-1,138.00,NEW ART GALLERY - ADMIN-PUBLICATIONS/ORGANISATIONS-SUB,"CARD, GIFT, NOVELTY, AND SOUVENIR SHOPS",GPC
WALSALL COUNCIL,HTTP://OPENDATACOMMUNITIES.ORG/ID/METROPOLITAN-DISTRICT-COUNCIL/WALSALL,31/12/2019,RESOURCES & TRANSFORMATION,AMZNMKTPLACE,10/10/2019,H59620191012JBOUAWKDN-1,12.98,LABOUR GROUP ROOM EXPENSES-STATIONERY & GENERAL SUPPLIES,MISCELLANEOUS AND SPECIALTY RETAIL STORES,GPC
WALSALL COUNCIL,HTTP://OPENDATACOMMUNITIES.ORG/ID/METROPOLITAN-DISTRICT-COUNCIL/WALSALL,31/12/2019,ADULT SOCIAL CARE,HOLE IN THE WALL C,10/10/2019,H59620191012JQMPVDYFW-1,20.00,GOSCOTE-REPAIR & MAINTENANCE OF FURNIT,"FURNITURE-REUPHOLSTERY AND REPAIR, REFINISHING",GPC
WALSALL COUNCIL,HTTP://OPENDATACOMMUNITIES.ORG/ID/METROPOLITAN-DISTRICT-COUNCIL/WALSALL,31/12/2019,CHILDRENS SERVICES,WM MORRISONS STORE,10/10/2019,H59620191012KHYOREIBR-1,54.60,"43A HILTON ROAD, WILLENHALL-FOOD & DRINK SUPPLIES",GROCERY STORES AND SUPERMARKETS,GPC
WALSALL COUNCIL,HTTP://OPENDATACOMMUNITIES.ORG/ID/METROPOLITAN-DISTRICT-COUNCIL/WALSALL,31/12/2019,CHILDRENS SERVICES,WM MORRISONS STORE,10/10/2019,H59620191012KHYOREIBR-2,127.24,"43A HILTON ROAD, WILLENHALL-FOOD & DRINK SUPPLIES",GROCERY STORES AND SUPERMARKETS,GPC
WALSALL COUNCIL,HTTP://OPENDATACOMMUNITIES.ORG/ID/METROPOLITAN-DISTRICT-COUNCIL/WALSALL,31/12/2019,CHILDRENS SERVICES,WALSALL STN T/O,10/10/2019,H59620191012OGVRDVRWD-1,36.00,TRANSITION AND LEAVING CARE PL-OFFICER/STAFF-PUBLIC TRANSPORT,PASSENGER RAILWAYS,GPC
